Workbook

Sheet Named Items (hidden)
A1: Range Name | B1: Applications | D1: Range Name | E1: Benefits | G1: Range Name | H1: Location
A2: App_1 | B2: Electric Energy Time-shift | D2: Ben_01 | E2: Arbitrage Revenue | G2: Loc_1 | H2: Generation and Transmission
A3: App_2 | B3: Electric Supply Capacity | D3: Ben_02 | E3: Capacity Market Revenue | G3: Loc_2 | H3: Distribution
A4: App_3 | B4: Load Following | D4: Ben_03 | E4: Ancillary Services Revenue | G4: Loc_3 | H4: End-User
A5: App_4 | B5: Area Regulation | D5: Ben_04 | E5: Reduced Electricity Cost (Consumer)
A6: App_5 | B6: Electric Supply Reserve Capacity | D6: Ben_05 | E6: Reduced Peak Demand | G6: Range Name | H6: Market
A7: App_6 | B7: Voltage Support | D7: Ben_06 | E7: Reduced Peak Losses (Utility/Ratepayer) | G7: Mark_1 | H7: Regulated
A8: App_7 | B8: Transmission Support | D8: Ben_07 | E8: Reduced Reserve Margin Requirement | G8: Mark_2 | H8: Deregulated
A9: App_8 | B9: Transmission Congestion Relief | D9: Ben_08 | E9: Reduced Congestion Costs
A10: App_9 | B10: Transmission & Distribution (T&D) Upgrade Deferral | D10: Ben_09 | E10: Reduced Ancillary Service Costs | G10: Range Name | H10: Owner
A11: App_10 | B11: Substation On-site Power | D11: Ben_10 | E11: Optimized Generator Operation (Non-Utility Merchant) | G11: Own_1 | H11: Utility
A12: App_11 | B12: Time-of-use (TOU) Energy Cost Management | D12: Ben_11 | E12: Deferred Transmission Investments | G12: Own_2 | H12: Non-Utility Merchant/Independent Power Producer
A13: App_12 | B13: Demand Charge Management | D13: Ben_12 | E13: Deferred Distribution Investments | G13: Own_3 | H13: End-User
A14: App_13 | B14: Electric Service Reliability | D14: Ben_13 | E14: Reduced Distribution O&M Cost
A15: App_14 | B15: Electric Service Power Quality | D15: Ben_14 | E15: Reduced Electricity Cost (Utility/Ratepayer) | G15: Range Name | H15: Parameters
A16: App_15 | B16: Renewables Energy Time-shift | D16: Ben_15 | E16: Reduced Electricity Losses | G16: Param_1 | H16: Nameplate Power (kW)
A17: App_16 | B17: Renewables Capacity Firming | D17: Ben_16 | E17: Reduced Sustained Outages (Consumer) | G17: Param_2 | H17: Nameplate Energy (kWh)
A18: App_17 | B18: Wind Generation Grid Integration - Short Duration | D18: Ben_17 | E18: Reduced Sustained Outages (Utility/Ratepayer) | G18: Param_3 | H18: Nameplate Storage Response Time
A19: App_18 | B19: Wind Generation Grid Integration - Long Duration | D19: Ben_18 | E19: Reduced Major Outages (Consumer) | G19: Param_4 | H19: Nameplate Cycle Life
A20: App_19 | B20: No Secondary Applications | D20: Ben_19 | E20: Reduced Major Outages (Utility/Ratepayer) | G20: Param_5 | H20: Nameplate Calendar Life
D21: Ben_20 | E21: Reduced Major System Outage | G21: Param_6 | H21: Reactive Power Capability
D22: Ben_21 | E22: Reduced Momentary Outages | G22: Param_7 | H22: Energy Storage Technology
D23: Ben_22 | E23: Reduced Sags and Swells | G23: Param_8 | H23: Output Duration
D24: Ben_23 | E24: Reduced CO2 Emissions | G24: Param_9 | H24: Storage System Round-trip Efficiency
D25: Ben_24 | E25: Reduced SOx Emissions | G25: Param_10 | H25: Demand Growth
D26: Ben_25 | E26: Reduced NOx Emissions | G26: Param_11 | H26: NERC Region
D27: Ben_26 | E27: Reduced PM Emissions
D28: Ben_27 | E28: Reduced Substation On-Site Power Costs | G28: Range Name | H28: Economic Parameters
D29: Ben_28 | E29: Deferred Generation Capacity Investments | G29: EcoParam_1 | H29: Assumed Project Life
D30: Ben_29 | E30: Reduced Outages (Utility/Ratepayer) | G30: EcoParam_2 | H30: Annual Inflation Rate
D31: Ben_30 | E31: Reduced Congestion Costs (Non-Utility Merchant) | G31: EcoParam_3 | H31: Discount Rate
D32: Ben_31 | E32: Reduced Congestion Costs (Utility/Ratepayer) | G32: EcoParam_4 | H32: Total Installed Cost
D33: Ben_32 | E33: Reduced Outages (Consumer) | G33: EcoParam_5 | H33: Fixed Charge Rate
D34: Ben_33 | E34: Improved Power Quality | G34: EcoParam_6 | H34: Operating costs not related to energy (labor for operation, plant maintenance, equipment wear leading to loss-of-life)
D35: Ben_34 | E35: Optimized Generator Operation (Utility/Ratepayer) | G35: EcoParam_7 | H35: Decommissioning and Disposal Costs
G36: EcoParam_8 | H36: Initial Year
G38: Range Name | H38: Energy Storage Devices
G39: ES_1 | H39: Compressed Air Energy Storage
G40: ES_2 | H40: Pumped Hydro Storage
G41: ES_3 | H41: Flywheel Energy Storage
G42: ES_4 | H42: Supercapacitor
G43: ES_5 | H43: Battery (type unspecified)
G44: ES_6 | H44: Flow Battery (type unspecified)
G45: ES_7 | H45: Battery, Sodium Sulfur
G46: ES_8 | H46: Battery, Lead Acid
G47: ES_9 | H47: Battery, Advanced Lead Acid
G48: ES_10 | H48: Battery, Lithium Ion
G49: ES_11 | H49: Flow Battery, Zn-Br
G50: ES_12 | H50: Flow Battery, Fe-CR
G51: ES_13 | H51: Flow Battery, Vanadium

Sheet Definitions (hidden)
A1: Range Name | B1: Item | C1: Definition | D1: Range Name | E1: Item - Definition
A2: App_1 | B2: =INDIRECT(A2) -> Electric Energy Time-shift | C2: Electric Energy Time-shift (time-shift) application involves purchasing inexpensive electric energy, available during periods when price is low, to charge the storage plant so that the stored energy can be used or sold at a later time when the price is high. In deregulated markets, a storage device could be used for price arbitrage—purchasing and storing electricity during cheap, off-peak hours and selling during peak hours. Arbitrage is only cost-effective if the price differential compensates for the inefficiency of the storage device. In regulated markets, a utility may install storage to decrease its cost of generating energy during peak demand rather than to profit from a wholesale market. | D2: ="Defin_"&A2 -> Defin_App_1 | E2: =B2&" - "&C2 -> Electric Energy Time-shift - Electric Energy Time-shift (time-shift) application involves purchasing inexpensive electric energy, available during periods when price is low, to charge the storage plant so that the stored energy can be used or sold at a later time when the price is high. In deregulated markets, a storage device could be used for price arbitrage—purchasing and storing electricity during cheap, off-peak hours and selling during peak hours. Arbitrage is only cost-effective if the price differential compensates for the inefficiency of the storage device. In regulated markets, a utility may install storage to decrease its cost of generating energy during peak demand rather than to profit from a wholesale market.
A3: App_2 | B3: =INDIRECT(A3) -> Electric Supply Capacity | C3: As demand on the electricity grid grows from year-to-year, the need to install additional generation capacity to meet this demand also grows. The Electric Supply Capacity application involves using energy storage to defer and/or to reduce the need to invest in new generation capacity. In a regulated market, a utility may install a marginal amount of energy storage to meet capacity needs thus deferring the need to invest in a larger conventional generation solution. In a deregulated market, where the electric supply capacity market is evolving, this application could involve selling energy storage capacity to the market in order to generate a capacity credit revenue stream for a non-utility merchant. However, this market is evolving and in some markets, generation capacity cost is included in wholesale energy prices. | D3: ="Defin_"&A3 -> Defin_App_2 | E3: =B3&" - "&C3 -> Electric Supply Capacity - As demand on the electricity grid grows from year-to-year, the need to install additional generation capacity to meet this demand also grows. The Electric Supply Capacity application involves using energy storage to defer and/or to reduce the need to invest in new generation capacity. In a regulated market, a utility may install a marginal amount of energy storage to meet capacity needs thus deferring the need to invest in a larger conventional generation solution. In a deregulated market, where the electric supply capacity market is evolving, this application could involve selling energy storage capacity to the market in order to generate a capacity credit revenue stream for a non-utility merchant. However, this market is evolving and in some markets, generation capacity cost is included in wholesale energy prices.
A4: App_3 | B4: Load Following | C4: Load following is an ancillary service to maintain grid balance by adjusting power as demand for electricity fluctuates throughout the day on 10 to 15 minute time scales. In a deregulated market, this may not be a separate ancillary service depending on the mix of generation and the structure of the energy market in the area. If there is sufficient generation mix in the area that is flexible enough to meet the system load following needs ,then this balancing can be effectively accomplished through the energy market. In a deregulated market this application involves using ES to participate in the market for load following services (if the market exists). In a regulated market, using ES to replace traditional load following can yield operational benefits because it eliminates the need for the conventional generator to cycle as load changes. This may improve the heat rate of the generation unit resulting in fewer emissions and lower the marginal cost to operate that generation. | D4: Defin_App_3 | E4: =B4&" - "&C4 -> Load Following - Load following is an ancillary service to maintain grid balance by adjusting power as demand for electricity fluctuates throughout the day on 10 to 15 minute time scales. In a deregulated market, this may not be a separate ancillary service depending on the mix of generation and the structure of the energy market in the area. If there is sufficient generation mix in the area that is flexible enough to meet the system load following needs ,then this balancing can be effectively accomplished through the energy market. In a deregulated market this application involves using ES to participate in the market for load following services (if the market exists). In a regulated market, using ES to replace traditional load following can yield operational benefits because it eliminates the need for the conventional generator to cycle as load changes. This may improve the heat rate of the generation unit resulting in fewer emissions and lower the marginal cost to operate that generation. | J4: Load following is an ancillary service to maintain grid balance by adjusting power as demand for electricity fluctuates throughout the day. Load following operates on a time scale of about 10 to 15 minutes. In a deregulated market, this may not be a separate ancillary service depending on the mix of generation and the structure of the energy market in the area. If there is sufficient generation mix in the area that is flexible enough to meet the system load following needs ,then this balancing can be effectively accomplished through the energy market. In a deregulated market this application involves using ES to participate in the market for load following services (if the tariff exists). In a regulated market, using ES to replace traditional load following can yield operational benefits because it eliminates the need for the conventional generator to cycle as load changes. This may improve the heat rate of the generation unit resulting in fewer emissions and lower the marginal cost to operate that generation.
A5: App_4 | B5: Area Regulation | C5: Area regulation is an ancillary service concerned with managing energy flows with other control areas to reconcile momentary differences between supply and demand. This service is provided by on-line generation equipped with automatic generation control (AGC) that can change output quickly to track the moment-to-moment fluctuations in customer loads and correct for the fluctuations in generation. The Area Regulation application can involve using energy storage to provide this service and participate in the market for area regulation services. Because energy storage can respond to system regulation needs more accurately and quickly than some conventional generation sources, less capacity could be required if energy storage devices rather than conventional devices are used to provide this service. Therefore, using ES to provide this service can free up conventional capacity to meet energy needs. | D5: Defin_App_4 | E5: Area Regulation - Area regulation is an ancillary service concerned with managing energy flows with other control areas to reconcile momentary differences between supply and demand. This service is provided by on-line generation equipped with automatic generation control (AGC) that can change output quickly to track the moment-to-moment fluctuations in customer loads and correct for the fluctuations in generation. The Area Regulation application can involve using energy storage to provide this service and participate in the market for area regulation services. Because energy storage can respond to system regulation needs more accurately and quickly than some conventional generation sources, less capacity could be required if energy storage devices rather than conventional devices are used to provide this service. Therefore, using ES to provide this service can free up conventional capacity to meet energy needs.
A6: App_5 | B6: Electric Supply Reserve Capacity | C6: Electric supply reserve capacity is an ancillary service concerned with maintaining extra capacity that can be called upon when some portion of the normal electric supply resources become unavailable unexpectedly. There are three generic types of reserve capacity: spinning reserve, non-spinning reserve, and backup supply. In a deregulated market the Electric Supply Reserve Capacity application involves using energy storage to participate in the market for these services. In a regulated market, using energy storage to replace traditional spinning reserve can yield operational benefits. Using energy storage to provide spinning reserves obviates the need to operate a conventional unit at partial load so that it is ready to provide capacity in the event of an outage. This will improve the heat rate of the generation unit and result in fewer emissions; it will also improve the marginal cost to operate that generation. | D6: Defin_App_5 | E6: Electric Supply Reserve Capacity - Electric supply reserve capacity is an ancillary service concerned with maintaining extra capacity that can be called upon when some portion of the normal electric supply resources become unavailable unexpectedly. There are three generic types of reserve capacity: spinning reserve, non-spinning reserve, and backup supply. In a deregulated market the Electric Supply Reserve Capacity application involves using energy storage to participate in the market for these services. In a regulated market, using energy storage to replace traditional spinning reserve can yield operational benefits. Using energy storage to provide spinning reserves obviates the need to operate a conventional unit at partial load so that it is ready to provide capacity in the event of an outage. This will improve the heat rate of the generation unit and result in fewer emissions; it will also improve the marginal cost to operate that generation.
A7: App_6 | B7: Voltage Support | C7: Voltage support is an ancillary service concerned with managing a phenomenon called reactance so that grid system voltage can be restored or maintained. Voltage support has typically been provided by generation resources, however because reactive power is a localized phenomenon and because it cannot be transmitted effectively over long distances, those generation resources must be located in the right region to be able to manage reactance. The Voltage Support application involves using energy storage assets to provide distributed or centralized voltage support. Storage is well suited for this application because it is quick to respond, can be sited where it is needed, and can effectively provide voltage support during contingency conditions. An energy storage device used for this application could yield a revenue stream by participating in the market for this service. Using distributed energy storage systems to provide voltage support could improve the power quality of the system as well. | D7: Defin_App_6 | E7: Voltage Support - Voltage support is an ancillary service concerned with managing a phenomenon called reactance so that grid system voltage can be restored or maintained. Voltage support has typically been provided by generation resources, however because reactive power is a localized phenomenon and because it cannot be transmitted effectively over long distances, those generation resources must be located in the right region to be able to manage reactance. The Voltage Support application involves using energy storage assets to provide distributed or centralized voltage support. Storage is well suited for this application because it is quick to respond, can be sited where it is needed, and can effectively provide voltage support during contingency conditions. An energy storage device used for this application could yield a revenue stream by participating in the market for this service. Using distributed energy storage systems to provide voltage support could improve the power quality of the system as well.
A8: App_7 | B8: Transmission Support | C8: The Transmission Support application involves using energy storage to provide a suite of ancillary services concerned with improving T&D system performance by compensating for electrical anomalies and disturbances such as voltage sag, unstable voltage, and sub-synchronous resonance. The result is a more stable system with improved performance. This application is similar to the ancillary service referred to as Network Stability. Specifically, energy storage can be used to provide transmission stability damping and under-frequency load shedding reduction. Providing these services can defer the need to invest in additional transmission capacity and the improve reliability of the system. | D8: Defin_App_7 | E8: Transmission Support - The Transmission Support application involves using energy storage to provide a suite of ancillary services concerned with improving T&D system performance by compensating for electrical anomalies and disturbances such as voltage sag, unstable voltage, and sub-synchronous resonance. The result is a more stable system with improved performance. This application is similar to the ancillary service referred to as Network Stability. Specifically, energy storage can be used to provide transmission stability damping and under-frequency load shedding reduction. Providing these services can defer the need to invest in additional transmission capacity and the improve reliability of the system.
A9: App_8 | B9: Transmission Congestion Relief | C9: In areas where transmission capacity is not sufficient to transmit the lowest cost generation to market, congestion will occur on these systems during periods of peak demand, leading to increased transmission access charges. This market phenomenon is known as congestion. The Transmission Congestion Relief application involves using energy storage to avoid congestion-related costs and charges by locating storage electrically downstream from the congested portion of the transmission system. Energy would be stored when there is no transmission congestion, and it would be discharged (during peak demand periods) to reduce transmission capacity requirements. | D9: Defin_App_8 | E9: Transmission Congestion Relief - In areas where transmission capacity is not sufficient to transmit the lowest cost generation to market, congestion will occur on these systems during periods of peak demand, leading to increased transmission access charges. This market phenomenon is known as congestion. The Transmission Congestion Relief application involves using energy storage to avoid congestion-related costs and charges by locating storage electrically downstream from the congested portion of the transmission system. Energy would be stored when there is no transmission congestion, and it would be discharged (during peak demand periods) to reduce transmission capacity requirements.
A10: App_9 | B10: Transmission & Distribution (T&D) Upgrade Deferral | C10: Transmission and Distribution (T&D) Upgrade Deferral application involves installing ES in order to delay transmission and/or distribution system upgrades. The value of this application is derived from the fact that storage can be used to provide enough incremental capacity to defer the need for a large ‘lump’ investment in T&D equipment. If using an energy storage device to defer a T&D investment proper consideration must be given to reliability. T&D capital investments must maintain the extremely high reliability of the electric delivery system. Therefore, any energy storage solution that defers the need for a T&D investment must similarly maintain the reliability of the system. For energy storage deployments this means ensuring that the storage solution has enough redundancy or modularity such that the effective reliability of the solution is adequate. | D10: Defin_App_9 | E10: =B10&" - "&C10 -> Transmission & Distribution (T&D) Upgrade Deferral - Transmission and Distribution (T&D) Upgrade Deferral application involves installing ES in order to delay transmission and/or distribution system upgrades. The value of this application is derived from the fact that storage can be used to provide enough incremental capacity to defer the need for a large ‘lump’ investment in T&D equipment. If using an energy storage device to defer a T&D investment proper consideration must be given to reliability. T&D capital investments must maintain the extremely high reliability of the electric delivery system. Therefore, any energy storage solution that defers the need for a T&D investment must similarly maintain the reliability of the system. For energy storage deployments this means ensuring that the storage solution has enough redundancy or modularity such that the effective reliability of the solution is adequate.
A11: App_10 | B11: Substation On-site Power | C11: The Substation On-site Power application involves using new energy storage systems provide power to switching components and to substation communication and control equipment when the grid is not energized. Benefit would be realized to the extent that the new systems reduce the need for routine maintenance, improved reliability, provide longer battery life, would make alternatives attractive, especially if the cost is comparable to that of the incumbent technologies. This application is not quantified in the tool. | D11: Defin_App_10 | E11: Substation On-site Power - The Substation On-site Power application involves using new energy storage systems provide power to switching components and to substation communication and control equipment when the grid is not energized. Benefit would be realized to the extent that the new systems reduce the need for routine maintenance, improved reliability, provide longer battery life, would make alternatives attractive, especially if the cost is comparable to that of the incumbent technologies. This application is not quantified in the tool.
A12: App_11 | B12: Time-of-use (TOU) Energy Cost Management | C12: For the Time-of-use (TOU) Energy Cost Management application, energy end users (utility customers) would use of energy storage devices to reduce their overall costs for electricity. They would accomplish this by charging the storage during off-peak periods when the electric energy price is low, then discharge the energy during times when on-peak TOU energy prices apply. This application is similar to Electric Energy Time-shift application, although electric energy savings are based on the customer’s retail tariff, whereas the benefit for Electric Energy Time-shift is based on the prevailing wholesale price. | D12: Defin_App_11 | E12: Time-of-use (TOU) Energy Cost Management - For the Time-of-use (TOU) Energy Cost Management application, energy end users (utility customers) would use of energy storage devices to reduce their overall costs for electricity. They would accomplish this by charging the storage during off-peak periods when the electric energy price is low, then discharge the energy during times when on-peak TOU energy prices apply. This application is similar to Electric Energy Time-shift application, although electric energy savings are based on the customer’s retail tariff, whereas the benefit for Electric Energy Time-shift is based on the prevailing wholesale price.
A13: App_12 | B13: Demand Charge Management | C13: For the Demand Charge Management application, energy end users would use storage to reduce the overall costs for electric service by reducing demand charges. Using storage to reduce their power draw during specified periods (demand charge periods), end users can lower the costs that are tied to the amount of load (kW) they demand from the grid. | D13: Defin_App_12 | E13: Demand Charge Management - For the Demand Charge Management application, energy end users would use storage to reduce the overall costs for electric service by reducing demand charges. Using storage to reduce their power draw during specified periods (demand charge periods), end users can lower the costs that are tied to the amount of load (kW) they demand from the grid.
A14: App_13 | B14: Electric Service Reliability | C14: The Electric Service Reliability application entails using energy storage to ensure highly reliable electric service. In the event of an extended system disruption energy storage can be used to ride through the outage, to complete an orderly shutdown, or to transition to on-site generation. | D14: Defin_App_13 | E14: Electric Service Reliability - The Electric Service Reliability application entails using energy storage to ensure highly reliable electric service. In the event of an extended system disruption energy storage can be used to ride through the outage, to complete an orderly shutdown, or to transition to on-site generation.
A15: App_14 | B15: Electric Service Power Quality | C15: The Electric Service Power Quality application involves using energy storage to protect on-site loads downstream from storage against short-term duration events affecting power quality. Manifestations of poor power quality include variations in voltage magnitude, variations in the primary 60-Hz frequency at which power is delivered, and interruptions in service ranging from a fraction of a second to several minutes. | D15: Defin_App_14 | E15: Electric Service Power Quality - The Electric Service Power Quality application involves using energy storage to protect on-site loads downstream from storage against short-term duration events affecting power quality. Manifestations of poor power quality include variations in voltage magnitude, variations in the primary 60-Hz frequency at which power is delivered, and interruptions in service ranging from a fraction of a second to several minutes.
A16: App_15 | B16: Renewables Energy Time-shift | C16: The Renewables Energy Time-shift application involves storing electricity from renewable sources when the price of electricity is low and selling that stored energy when the price of electricity is higher. Because wind typically produces energy at night when electricity prices are low, the price differential between the electricity used to charge the battery and the electricity sold at peak can be very large. The energy that is discharged from the storage could be sold via the wholesale market, sold under terms of an energy purchase contract, or used by an integrated utility to reduce the overall cost of providing generation during peak times. | D16: Defin_App_15 | E16: Renewables Energy Time-shift - The Renewables Energy Time-shift application involves storing electricity from renewable sources when the price of electricity is low and selling that stored energy when the price of electricity is higher. Because wind typically produces energy at night when electricity prices are low, the price differential between the electricity used to charge the battery and the electricity sold at peak can be very large. The energy that is discharged from the storage could be sold via the wholesale market, sold under terms of an energy purchase contract, or used by an integrated utility to reduce the overall cost of providing generation during peak times.
A17: App_16 | B17: Renewables Capacity Firming | C17: The Renewables Capacity Firming application involves using energy storage to enable the power output from intermittent renewable energy resources to be more consistent by providing energy when the power output from these sources drops temporarily. In a regulated market, firming renewable resources may enable a utility may defer the need to invest in additional conventional generation. In a deregulated market, where the electric supply capacity market is evolving, firming a renewable generation resource could enable a non-utility merchant to sell additional renewable energy capacity into the market resulting in a larger capacity credit revenue stream. However, this market is evolving and in some markets, generation capacity cost is included in wholesale energy prices. | D17: Defin_App_16 | E17: Renewables Capacity Firming - The Renewables Capacity Firming application involves using energy storage to enable the power output from intermittent renewable energy resources to be more consistent by providing energy when the power output from these sources drops temporarily. In a regulated market, firming renewable resources may enable a utility may defer the need to invest in additional conventional generation. In a deregulated market, where the electric supply capacity market is evolving, firming a renewable generation resource could enable a non-utility merchant to sell additional renewable energy capacity into the market resulting in a larger capacity credit revenue stream. However, this market is evolving and in some markets, generation capacity cost is included in wholesale energy prices.
A18: App_17 | B18: Wind Generation Grid Integration - Short Duration | C18: As wind generation penetration increases, the electricity grid effects that are unique to wind generation will also increase. Storage could assist with orderly integration of wind generation (wind integration) by managing or mitigating the more challenging and less desirable effects from high wind generation penetration. The Wind Generation Grid Integration (Short Duration) application involves using storage to mitigate short-duration effects such as output volatility and poor power quality. | D18: Defin_App_17 | E18: Wind Generation Grid Integration - Short Duration - As wind generation penetration increases, the electricity grid effects that are unique to wind generation will also increase. Storage could assist with orderly integration of wind generation (wind integration) by managing or mitigating the more challenging and less desirable effects from high wind generation penetration. The Wind Generation Grid Integration (Short Duration) application involves using storage to mitigate short-duration effects such as output volatility and poor power quality.
A19: App_18 | B19: =INDIRECT(A19) -> Wind Generation Grid Integration - Long Duration | C19: As wind generation penetration increases, the electricity grid effects that are unique to wind generation will also increase. Storage could assist with orderly integration of wind generation (wind integration) by managing or mitigating the more challenging and less desirable effects from high wind generation penetration. The Wind Generation Grid Integration (Long Duration) application involves using storage to mitigate long-duration effects such as output volatility, transmission congestion, backup for generation shortfall, and minimum load violations. | D19: Defin_App_18 | E19: Wind Generation Grid Integration - Long Duration - As wind generation penetration increases, the electricity grid effects that are unique to wind generation will also increase. Storage could assist with orderly integration of wind generation (wind integration) by managing or mitigating the more challenging and less desirable effects from high wind generation penetration. The Wind Generation Grid Integration (Long Duration) application involves using storage to mitigate long-duration effects such as output volatility, transmission congestion, backup for generation shortfall, and minimum load violations.
A20: Ben_01 | B20: Arbitrage Revenue | C20: Energy storage can be used to store electricity purchased when prices are low, during off-peak periods, and discharge when electricity prices are high during peak periods, resulting in a revenue stream for the storage owner. | D20: Defin_Ben_01 | E20: Arbitrage Revenue - Energy storage can be used to store electricity purchased when prices are low, during off-peak periods, and discharge when electricity prices are high during peak periods, resulting in a revenue stream for the storage owner.
A21: Ben_02 | B21: Capacity Market Revenue | C21: As demand on the electricity grid grows from year-to-year, the need to install additional generation capacity to meet this demand also grows. In a deregulated market, where the electric supply capacity market is evolving, energy storage capacity could sold to the capacity to the market in order to generate a capacity credit revenue stream for a storage owner. | D21: Defin_Ben_02 | E21: Capacity Market Revenue - As demand on the electricity grid grows from year-to-year, the need to install additional generation capacity to meet this demand also grows. In a deregulated market, where the electric supply capacity market is evolving, energy storage capacity could sold to the capacity to the market in order to generate a capacity credit revenue stream for a storage owner.
A22: Ben_03 | B22: Ancillary Services Revenue | C22: In deregulated electric service territories there may be organized markets for ancillary services such as load following, area regulation, reserve capacity, voltage support, and black start. The ability of energy storage devices to rapidly charge and discharge to the grid enables them to effectively provide these services resulting in a revenue stream for the owner. | D22: Defin_Ben_03 | E22: Ancillary Services Revenue - In deregulated electric service territories there may be organized markets for ancillary services such as load following, area regulation, reserve capacity, voltage support, and black start. The ability of energy storage devices to rapidly charge and discharge to the grid enables them to effectively provide these services resulting in a revenue stream for the owner.
A23: Ben_04 | B23: Reduced Electricity Cost (Consumer) | C23: Electricity storage can be used to reduce the cost of electricity for a consumer by enabling the consumer to avoid peak-demand charges and peak electricity prices. A consumer can charge their device when prices are low and discharge the device when prices are high. Because high prices tend to coincide with peak-times, this activity will also lower the customer’s overall peak usage, which will lead to additional savings if the customer has a demand charge associated with their tariff. | D23: Defin_Ben_04 | E23: Reduced Electricity Cost (Consumer) - Electricity storage can be used to reduce the cost of electricity for a consumer by enabling the consumer to avoid peak-demand charges and peak electricity prices. A consumer can charge their device when prices are low and discharge the device when prices are high. Because high prices tend to coincide with peak-times, this activity will also lower the customer’s overall peak usage, which will lead to additional savings if the customer has a demand charge associated with their tariff.
A24: Ben_05 | B24: Reduced Peak Demand | C24: Ex. 22 | D24: Defin_Ben_05 | E24: Reduced Peak Demand - Ex. 22
A25: Ben_06 | B25: Reduced Peak Losses (Utility/Ratepayer) | C25: Ex. 23 | D25: Defin_Ben_06 | E25: Reduced Peak Losses (Utility/Ratepayer) - Ex. 23
A26: Ben_07 | B26: Reduced Reserve Margin Requirement | C26: Ex. 24 | D26: Defin_Ben_07 | E26: Reduced Reserve Margin Requirement - Ex. 24
A27: Ben_08 | B27: Reduced Congestion Costs | C27: If storage is located close to load centers it may be used to reduce congestion by charging during periods of no congestion and discharging during congested periods. Charging and discharging in this way will meet peak demands while reducing the amount of electricity that must be passed through the congested transmission pathways. If congestion can be reduced in this way the costs associated with congestion can also be reduced. | D27: Defin_Ben_08 | E27: Reduced Congestion Costs - If storage is located close to load centers it may be used to reduce congestion by charging during periods of no congestion and discharging during congested periods. Charging and discharging in this way will meet peak demands while reducing the amount of electricity that must be passed through the congested transmission pathways. If congestion can be reduced in this way the costs associated with congestion can also be reduced.
A28: Ben_09 | B28: Reduced Ancillary Service Costs | C28: In deregulated electric service territories there may be organized markets for ancillary services such as load following, area regulation, reserve capacity, voltage support, and black start. The ability of energy storage devices to rapidly charge and discharge to the grid enables them to effectively provide these services resulting in a revenue stream for the owner. | D28: Defin_Ben_09 | E28: Reduced Ancillary Service Costs - In deregulated electric service territories there may be organized markets for ancillary services such as load following, area regulation, reserve capacity, voltage support, and black start. The ability of energy storage devices to rapidly charge and discharge to the grid enables them to effectively provide these services resulting in a revenue stream for the owner.
A29: Ben_10 | B29: Optimized Generator Operation (Non-Utility Merchant) | C29: Using energy storage to respond to changes in load by absorbing or discharging energy as needed by the system can enable generators to run closer to their optimum operating zone. Therefore, by smoothing the load curve that the generation fleet must meet, storage can improve generation performance as measured by improved heat rate efficiency and lead to lower operating costs. | D29: Defin_Ben_10 | E29: Optimized Generator Operation (Non-Utility Merchant) - Using energy storage to respond to changes in load by absorbing or discharging energy as needed by the system can enable generators to run closer to their optimum operating zone. Therefore, by smoothing the load curve that the generation fleet must meet, storage can improve generation performance as measured by improved heat rate efficiency and lead to lower operating costs.
A30: Ben_11 | B30: Deferred Transmission Investments | C30: Utilities build transmission with capacity sufficient to serve the maximum amount of load that planning forecasts indicate. The trouble is, this capacity is only required for very short periods each year, when demand peaks. Providing stored energy capacity closer to the load reduces the power flow on transmission lines, potentially avoiding or deferring capacity upgrades. | D30: Defin_Ben_11 | E30: Deferred Transmission Investments - Utilities build transmission with capacity sufficient to serve the maximum amount of load that planning forecasts indicate. The trouble is, this capacity is only required for very short periods each year, when demand peaks. Providing stored energy capacity closer to the load reduces the power flow on transmission lines, potentially avoiding or deferring capacity upgrades.
A31: Ben_12 | B31: Deferred Distribution Investments | C31: Electricity storage can be used to relieve load on overloaded feeders and distribution assets, potentially extending the time before upgrades or additions are required. | D31: Defin_Ben_12 | E31: Deferred Distribution Investments - Electricity storage can be used to relieve load on overloaded feeders and distribution assets, potentially extending the time before upgrades or additions are required.
A32: Ben_13 | B32: Reduced Distribution O&M Cost | C32: Ex. 30 | D32: Defin_Ben_13 | E32: Reduced Distribution O&M Cost - Ex. 30
A33: Ben_14 | B33: Reduced Electricity Cost (Utility/Ratepayer) | C33: Charging storage devices when demand is low, and discharging the devices when demand is high may decrease a utilities energy costs by allowing the utility to run a more cost effective mix of generation. This is because discharging the stored electricity during peak times may eliminate the need to dispatch additional expensive on-peak conventional generation. | D33: Defin_Ben_14 | E33: Reduced Electricity Cost (Utility/Ratepayer) - Charging storage devices when demand is low, and discharging the devices when demand is high may decrease a utilities energy costs by allowing the utility to run a more cost effective mix of generation. This is because discharging the stored electricity during peak times may eliminate the need to dispatch additional expensive on-peak conventional generation.
A34: Ben_15 | B34: Reduced Electricity Losses | C34: By charging electricity close to load centers during periods of low demand and discharging during peak demand period, energy storage can reduce the peak load on the grid. Because losses proportional to the square of current on the system, reducing peak load will result in a reduction of the total amount of electricity line losses on the system. | D34: Defin_Ben_15 | E34: Reduced Electricity Losses - By charging electricity close to load centers during periods of low demand and discharging during peak demand period, energy storage can reduce the peak load on the grid. Because losses proportional to the square of current on the system, reducing peak load will result in a reduction of the total amount of electricity line losses on the system.
A35: Ben_16 | B35: Reduced Sustained Outages (Consumer) | C35: Ex. 33 | D35: Defin_Ben_16 | E35: Reduced Sustained Outages (Consumer) - Ex. 33
A36: Ben_17 | B36: Reduced Sustained Outages (Utility/Ratepayer) | C36: Ex. 34 | D36: Defin_Ben_17 | E36: Reduced Sustained Outages (Utility/Ratepayer) - Ex. 34
A37: Ben_18 | B37: Reduced Major Outages (Consumer) | C37: Ex. 35 | D37: Defin_Ben_18 | E37: Reduced Major Outages (Consumer) - Ex. 35
A38: Ben_19 | B38: Reduced Major Outages (Utility/Ratepayer) | C38: Ex. 36 | D38: Defin_Ben_19 | E38: Reduced Major Outages (Utility/Ratepayer) - Ex. 36
A39: Ben_20 | B39: Reduced Major System Outage | C39: Ex. 37 | D39: Defin_Ben_20 | E39: Reduced Major System Outage - Ex. 37
A40: Ben_21 | B40: Reduced Momentary Outages | C40: Ex. 38 | D40: Defin_Ben_21 | E40: Reduced Momentary Outages - Ex. 38
A41: Ben_22 | B41: Reduced Sags and Swells | C41: Ex. 39 | D41: Defin_Ben_22 | E41: Reduced Sags and Swells - Ex. 39
A42: Ben_23 | B42: =INDIRECT(A42) -> Reduced CO2 Emissions | C42: Electricity storage can reduce electricity peak demand and thereby reduce feeder losses. This translates into a reduction in CO2 emissions if peak load is typically produced by fossil-based electricity generators. However, since electricity storage has an inherent inefficiency associated with it, electricity storage could increase overall CO2 emissions if fossil fuel generators are used for charging. Alternatively, by providing certain ancillary services storage can enable conventional generation resources to be operated at more optimal conditions resulting in an emissions benefit. Finally, storage can yield a reduced emissions benefit by enabling greater utilization of renewable resources. | D42: Defin_Ben_23 | E42: Reduced CO2 Emissions - Electricity storage can reduce electricity peak demand and thereby reduce feeder losses. This translates into a reduction in CO2 emissions if peak load is typically produced by fossil-based electricity generators. However, since electricity storage has an inherent inefficiency associated with it, electricity storage could increase overall CO2 emissions if fossil fuel generators are used for charging. Alternatively, by providing certain ancillary services storage can enable conventional generation resources to be operated at more optimal conditions resulting in an emissions benefit. Finally, storage can yield a reduced emissions benefit by enabling greater utilization of renewable resources.
A43: Ben_24 | B43: Reduced SOx Emissions | C43: Electricity storage can reduce electricity peak demand and thereby reduce feeder losses. This translates into a reduction in emissions if peak load is typically produced by fossil-based electricity generators. However, since electricity storage has an inherent inefficiency associated with it, electricity storage could increase overall emissions if fossil fuel generators are used for charging. Alternatively, by providing certain ancillary services storage can enable conventional generation resources to be operated at more optimal conditions resulting in an emissions benefit. Finally, storage can yield a reduced emissions benefit by enabling greater utilization of renewable resources. | D43: Defin_Ben_24 | E43: Reduced SOx Emissions - Electricity storage can reduce electricity peak demand and thereby reduce feeder losses. This translates into a reduction in emissions if peak load is typically produced by fossil-based electricity generators. However, since electricity storage has an inherent inefficiency associated with it, electricity storage could increase overall emissions if fossil fuel generators are used for charging. Alternatively, by providing certain ancillary services storage can enable conventional generation resources to be operated at more optimal conditions resulting in an emissions benefit. Finally, storage can yield a reduced emissions benefit by enabling greater utilization of renewable resources.
A44: Ben_25 | B44: Reduced NOx Emissions | C44: Electricity storage can reduce electricity peak demand and thereby reduce feeder losses. This translates into a reduction in emissions if peak load is typically produced by fossil-based electricity generators. However, since electricity storage has an inherent inefficiency associated with it, electricity storage could increase overall emissions if fossil fuel generators are used for charging. Alternatively, by providing certain ancillary services storage can enable conventional generation resources to be operated at more optimal conditions resulting in an emissions benefit. Finally, storage can yield a reduced emissions benefit by enabling greater utilization of renewable resources. | D44: Defin_Ben_25 | E44: Reduced NOx Emissions - Electricity storage can reduce electricity peak demand and thereby reduce feeder losses. This translates into a reduction in emissions if peak load is typically produced by fossil-based electricity generators. However, since electricity storage has an inherent inefficiency associated with it, electricity storage could increase overall emissions if fossil fuel generators are used for charging. Alternatively, by providing certain ancillary services storage can enable conventional generation resources to be operated at more optimal conditions resulting in an emissions benefit. Finally, storage can yield a reduced emissions benefit by enabling greater utilization of renewable resources.
A45: Ben_26 | B45: Reduced PM Emissions | C45: Electricity storage can reduce electricity peak demand and thereby reduce feeder losses. This translates into a reduction in emissions if peak load is typically produced by fossil-based electricity generators. However, since electricity storage has an inherent inefficiency associated with it, electricity storage could increase overall emissions if fossil fuel generators are used for charging. Alternatively, by providing certain ancillary services storage can enable conventional generation resources to be operated at more optimal conditions resulting in an emissions benefit. Finally, storage can yield a reduced emissions benefit by enabling greater utilization of renewable resources. | D45: Defin_Ben_26 | E45: Reduced PM Emissions - Electricity storage can reduce electricity peak demand and thereby reduce feeder losses. This translates into a reduction in emissions if peak load is typically produced by fossil-based electricity generators. However, since electricity storage has an inherent inefficiency associated with it, electricity storage could increase overall emissions if fossil fuel generators are used for charging. Alternatively, by providing certain ancillary services storage can enable conventional generation resources to be operated at more optimal conditions resulting in an emissions benefit. Finally, storage can yield a reduced emissions benefit by enabling greater utilization of renewable resources.
A46: Ben_34 | B46: Optimized Generator Operation (Utility/Ratepayer) | C46: Using energy storage to respond to changes in load by absorbing or discharging energy as needed by the system can enable generators to run closer to their optimum operating zone. Therefore, by smoothing the load curve that the generation fleet must meet, storage can improve generation performance as measured by improved heat rate efficiency and lead to lower operating costs. | D46: Defin_Ben_34 | E46: Optimized Generator Operation (Utility/Ratepayer) - Using energy storage to respond to changes in load by absorbing or discharging energy as needed by the system can enable generators to run closer to their optimum operating zone. Therefore, by smoothing the load curve that the generation fleet must meet, storage can improve generation performance as measured by improved heat rate efficiency and lead to lower operating costs.
A47: Ben_27 | B47: Reduced Substation On-Site Power Costs | C47: Ex. 44 | D47: Defin_Ben_27 | E47: Reduced Substation On-Site Power Costs - Ex. 44
A48: Ben_28 | B48: Deferred Generation Capacity Investments | C48: By shifting peak demand or providing ancillary services that are typically provided by conventional generation assets, energy storage can result in deferred generation capacity investment benefits. By shifting peak demand, less generation capacity will be required to meet the system needs and by providing ancillary services more generation capacity will be freed up to meet system energy needs. | D48: Defin_Ben_28 | E48: Deferred Generation Capacity Investments - By shifting peak demand or providing ancillary services that are typically provided by conventional generation assets, energy storage can result in deferred generation capacity investment benefits. By shifting peak demand, less generation capacity will be required to meet the system needs and by providing ancillary services more generation capacity will be freed up to meet system energy needs.
A49: Ben_29 | B49: Reduced Outages (Utility/Ratepayer) | C49: Electricity storage can be used during a power outage as a backup power supply for one or more customers until normal electric service can be restored. The backup would only be available for a limited time (a few hours) depending on the amount of energy stored. However, even a temporary backup power supply can reduce the number of outages experienced by customers and/or greatly mitigate the impact of a disturbance event. Alternatively, storage can be used to provide grid support that will inherently increase the reliability of the system. | D49: ="Defin_"&A49 -> Defin_Ben_29 | E49: Reduced Outages (Utility/Ratepayer) - Electricity storage can be used during a power outage as a backup power supply for one or more customers until normal electric service can be restored. The backup would only be available for a limited time (a few hours) depending on the amount of energy stored. However, even a temporary backup power supply can reduce the number of outages experienced by customers and/or greatly mitigate the impact of a disturbance event. Alternatively, storage can be used to provide grid support that will inherently increase the reliability of the system.
A50: Ben_30 | B50: Reduced Congestion Costs (Non-Utility Merchant) | C50: If storage is located close to load centers it may be used to reduce congestion by charging during periods of no congestion and discharging during congested periods. Charging and discharging in this way will meet peak demands while reducing the amount of electricity that must be passed through the congested transmission pathways. If congestion can be reduced in this way the costs associated with congestion can also be reduced. | D50: ="Defin_"&A50 -> Defin_Ben_30 | E50: Reduced Congestion Costs (Non-Utility Merchant) - If storage is located close to load centers it may be used to reduce congestion by charging during periods of no congestion and discharging during congested periods. Charging and discharging in this way will meet peak demands while reducing the amount of electricity that must be passed through the congested transmission pathways. If congestion can be reduced in this way the costs associated with congestion can also be reduced.
A51: Ben_31 | B51: Reduced Congestion Costs (Utility/Ratepayer) | C51: If storage is located close to load centers it may be used to reduce congestion by charging during periods of no congestion and discharging during congested periods. Charging and discharging in this way will meet peak demands while reducing the amount of electricity that must be passed through the congested transmission pathways. If congestion can be reduced in this way the costs associated with congestion can also be reduced. | D51: ="Defin_"&A51 -> Defin_Ben_31 | E51: Reduced Congestion Costs (Utility/Ratepayer) - If storage is located close to load centers it may be used to reduce congestion by charging during periods of no congestion and discharging during congested periods. Charging and discharging in this way will meet peak demands while reducing the amount of electricity that must be passed through the congested transmission pathways. If congestion can be reduced in this way the costs associated with congestion can also be reduced.
A52: Ben_32 | B52: Reduced Outages (Consumer) | C52: Electricity storage can be used during a power outage as a backup power supply for one or more customers until normal electric service can be restored. The backup would only be available for a limited time (a few hours) depending on the amount of energy stored. However, even a temporary backup power supply can reduce the number of outages experienced by customers and/or greatly mitigate the impact of a disturbance event. Alternatively, storage can be used to provide grid support that will inherently increase the reliability of the system. | D52: ="Defin_"&A52 -> Defin_Ben_32 | E52: Reduced Outages (Consumer) - Electricity storage can be used during a power outage as a backup power supply for one or more customers until normal electric service can be restored. The backup would only be available for a limited time (a few hours) depending on the amount of energy stored. However, even a temporary backup power supply can reduce the number of outages experienced by customers and/or greatly mitigate the impact of a disturbance event. Alternatively, storage can be used to provide grid support that will inherently increase the reliability of the system.
A53: Ben_33 | B53: Improved Power Quality | C53: Energy storage can be used to protect on-site loads downstream from storage against short-term duration events affecting power quality. Energy storage can also be located on the system and used to help regulate voltage thereby improving power quality for end-users. Manifestations of poor power quality include variations in voltage magnitude, variations in the primary 60-Hz frequency at which power is delivered, and interruptions in service ranging from a fraction of a second to several minutes. | D53: ="Defin_"&A53 -> Defin_Ben_33 | E53: Improved Power Quality - Energy storage can be used to protect on-site loads downstream from storage against short-term duration events affecting power quality. Energy storage can also be located on the system and used to help regulate voltage thereby improving power quality for end-users. Manifestations of poor power quality include variations in voltage magnitude, variations in the primary 60-Hz frequency at which power is delivered, and interruptions in service ranging from a fraction of a second to several minutes.
A54: Loc_1 | B54: Generation and Transmission | C54: Storage located on this part of the electricity delivery system is located between a generation source and a step-down substation which steps down voltage from transmission voltages or sub-transmission voltages to distribution voltages. Storage is also located on this part of the system if is located in the step-down substation and is located on the primary side of the transformer. | D54: Defin_Loc_1 | E54: Generation and Transmission - Storage located on this part of the electricity delivery system is located between a generation source and a step-down substation which steps down voltage from transmission voltages or sub-transmission voltages to distribution voltages. Storage is also located on this part of the system if is located in the step-down substation and is located on the primary side of the transformer.
A55: Loc_2 | B55: Distribution | C55: Storage located on this part of the electricity delivery system is located between a distribution step-down substation and the end-user. Storage is also located on this part of the system if it is located in the step-down substation and is located on the secondary side of the transformer. Furthermore, storage deployed in a “community energy storage” configuration is considered to be on this part of the system. Finally, this could also include energy storage in the form of electric vehicles charging at stations owned by the utility. | D55: Defin_Loc_2 | E55: Distribution - Storage located on this part of the electricity delivery system is located between a distribution step-down substation and the end-user. Storage is also located on this part of the system if it is located in the step-down substation and is located on the secondary side of the transformer. Furthermore, storage deployed in a “community energy storage” configuration is considered to be on this part of the system. Finally, this could also include energy storage in the form of electric vehicles charging at stations owned by the utility.
A56: Loc_3 | B56: End-User | C56: Storage located on this part of the electricity delivery system is located behind the end-users electric meter. This could include energy storage in the form of electric vehicles charging at residential, commercial or industrial locations. | D56: Defin_Loc_3 | E56: End-User - Storage located on this part of the electricity delivery system is located behind the end-users electric meter. This could include energy storage in the form of electric vehicles charging at residential, commercial or industrial locations.
A57: Mark_1 | B57: Regulated | C57: A regulated market is an electricity market which has not undergone deregulation. That is, utilities are allowed to operate as regulated, fully integrated, monopolies that own and operate generation assets, transmission assets, distribution assets, and act as the electricity retailer that interfaces with and bills customers. Rural cooperatives and municipal utilities would also fall into this market category. | D57: Defin_Mark_1 | E57: Regulated - A regulated market is an electricity market which has not undergone deregulation. That is, utilities are allowed to operate as regulated, fully integrated, monopolies that own and operate generation assets, transmission assets, distribution assets, and act as the electricity retailer that interfaces with and bills customers. Rural cooperatives and municipal utilities would also fall into this market category.
A58: Mark_2 | B58: Deregulated | C58: A deregulated market is an electricity market which has undergone deregulation. That is, laws have been enacted which broke up fully integrated utilities and precluded them from owning and operating both generation assets and infrastructure necessary to deliver electricity to end-users. Different degrees of deregulation exist, ranging from markets that simply do not allow utilities to own and operate generation units or participate in the power generation market, to markets that require that each part of the electricity generation and delivery system be owned and operated by separate entities. | D58: Defin_Mark_2 | E58: Deregulated - A deregulated market is an electricity market which has undergone deregulation. That is, laws have been enacted which broke up fully integrated utilities and precluded them from owning and operating both generation assets and infrastructure necessary to deliver electricity to end-users. Different degrees of deregulation exist, ranging from markets that simply do not allow utilities to own and operate generation units or participate in the power generation market, to markets that require that each part of the electricity generation and delivery system be owned and operated by separate entities.
A59: Own_1 | B59: Utility | C59: A generation utility, distribution utility, transmission utility, retail electricity provider, or any combination of these utilities such as a distribution & transmission utility. Rural cooperatives and municipal utilities are also in this owner category. In general, this owner category can operate in a regulated or deregulated market. | D59: Defin_Own_1 | E59: Utility - A generation utility, distribution utility, transmission utility, retail electricity provider, or any combination of these utilities such as a distribution & transmission utility. Rural cooperatives and municipal utilities are also in this owner category. In general, this owner category can operate in a regulated or deregulated market.
A60: Own_2 | B60: Non-Utility Merchant/Independent Power Producer | C60: This ownership category includes non-utility entities that operate in deregulated markets which own and operate generation assets to provide electricity and ancillary services. | D60: Defin_Own_2 | E60: Non-Utility Merchant/Independent Power Producer - This ownership category includes non-utility entities that operate in deregulated markets which own and operate generation assets to provide electricity and ancillary services.
A61: Own_3 | B61: End-User | C61: This ownership category includes residential, commercial, agricultural, and industrial electricity customers. | D61: Defin_Own_3 | E61: End-User - This ownership category includes residential, commercial, agricultural, and industrial electricity customers.
A62: Param_1 | B62: Nameplate Power (kW) | C62: The upper range of the operating power output. For example, an energy storage device may have a maximum power rating of 2MW but due to safety and device lifetime considerations the upper operating range of the energy storage device may be only 1.8MW. This parameter seeks to capture the operating power output. | D62: Defin_Param_1 | E62: Nameplate Power (kW) - The upper range of the operating power output. For example, an energy storage device may have a maximum power rating of 2MW but due to safety and device lifetime considerations the upper operating range of the energy storage device may be only 1.8MW. This parameter seeks to capture the operating power output.
A63: Param_2 | B63: Nameplate Energy (kWh) | C63: The upper range of the operating energy storage capacity. For example, an energy storage device may have a total energy storage capacity of 2 MWh if it were discharged from full state of charge to zero state of charge. However, due to safety and device lifetime considerations the energy storage may be typically operated between 20% and 80% state of charge. Therefore the upper range of operating energy storage capacity would be 1.2 MWh. This parameter seeks to capture this operating energy capacity. | D63: Defin_Param_2 | E63: Nameplate Energy (kWh) - The upper range of the operating energy storage capacity. For example, an energy storage device may have a total energy storage capacity of 2 MWh if it were discharged from full state of charge to zero state of charge. However, due to safety and device lifetime considerations the energy storage may be typically operated between 20% and 80% state of charge. Therefore the upper range of operating energy storage capacity would be 1.2 MWh. This parameter seeks to capture this operating energy capacity.
A64: Param_3 | B64: Nameplate Storage Response Time | C64: Ex. 56 | D64: Defin_Param_3 | E64: Nameplate Storage Response Time - Ex. 56
A65: Param_4 | B65: Nameplate Cycle Life | C65: The approximate number of cycles an energy storage device is expected to be able to complete before degradation to the point that the device can no longer meet the specifications required by the application. | D65: Defin_Param_4 | E65: Nameplate Cycle Life - The approximate number of cycles an energy storage device is expected to be able to complete before degradation to the point that the device can no longer meet the specifications required by the application.
A66: Param_5 | B66: Nameplate Calendar Life | C66: Ex. 58 | D66: Defin_Param_5 | E66: Nameplate Calendar Life - Ex. 58
A67: EcoParam_1 | B67: Assumed Project Life | C67: Ex. 59 | D67: Defin_EcoParam_1 | E67: =B67&" - "&C67 -> Assumed Project Life - Ex. 59
A68: EcoParam_2 | B68: Annual Inflation Rate | C68: This parameter is used to escalate energy and capacity prices and as well as any prices and costs used in the analysis. | D68: Defin_EcoParam_2 | E68: Annual Inflation Rate - This parameter is used to escalate energy and capacity prices and as well as any prices and costs used in the analysis.
A69: EcoParam_3 | B69: Discount Rate | C69: This parameter is used to discount future cash flows to account for the time value of money. One way to estimate this parameter is to determine the highest low-risk interest rate one could expect from a capital investment. | D69: Defin_EcoParam_3 | E69: Discount Rate - This parameter is used to discount future cash flows to account for the time value of money. One way to estimate this parameter is to determine the highest low-risk interest rate one could expect from a capital investment.
A70: EcoParam_4 | B70: Total Installed Cost | C70: Ex. 62 | D70: Defin_EcoParam_4 | E70: Total Installed Cost - Ex. 62
A71: EcoParam_5 | B71: Fixed Charge Rate | C71: Ex. 63 | D71: Defin_EcoParam_5 | E71: Fixed Charge Rate - Ex. 63
A72: EcoParam_6 | B72: Operating costs not related to energy (labor for operation, plant maintenance, equipment wear leading to loss-of-life) | C72: Ex. 64 | D72: Defin_EcoParam_6 | E72: Operating costs not related to energy (labor for operation, plant maintenance, equipment wear leading to loss-of-life) - Ex. 64
A73: EcoParam_7 | B73: Decommissioning and Disposal Costs | C73: Ex. 65 | D73: Defin_EcoParam_7 | E73: Decommissioning and Disposal Costs - Ex. 65
A74: ES_1 | B74: =INDIRECT(A74) -> Compressed Air Energy Storage | C74: A compressed air energy (CAES) storage device uses the physical potential energy in compressed air as its storage medium. An air compressor raises the pressure of air in a closed space, either an aboveground tank or an underground cavern, and then releases the stored air to power a gas turbine. CAES devices are generally used for large-scale storage (>10MWh) of energy over multiple hour periods. These devices have a response time slightly faster than conventional gas generators, but generally offer lesser ancillary services benefits compared to fast-response storage devices such as batteries. | D74: ="Defin_"&A74 -> Defin_ES_1 | E74: Compressed Air Energy Storage - A compressed air energy (CAES) storage device uses the physical potential energy in compressed air as its storage medium. An air compressor raises the pressure of air in a closed space, either an aboveground tank or an underground cavern, and then releases the stored air to power a gas turbine. CAES devices are generally used for large-scale storage (>10MWh) of energy over multiple hour periods. These devices have a response time slightly faster than conventional gas generators, but generally offer lesser ancillary services benefits compared to fast-response storage devices such as batteries.
A75: ES_2 | B75: Pumped Hydro Storage | C75: A pumped hydro storage unit uses the potential physical energy of water as its storage medium, providing energy storage by pumping water uphill, and discharging by allowing the water to flow through a turbine. Pumped hydro storage is capable of a very large energy capacity, depending on location, but generally cannot deliver a high power capacity. Pumped hydro is thus best suited for large-scale (>100MWh) time shifting. | D75: Defin_ES_2 | E75: Pumped Hydro Storage - A pumped hydro storage unit uses the potential physical energy of water as its storage medium, providing energy storage by pumping water uphill, and discharging by allowing the water to flow through a turbine. Pumped hydro storage is capable of a very large energy capacity, depending on location, but generally cannot deliver a high power capacity. Pumped hydro is thus best suited for large-scale (>100MWh) time shifting.
A76: ES_3 | B76: Flywheel Energy Storage | C76: A flywheel energy storage device uses a mechanical flywheel to physically store and discharge energy. Flywheels generally have a small energy capacity (<5MWh) but have a high power capacity and very rapid response time, and are thus best suited for provision of ancillary services. | D76: Defin_ES_3 | E76: Flywheel Energy Storage - A flywheel energy storage device uses a mechanical flywheel to physically store and discharge energy. Flywheels generally have a small energy capacity (<5MWh) but have a high power capacity and very rapid response time, and are thus best suited for provision of ancillary services.
A77: ES_4 | B77: Supercapacitor | C77: Supercapacitors (also known as ultracapacitors) are a specialized adaptation of the capacitors used in distribution systems. Supercapacitors can provide extremely rapid storage and discharge for very small amounts of energy (<100kWh), making them ideal for specialized ancillary service applications. | D77: Defin_ES_4 | E77: Supercapacitor - Supercapacitors (also known as ultracapacitors) are a specialized adaptation of the capacitors used in distribution systems. Supercapacitors can provide extremely rapid storage and discharge for very small amounts of energy (<100kWh), making them ideal for specialized ancillary service applications.
A78: ES_5 | B78: Battery (type unspecified) | C78: A battery storage device uses an electrochemical reaction to store energy. Many different types of battery are available, and lead acid, sodium sulfur, and lithium ion batteries are the most common for energy storage on a grid level. Batteries are usually not large enough for storage of the output entire power plants, with capacities under 10MWh, but they can provide rapid storage and discharge of smaller amounts of energy for multiple-minute time shift and ancillary service applications. | D78: Defin_ES_5 | E78: Battery (type unspecified) - A battery storage device uses an electrochemical reaction to store energy. Many different types of battery are available, and lead acid, sodium sulfur, and lithium ion batteries are the most common for energy storage on a grid level. Batteries are usually not large enough for storage of the output entire power plants, with capacities under 10MWh, but they can provide rapid storage and discharge of smaller amounts of energy for multiple-minute time shift and ancillary service applications.
A79: ES_6 | B79: Flow Battery (type unspecified) | C79: A flow battery storage device uses an electrolyte fluid in a fuel cell to reversibly store and create energy. Flow batteries are generally in the research and development stage. Similar to batteries, flow batteries can store small to medium amounts of energy (<5MWh) and provide storage and discharge for ancillary services. | D79: Defin_ES_6 | E79: Flow Battery (type unspecified) - A flow battery storage device uses an electrolyte fluid in a fuel cell to reversibly store and create energy. Flow batteries are generally in the research and development stage. Similar to batteries, flow batteries can store small to medium amounts of energy (<5MWh) and provide storage and discharge for ancillary services.

Sheet Introduction
B1: U.S. Department of Energy Storage Computational Tool (ESCT)
B2: Version 1.2
B4: Purpose of Tool: ESCT guides the user through an analysis to calculate the benefits of an energy storage deployment, compare costs and benefits, and gain a clearer understanding of the value of energy storage technology in terms of monetary benefit. Furthermore, the ESCT can be used to analyze how the costs and benefits vary given different scenarios and assumptions.
B5: Explanation of Output: The output of the ESCT consists of charts, graphs and tables that summarize the benefits and costs of an energy storage deployment. The benefits are monetized and calculated from actual or estimated metrics collected in the first five years of a project lifetime. Based on up to five years of data benefits can be projected out to 40 years in the future. The output also includes charts, graphs and tables that summarize the results of a sensitivity analysis. The user is able to set a high and low sensitivity range for each input in the tool and the output shows how the benefits are affected by variability of the inputs.
B6: Directions: The ESCT is designed to be user-friendly and easy to navigate. However, it will be useful to review the overall methodology of the tool before beginning a new analysis. The diagram below illustrates the tool architecture and the analysis methodology. The tool is divided into three distinct phases: the Asset Characterization Module (ACM), the Data Input Module (DIM), and the Computational Module (CM). The first phase, the ACM, collects information about the deployment such as characteristics of the energy storage technology, cost information, and the applications the deployment will be used for. From this input, the ACM determines a list of benefits that the project could yield. These potential project benefits are then fed into the second phase of the tool, the DIM. The DIM uses the list of benefits to determine the inputs required to calculate the benefits. The DIM then helps the user navigate through the process of entering the required data. The DIM's main purpose is to ensure that all the required data is entered in the proper format so that the benefits can be analyzed successfully. The input data is then fed into the final phase, the CM. The CM is the calculation engine of the tool, it crunches the numbers and generates the output. The CM also allows the user to carry out a sensitivity analysis if desired. To start a new analysis, click the blue button below and follow the directions that appear in each phase of the tool.
B31: Contact Information:
B32: Warren Wang
B33: Associate Director, Navigant, Energy Practice
B34: Wwang@navigant.com
B36: Colette Lamontagne
B37: Director, Navigant, Energy Practice
B38: Colette.Lamontagne@navigant.com
B40: David Feliciano
B41: Senior Consultant, Navigant, Energy Practice
B42: David.Feliciano@navigant.com
B46: Disclaimer: The work presented in this tool represents Navigant’s best efforts and judgments based on the best information available at the time that these materials were prepared. Navigant is not responsible for the reader’s use of, or reliance upon, the report, nor any decisions based on the results of the ESCT. Navigant does not make any representations, or warranties, expressed or implied. Users of this tool are advised that they assume all liabilities incurred by them, or third parties, as a result of their reliance on the tool, or the data, information, findings and opinions contained in the tool. This tool is not meant to be used as a budgeting or planning tool and is for educational purposes only. It in no way is meant to supplant discussion between planning engineers and vendors, professionals and experts.

Sheet Proj. Char. Module I --> (hidden)

Sheet Module I Input (hidden)
A1: Range Name | B1: Item | C1: Units | D1: Input
A2: input_Loc_1 | B2: =INDIRECT(MID(A2,7,20)) -> Generation and Transmission | C2: NA | D2: 1
A3: input_Loc_2 | B3: =INDIRECT(MID(A3,7,20)) -> Distribution | C3: NA | D3: 0
A4: input_Loc_3 | B4: End-User | C4: NA | D4: 0
A5: input_Mark_1 | B5: Regulated | C5: NA | D5: 0
A6: input_Mark_2 | B6: Deregulated | C6: NA | D6: 1
A7: input_Own_1 | B7: =INDIRECT(MID(A7,7,20)) -> Utility | C7: NA | D7: 0
A8: input_Own_2 | B8: Non-Utility Merchant/Independent Power Producer | C8: NA | D8: 1
A9: input_Own_3 | B9: End-User | C9: NA | D9: 0
A10: input_LMO_Code | B10: L-M-O Code | C10: NA | D10: =CONCATENATE(D2,D3,D4,D5,D6,D7,D8,D9) -> 10001010
A12: System Inputs
A13: Range Name | B13: Item | C13: Units | D13: Input
A14: input_Param_1 | B14: =INDIRECT(MID(A14,7,20)) -> Nameplate Power (kW) | C14: kW | D14: 1
A15: input_Param_2 | B15: =INDIRECT(MID(A15,7,20)) -> Nameplate Energy (kWh) | C15: kWh | D15: 1
A16: input_Param_3 | B16: Nameplate Storage Response Time | C16: seconds | D16: 0.001
A17: input_Param_4 | B17: Nameplate Cycle Life | C17: cycles | D17: 4500
A18: input_Param_5 | B18: Nameplate Calendar Life | C18: years | D18: 10
A19: input_Param_6 | B19: =INDIRECT(MID(A19,7,20)) -> Reactive Power Capability | C19: Yes/No | D19: Yes
A20: input_Param_7 | B20: Energy Storage Technology | C20: Text | D20: Battery, Lithium Ion
A21: input_Param_8 | B21: Output Duration | C21: hours | D21: =IFERROR(D15/D14,0) -> 1
A22: input_Param_9 | B22: =INDIRECT(MID(A22,7,20)) -> Storage System Round-trip Efficiency | C22: % | D22: 0.92
A23: input_Param_10 | B23: =INDIRECT(MID(A23,7,20)) -> Demand Growth | C23: % | D23: 0.02
A24: input_Param_11 | B24: =INDIRECT(MID(A24,7,20)) -> NERC Region | D24: NPCC Upstate NY
A26: Economic Inputs
A27: Range Name | B27: Item | D27: Input
A28: input_EcoParam_1 | B28: =INDIRECT(MID(A28,7,20)) -> Assumed Project Life | C28: Years | D28: 10
A29: input_EcoParam_2 | B29: =INDIRECT(MID(A29,7,20)) -> Annual Inflation Rate | C29: % | D29: 0.02
A30: input_EcoParam_3 | B30: =INDIRECT(MID(A30,7,20)) -> Discount Rate | C30: % | D30: 0.05
A31: input_EcoParam_4 | B31: Total Installed Cost | C31: $ | D31: 21700000
A32: input_EcoParam_5 | B32: Fixed Charge Rate | C32: % | D32: 0.11
A33: input_EcoParam_6 | B33: Operating costs not related to energy (labor for operation, plant maintenance, equipment wear leading to loss-of-life) | C33: $/year | D33: 160000
A34: input_EcoParam_7 | B34: Decommissioning and Disposal Costs | C34: $ | D34: 0
A35: input_EcoParam_8 | B35: Initial Year | C35: year | D35: 2011
A36: custom_maintenance_schedule | B36: Customer Maintenance Schedule? | C36: True/False | D36: FALSE
A38: Primary and Secondary Application
A39: primary_application | B39: Primary Application | C39: NA | D39: Electric Energy Time-shift
A40: secondary_application_1 | B40: Secondary Application # 1 | C40: NA | D40: No Secondary Applications
A41: secondary_application_2 | B41: Secondary Application # 2 | C41: NA | D41: No Secondary Applications
A42: LMO_A_Code_1 | B42: L-M-O-Application Code | C42: NA | D42: =input_LMO_Code&INDEX('Named Items'!$A$2:$A$20,MATCH(primary_application,'Named Items'!$B$2:$B$20,0)) -> 10001010App_1
A43: LMO_A_Code_2 | B43: L-M-O-Application Code | C43: NA | D43: =input_LMO_Code&INDEX('Named Items'!$A$2:$A$20,MATCH(secondary_application_1,'Named Items'!$B$2:$B$20,0)) -> 10001010App_19
A44: LMO_A_Code_3 | B44: L-M-O-Application Code | C44: NA | D44: =input_LMO_Code&INDEX('Named Items'!$A$2:$A$20,MATCH(secondary_application_2,'Named Items'!$B$2:$B$20,0)) -> 10001010App_19

Sheet Data Input Defaults (hidden)
A1: Location, Market, Owner | G1: Technology Selected
G2: =input_Param_7 -> Battery, Lithium Ion
A3: System Inputs | H3: ES_1 | J3: ES_2 | L3: ES_3 | N3: ES_4 | P3: ES_5 | R3: ES_6 | T3: ES_7 | V3: ES_8 | X3: ES_9 | Z3: ES_10 | AB3: ES_11 | AD3: ES_12 | AF3: ES_13
A4: Range Name | B4: Item | C4: Units | D4: Default Range Name | E4: Default Value | G4: 0 | H4: =INDIRECT(H3) -> Compressed Air Energy Storage | I4: Source ES 1 | J4: =INDIRECT(J3) -> Pumped Hydro Storage | K4: Source ES 2 | L4: Flywheel Energy Storage | M4: Source ES 3 | N4: Supercapacitor | O4: Source ES 4 | P4: Battery (type unspecified) | Q4: Source ES 5 | R4: Flow Battery (type unspecified) | S4: Source ES 6 | T4: Battery, Sodium Sulfur | U4: Source ES 7 | V4: Battery, Lead Acid | W4: Source ES 8 | X4: Battery, Advanced Lead Acid | Y4: Source ES 9 | Z4: Battery, Lithium Ion | AA4: Source ES 10 | AB4: Flow Battery, Zn-Br | AC4: Source ES 11 | AD4: Flow Battery, Fe-CR | AE4: Source ES 12 | AF4: Flow Battery, Vanadium | AG4: Source ES 13 | AH4: Overall Sources
A5: input_Param_1 | B5: =INDIRECT(MID(A5,7,20)) -> Nameplate Power (kW) | C5: kW | D5: ="default_"&A5 -> default_input_Param_1 | E5: =INDEX(G5:AG5,1, MATCH($G$2,$G$4:$AG$4,0)) -> 10000 | G5: 0 | H5: 180000 | I5: 1 | J5: 530000 | K5: 1 | L5: 20000 | M5: 1 | P5: 10000 | Q5: 1, 8 | R5: 5000 | S5: 1, 8 | T5: 10000 | U5: 1, 8 | V5: 10000 | W5: 1, 8 | X5: 10000 | Y5: 1, 8 | Z5: 10000 | AA5: 1, 8 | AB5: 5000 | AC5: 1, 8 | AD5: 5000 | AE5: 1, 8 | AF5: 5000 | AG5: 1, 8 | AH5: EPRI data provides bounds of maximum unit size. Navigant assumption based on market averages sets the default value.
A6: input_Param_2 | B6: Nameplate Energy (kWh) | C6: kWh | D6: ="default_"&A6 -> default_input_Param_2 | E6: 5000 | G6: 0 | H6: 800000 | I6: 1, 8 | J6: 2150000 | K6: 1, 8 | L6: 5000 | M6: 1 | P6: 5000 | Q6: 1, 8 | R6: 10000 | S6: 1, 8 | T6: 5000 | U6: 1, 8 | V6: 5000 | W6: 1, 8 | X6: 5000 | Y6: 1, 8 | Z6: 5000 | AA6: 1, 8 | AB6: 10000 | AC6: 1, 8 | AD6: 10000 | AE6: 1, 8 | AF6: 10000 | AG6: 1, 8 | AH6: EPRI data provides bounds of maximum unit size. Navigant assumption based on market averages sets the default value.
A7: input_Param_3 | B7: Nameplate Storage Response Time | C7: seconds | D7: default_input_Param_3 | E7: 0.001 | G7: 0 | H7: 60 | I7: 4, 8 | J7: 60 | K7: 4, 8 | L7: 0.001 | M7: 4, 8 | N7: 0.001 | O7: 4, 8 | P7: 0.001 | Q7: 4, 8 | R7: 0.001 | S7: 4, 8 | T7: 0.001 | U7: 4, 8 | V7: 0.001 | W7: 4, 8 | X7: 0.001 | Y7: 4, 8 | Z7: 0.001 | AA7: 4, 8 | AB7: 0.001 | AC7: 4, 8 | AD7: 0.001 | AE7: 4, 8 | AF7: 0.001 | AG7: 4, 8 | AH7: Navigant Assumption; Kema ES Select Tool
A8: input_Param_4 | B8: Nameplate Cycle Life | C8: cycles | D8: default_input_Param_4 | E8: 4500 | G8: 0 | H8: 13000 | I8: 1 | J8: 13000 | K8: 1 | L8: 100000 | M8: 1 | N8: 55000 | O8: 3 | P8: 4200 | Q8: 8 | R8: 10000 | S8: 8 | T8: 4500 | U8: 1 | V8: 3250 | W8: 1 | X8: 4500 | Y8: 1 | Z8: 4500 | AA8: 1 | AB8: 10000 | AC8: 1 | AD8: 10000 | AE8: 1 | AF8: 10000 | AG8: 1
A9: input_Param_5 | B9: Nameplate Calendar Life | C9: years | D9: default_input_Param_5 | E9: 10 | G9: 0 | H9: 10 | I9: 2, 8 | J9: 10 | K9: 2, 8 | L9: 10 | M9: 2, 8 | N9: 10 | O9: 2, 8 | P9: 10 | Q9: 2, 8 | R9: 10 | S9: 2, 8 | T9: 10 | U9: 2, 8 | V9: 10 | W9: 2, 8 | X9: 10 | Y9: 2, 8 | Z9: 10 | AA9: 2, 8 | AB9: 10 | AC9: 2, 8 | AD9: 10 | AE9: 2, 8 | AF9: 10 | AG9: 2, 8 | AH9: Navigant Assumption; Sandia ES Report
A10: input_Param_6 | B10: Reactive Power Capability | C10: Yes/No | D10: default_input_Param_6 | E10: Yes | G10: 0 | H10: Yes | I10: 8 | J10: Yes | K10: 8 | L10: Yes | M10: 8 | N10: Yes | O10: 8 | P10: Yes | Q10: 8 | R10: Yes | S10: 8 | T10: Yes | U10: 8 | V10: Yes | W10: 8 | X10: Yes | Y10: 8 | Z10: Yes | AA10: 8 | AB10: Yes | AC10: 8 | AD10: Yes | AE10: 8 | AF10: Yes | AG10: 8 | AH10: Navigant Assumption
A11: input_Param_9 | B11: Storage System Round-trip Efficiency | C11: % | D11: default_input_Param_9 | E11: 92 | G11: 0 | H11: 78 | I11: 1 | J11: 81 | K11: 1 | L11: 86 | M11: 1 | N11: 94 | O11: 3 | P11: 85 | Q11: 8 | R11: 70 | S11: 8 | T11: 75 | U11: 1 | V11: 87.5 | W11: 1 | X11: 82.5 | Y11: 1 | Z11: 92 | AA11: 1 | AB11: 62.5 | AC11: 1 | AD11: 75 | AE11: 1 | AF11: 67.5 | AG11: 1
A12: input_Param_10 | B12: Demand Growth | C12: % | D12: default_input_Param_10 | E12: 2 | G12: 0 | H12: 2 | I12: 6 | J12: 2 | K12: 6 | L12: 2 | M12: 6 | N12: 2 | O12: 6 | P12: 2 | Q12: 6 | R12: 2 | S12: 6 | T12: 2 | U12: 6 | V12: 2 | W12: 6 | X12: 2 | Y12: 6 | Z12: 2 | AA12: 6 | AB12: 2 | AC12: 6 | AD12: 2 | AE12: 6 | AF12: 2 | AG12: 6 | AH12: Estimate based on data from Source: 1990 - 2008 Retail Sales of Electricity by State by Sector by Provider (EIA-861), http://www.eia.doe.gov/cneaf/electricity/epa/epa_sprdshts.html
A14: Economic Inputs
A15: Range Name | B15: Item | C15: Units | D15: Default Range Name | E15: Input
A16: input_EcoParam_1 | B16: =INDIRECT(MID(A16,7,20)) -> Assumed Project Life | C16: Years | D16: ="default_"&A16 -> default_input_EcoParam_1 | E16: =INDEX(G16:AG16,1, MATCH($G$2,$G$4:$AG$4,0)) -> 10 | G16: 0 | H16: 10 | I16: 2, 8 | J16: 10 | K16: 2, 8 | L16: 10 | M16: 2, 8 | N16: 10 | O16: 2, 8 | P16: 10 | Q16: 2, 8 | R16: 10 | S16: 2, 8 | T16: 10 | U16: 2, 8 | V16: 10 | W16: 2, 8 | X16: 10 | Y16: 2, 8 | Z16: 10 | AA16: 2, 8 | AB16: 10 | AC16: 2, 8 | AD16: 10 | AE16: 2, 8 | AF16: 10 | AG16: 2, 8 | AH16: Navigant Assumption; Sandia ES Report
A17: input_EcoParam_2 | B17: Annual Inflation Rate | C17: % | D17: default_input_EcoParam_2 | E17: 2.4 | G17: 0 | H17: 2.4 | I17: 7 | J17: 2.4 | K17: 7 | L17: 2.4 | M17: 7 | N17: 2.4 | O17: 7 | P17: 2.4 | Q17: 7 | R17: 2.4 | S17: 7 | T17: 2.4 | U17: 7 | V17: 2.4 | W17: 7 | X17: 2.4 | Y17: 7 | Z17: 2.4 | AA17: 7 | AB17: 2.4 | AC17: 7 | AD17: 2.4 | AE17: 7 | AF17: 2.4 | AG17: 7 | AH17: Estimate based on data from US Bureau of Labor and Statistics CPI Database, All Urban Consumers (Current Series) (Consumer Price Index - CPI), http://www.bls.gov/cpi/#tables
A18: input_EcoParam_3 | B18: Discount Rate | C18: % | D18: default_input_EcoParam_3 | E18: 5 | G18: 0 | H18: 9 | J18: 5 | L18: 5 | N18: 5 | P18: 5 | R18: 5 | T18: 5 | V18: 5 | X18: 5 | Z18: 5 | AB18: 5 | AD18: 5 | AF18: 5 | AH18: Navigant Assumption
A19: input_EcoParam_4 | B19: Total Installed Cost | C19: $ | D19: default_input_EcoParam_4 | E19: 2950 | G19: 0 | H19: =H20*input_Param_1 -> 1125 | I19: 1 | J19: =J20*input_Param_1 -> 2700 | K19: 1 | L19: 250 | M19: 8 | N19: 230 | O19: 1 | P19: 0 | R19: 0 | T19: 3600 | U19: 1 | V19: 850 | W19: 1 | X19: 3300 | Y19: 1 | Z19: 2950 | AA19: 1 | AB19: 1840 | AC19: 1 | AD19: 1400 | AE19: 1 | AF19: 3155 | AG19: 1
B20: Total Installed Cost per kW | C20: $/kW | E20: 2950 | H20: 1125 | I20: 1 | J20: 2700 | K20: 1 | L20: 250 | M20: 8 | N20: 230 | O20: 1 | T20: 3600 | U20: 1 | V20: 850 | W20: 1 | X20: 3300 | Y20: 1 | Z20: 2950 | AA20: 1 | AB20: 1840 | AC20: 1 | AD20: 1400 | AE20: 1 | AF20: 3155 | AG20: 1 | AH20: EPRI 2010 unless otherwise noted
A21: input_EcoParam_5 | B21: Fixed Charge Rate | C21: % | D21: default_input_EcoParam_5 | E21: 15 | G21: 0 | H21: =IF(input_Own_1=1,11,15) -> 15 | I21: 2 | J21: =IF(input_Own_1=1,11,15) -> 15 | K21: 2 | L21: =IF(input_Own_1=1,11,15) -> 15 | M21: 2 | N21: =IF(input_Own_1=1,11,15) -> 15 | O21: 2 | P21: =IF(input_Own_1=1,11,15) -> 15 | Q21: 2 | R21: =IF(input_Own_1=1,11,15) -> 15 | S21: 2 | T21: =IF(input_Own_1=1,11,15) -> 15 | U21: 2 | V21: =IF(input_Own_1=1,11,15) -> 15 | W21: 2 | X21: =IF(input_Own_1=1,11,15) -> 15 | Y21: 2 | Z21: =IF(input_Own_1=1,11,15) -> 15 | AA21: 2 | AB21: =IF(input_Own_1=1,11,15) -> 15 | AC21: 2 | AD21: =IF(input_Own_1=1,11,15) -> 15 | AE21: 2 | AF21: =IF(input_Own_1=1,11,15) -> 15 | AG21: 2 | AH21: Sandia Report SAND2011-2730, Table 3. pg 13
A22: input_EcoParam_6 | B22: Operating costs not related to energy (labor for operation, plant maintenance, equipment wear leading to loss-of-life) | C22: $/year | D22: default_input_EcoParam_6 | E22: 21 | G22: 0 | H22: =H23*input_Param_1 -> 14.5 | I22: 3 | J22: 3.7 | K22: 3 | L22: 14 | M22: 3 | N22: 12 | O22: 3 | P22: 0 | R22: 0 | T22: 42 | U22: 3 | V22: 27 | W22: 3 | X22: 27 | Y22: 3 | Z22: 21 | AA22: 3 | AB22: 31 | AC22: 3 | AD22: 30 | AE22: 3 | AF22: 44 | AG22: 3
B23: Operating and maintenance costs not related to energy (labor for operation, plant maintenance, equipment wear leading to loss-of-life) | C23: $/kW-year | E23: 21 | H23: 14.5 | I23: 3 | J23: 3.7 | K23: 3 | L23: 14 | M23: 3 | N23: 12 | O23: 3 | T23: 42 | U23: 3 | V23: 27 | W23: 3 | X23: 27 | Y23: 3 | Z23: 21 | AA23: 3 | AB23: 31 | AC23: 3 | AD23: 30 | AE23: 8 | AF23: 44 | AG23: 3 | AH23: Duke (2010)
A24: input_EcoParam_7 | B24: Decommissioning and Disposal Costs | C24: $ | D24: default_input_EcoParam_7 | E24: 147.5 | G24: 0 | H24: =0.05*H19 -> 56.25 | I24: 1, 8 | J24: =0.05*J19 -> 135 | K24: 1, 8 | L24: 12.5 | M24: 1, 8 | N24: 11.5 | O24: 1, 8 | P24: 0 | R24: 0 | T24: 180 | U24: 1, 8 | V24: 42.5 | W24: 1, 8 | X24: 165 | Y24: 1, 8 | Z24: 147.5 | AA24: 1, 8 | AB24: 92 | AC24: 1, 8 | AD24: 70 | AE24: 1, 8 | AF24: 157.75 | AG24: 1, 8 | AH24: Estimate that disposal costs are 5% of installed costs.
AH27: # | AI27: Source
AH28: 1 | AI28: EPRI, 2010
AH29: 2 | AI29: Sandia, 2011
AH30: 3 | AI30: Duke, 2010
AH31: 4 | AI31: Kema ES Select Tool
AH32: 5 | AI32: Navigant, Estimating the Benefits of the ESS Program, 11/2009
AH33: 6 | AI33: EIA, "1990 - 2008 Retail Sales of Electricity by State by Sector by Provider (EIA-861)" 2009
AH34: 7 | AI34: US BLS, 2012
AH35: 8 | AI35: Navigant Assumption

Sheet Relational Matrices (hidden)
B1: Location, Market, Owner v.s. Applications
C2: Loc_1 | D2: Loc_2 | E2: Loc_3 | F2: Mark_1 | G2: Mark_2 | H2: Own_1 | I2: Own_2 | J2: Own_3
B3: Applications | C3: =INDIRECT(C2) -> Generation and Transmission | D3: Distribution | E3: End-User | F3: Regulated | G3: Deregulated | H3: Utility | I3: Non-Utility Merchant/Independent Power Producer | J3: End-User | K3: L-M-O Code | L3: L-M-O-Application Code | M3: Is the Application Possible?
A4: App_1 | B4: =INDIRECT(A4) -> Electric Energy Time-shift | C4: 1 | D4: 0 | E4: 0 | F4: 1 | G4: 0 | H4: 1 | I4: 0 | J4: 0 | K4: =CONCATENATE(C4,D4,E4,F4,G4,H4,I4,J4) -> 10010100 | L4: =K4&A4 -> 10010100App_1 | M4: =IF(EXACT(LMO_Code,K4),B4,"Invalid") -> Invalid
A5: App_1 | B5: Electric Energy Time-shift | C5: 0 | D5: 1 | E5: 0 | F5: 1 | G5: 0 | H5: 1 | I5: 0 | J5: 0 | K5: 01010100 | L5: =K5&A5 -> 01010100App_1 | M5: Invalid
A6: App_1 | B6: Electric Energy Time-shift | C6: 1 | D6: 0 | E6: 0 | F6: 0 | G6: 1 | H6: 0 | I6: 1 | J6: 0 | K6: 10001010 | L6: 10001010App_1 | M6: Electric Energy Time-shift
A7: App_1 | B7: Electric Energy Time-shift | C7: 0 | D7: 0 | E7: 0 | F7: 0 | G7: 0 | H7: 0 | I7: 0 | J7: 0 | K7: 00000000 | L7: 00000000App_1 | M7: Invalid
A8: App_2 | B8: Electric Supply Capacity | C8: 1 | D8: 0 | E8: 0 | F8: 1 | G8: 0 | H8: 1 | I8: 0 | J8: 0 | K8: 10010100 | L8: 10010100App_2 | M8: Invalid
A9: App_2 | B9: Electric Supply Capacity | C9: 1 | D9: 0 | E9: 0 | F9: 0 | G9: 1 | H9: 0 | I9: 1 | J9: 0 | K9: 10001010 | L9: 10001010App_2 | M9: Electric Supply Capacity
A10: App_3 | B10: Load Following | C10: 1 | D10: 0 | E10: 0 | F10: 1 | G10: 0 | H10: 1 | I10: 0 | J10: 0 | K10: 10010100 | L10: 10010100App_3 | M10: Invalid
A11: App_3 | B11: Load Following | C11: 1 | D11: 0 | E11: 0 | F11: 0 | G11: 1 | H11: 0 | I11: 1 | J11: 0 | K11: 10001010 | L11: 10001010App_3 | M11: Load Following
A12: App_4 | B12: Area Regulation | C12: 1 | D12: 0 | E12: 0 | F12: 1 | G12: 0 | H12: 1 | I12: 0 | J12: 0 | K12: 10010100 | L12: 10010100App_4 | M12: Invalid
A13: App_4 | B13: Area Regulation | C13: 1 | D13: 0 | E13: 0 | F13: 0 | G13: 1 | H13: 0 | I13: 1 | J13: 0 | K13: 10001010 | L13: 10001010App_4 | M13: Area Regulation
A14: App_5 | B14: Electric Supply Reserve Capacity | C14: 1 | D14: 0 | E14: 0 | F14: 1 | G14: 0 | H14: 1 | I14: 0 | J14: 0 | K14: 10010100 | L14: 10010100App_5 | M14: Invalid
A15: App_5 | B15: Electric Supply Reserve Capacity | C15: 1 | D15: 0 | E15: 0 | F15: 0 | G15: 1 | H15: 0 | I15: 1 | J15: 0 | K15: 10001010 | L15: 10001010App_5 | M15: Electric Supply Reserve Capacity
A16: App_6 | B16: Voltage Support | C16: 1 | D16: 0 | E16: 0 | F16: 1 | G16: 0 | H16: 1 | I16: 0 | J16: 0 | K16: 10010100 | L16: 10010100App_6 | M16: Invalid
A17: App_6 | B17: Voltage Support | C17: 1 | D17: 0 | E17: 0 | F17: 0 | G17: 1 | H17: 0 | I17: 1 | J17: 0 | K17: 10001010 | L17: 10001010App_6 | M17: Voltage Support
A18: App_6 | B18: Voltage Support | C18: 0 | D18: 1 | E18: 0 | F18: 1 | G18: 0 | H18: 1 | I18: 0 | J18: 0 | K18: 01010100 | L18: 01010100App_6 | M18: Invalid
A19: App_6 | B19: Voltage Support | C19: 0 | D19: 1 | E19: 0 | F19: 0 | G19: 1 | H19: 1 | I19: 0 | J19: 0 | K19: 01001100 | L19: 01001100App_6 | M19: Invalid
A20: App_7 | B20: Transmission Support | C20: 1 | D20: 0 | E20: 0 | F20: 1 | G20: 0 | H20: 1 | I20: 0 | J20: 0 | K20: 10010100 | L20: 10010100App_7 | M20: Invalid
A21: App_7 | B21: Transmission Support | C21: 1 | D21: 0 | E21: 0 | F21: 0 | G21: 1 | H21: 1 | I21: 0 | J21: 0 | K21: 10001100 | L21: 10001100App_7 | M21: Invalid
A22: App_8 | B22: Transmission Congestion Relief | C22: 1 | D22: 0 | E22: 0 | F22: 1 | G22: 0 | H22: 1 | I22: 0 | J22: 0 | K22: 10010100 | L22: 10010100App_8 | M22: Invalid
A23: App_8 | B23: Transmission Congestion Relief | C23: 0 | D23: 0 | E23: 0 | F23: 0 | G23: 0 | H23: 0 | I23: 0 | J23: 0 | K23: 00000000 | L23: 00000000App_8 | M23: Invalid
A24: App_8 | B24: =INDIRECT(A24) -> Transmission Congestion Relief | C24: 1 | D24: 0 | E24: 0 | F24: 0 | G24: 1 | H24: 0 | I24: 1 | J24: 0 | K24: 10001010 | L24: 10001010App_8 | M24: Transmission Congestion Relief
A25: App_8 | B25: Transmission Congestion Relief | C25: 0 | D25: 0 | E25: 0 | F25: 0 | G25: 0 | H25: 0 | I25: 0 | J25: 0 | K25: 00000000 | L25: 00000000App_8 | M25: Invalid
A26: App_9 | B26: Transmission & Distribution (T&D) Upgrade Deferral | C26: 1 | D26: 0 | E26: 0 | F26: 1 | G26: 0 | H26: 1 | I26: 0 | J26: 0 | K26: 10010100 | L26: 10010100App_9 | M26: Invalid
A27: App_9 | B27: Transmission & Distribution (T&D) Upgrade Deferral | C27: 1 | D27: 0 | E27: 0 | F27: 0 | G27: 1 | H27: 1 | I27: 0 | J27: 0 | K27: 10001100 | L27: 10001100App_9 | M27: Invalid
A28: App_9 | B28: Transmission & Distribution (T&D) Upgrade Deferral | C28: 0 | D28: 1 | E28: 0 | F28: 1 | G28: 0 | H28: 1 | I28: 0 | J28: 0 | K28: =CONCATENATE(C28,D28,E28,F28,G28,H28,I28,J28) -> 01010100 | L28: 01010100App_9 | M28: Invalid
A29: App_9 | B29: Transmission & Distribution (T&D) Upgrade Deferral | C29: 0 | D29: 1 | E29: 0 | F29: 0 | G29: 1 | H29: 1 | I29: 0 | J29: 0 | K29: 01001100 | L29: 01001100App_9 | M29: Invalid
A30: App_10 | B30: Substation On-site Power | C30: 0 | D30: 0 | E30: 0 | F30: 0 | G30: 0 | H30: 0 | I30: 0 | J30: 0 | K30: 00000000 | L30: 00000000App_10 | M30: Invalid
A31: App_11 | B31: Time-of-use (TOU) Energy Cost Management | C31: 0 | D31: 0 | E31: 1 | F31: 1 | G31: 0 | H31: 0 | I31: 0 | J31: 1 | K31: 00110001 | L31: 00110001App_11 | M31: Invalid
A32: App_11 | B32: Time-of-use (TOU) Energy Cost Management | C32: 0 | D32: 0 | E32: 1 | F32: 0 | G32: 1 | H32: 0 | I32: 0 | J32: 1 | K32: 00101001 | L32: 00101001App_11 | M32: Invalid
A33: App_12 | B33: Demand Charge Management | C33: 0 | D33: 0 | E33: 1 | F33: 1 | G33: 0 | H33: 0 | I33: 0 | J33: 1 | K33: 00110001 | L33: 00110001App_12 | M33: Invalid
A34: App_12 | B34: Demand Charge Management | C34: 0 | D34: 0 | E34: 1 | F34: 0 | G34: 1 | H34: 0 | I34: 0 | J34: 1 | K34: =CONCATENATE(C34,D34,E34,F34,G34,H34,I34,J34) -> 00101001 | L34: 00101001App_12 | M34: Invalid
A35: App_13 | B35: =INDIRECT(A35) -> Electric Service Reliability | C35: 1 | D35: 0 | E35: 0 | F35: 1 | G35: 0 | H35: 1 | I35: 0 | J35: 0 | K35: 10010100 | L35: 10010100App_13 | M35: =IF(EXACT(LMO_Code,K35),B35,"Invalid") -> Invalid
A36: App_13 | B36: Electric Service Reliability | C36: 1 | D36: 0 | E36: 0 | F36: 0 | G36: 1 | H36: 1 | I36: 0 | J36: 0 | K36: 10001100 | L36: 10001100App_13 | M36: Invalid
A37: App_13 | B37: Electric Service Reliability | C37: 0 | D37: 1 | E37: 0 | F37: 1 | G37: 0 | H37: 1 | I37: 0 | J37: 0 | K37: 01010100 | L37: 01010100App_13 | M37: Invalid
A38: App_13 | B38: Electric Service Reliability | C38: 0 | D38: 1 | E38: 0 | F38: 0 | G38: 1 | H38: 1 | I38: 0 | J38: 0 | K38: 01001100 | L38: 01001100App_13 | M38: Invalid
A39: App_13 | B39: Electric Service Reliability | C39: 0 | D39: 0 | E39: 1 | F39: 1 | G39: 0 | H39: 0 | I39: 0 | J39: 1 | K39: 00110001 | L39: 00110001App_13 | M39: Invalid
A40: App_13 | B40: Electric Service Reliability | C40: 0 | D40: 0 | E40: 1 | F40: 0 | G40: 1 | H40: 0 | I40: 0 | J40: 1 | K40: 00101001 | L40: 00101001App_13 | M40: Invalid
A41: App_14 | B41: Electric Service Power Quality | C41: 0 | D41: 0 | E41: 1 | F41: 1 | G41: 0 | H41: 0 | I41: 0 | J41: 1 | K41: 00110001 | L41: 00110001App_14 | M41: Invalid
A42: App_14 | B42: Electric Service Power Quality | C42: 0 | D42: 0 | E42: 1 | F42: 0 | G42: 1 | H42: 0 | I42: 0 | J42: 1 | K42: =CONCATENATE(C42,D42,E42,F42,G42,H42,I42,J42) -> 00101001 | L42: 00101001App_14 | M42: Invalid
A43: App_15 | B43: Renewables Energy Time-shift | C43: 1 | D43: 0 | E43: 0 | F43: 1 | G43: 0 | H43: 1 | I43: 0 | J43: 0 | K43: 10010100 | L43: 10010100App_15 | M43: Invalid
A44: App_15 | B44: Renewables Energy Time-shift | C44: 0 | D44: 1 | E44: 0 | F44: 1 | G44: 0 | H44: 1 | I44: 0 | J44: 0 | K44: 01010100 | L44: 01010100App_15 | M44: Invalid
A45: App_15 | B45: Renewables Energy Time-shift | C45: 1 | D45: 0 | E45: 0 | F45: 0 | G45: 1 | H45: 0 | I45: 1 | J45: 0 | K45: 10001010 | L45: 10001010App_15 | M45: Renewables Energy Time-shift
A46: App_15 | B46: Renewables Energy Time-shift | C46: 0 | D46: 1 | E46: 0 | F46: 0 | G46: 1 | H46: 0 | I46: 1 | J46: 0 | K46: 01001010 | L46: 01001010App_15 | M46: Invalid
A47: App_15 | B47: Renewables Energy Time-shift | C47: 0 | D47: 0 | E47: 1 | F47: 1 | G47: 0 | H47: 0 | I47: 0 | J47: 1 | K47: 00110001 | L47: 00110001App_15 | M47: Invalid
A48: App_15 | B48: Renewables Energy Time-shift | C48: 0 | D48: 0 | E48: 1 | F48: 0 | G48: 1 | H48: 0 | I48: 0 | J48: 1 | K48: =CONCATENATE(C48,D48,E48,F48,G48,H48,I48,J48) -> 00101001 | L48: 00101001App_15 | M48: Invalid
A49: App_16 | B49: Renewables Capacity Firming | C49: 1 | D49: 0 | E49: 0 | F49: 1 | G49: 0 | H49: 1 | I49: 0 | J49: 0 | K49: 10010100 | L49: 10010100App_16 | M49: Invalid
A50: App_16 | B50: Renewables Capacity Firming | C50: 1 | D50: 0 | E50: 0 | F50: 0 | G50: 1 | H50: 0 | I50: 1 | J50: 0 | K50: 10001010 | L50: 10001010App_16 | M50: Renewables Capacity Firming
A51: App_17 | B51: Wind Generation Grid Integration - Short Duration | C51: 1 | D51: 0 | E51: 0 | F51: 1 | G51: 0 | H51: 1 | I51: 0 | J51: 0 | K51: 10010100 | L51: 10010100App_17 | M51: Invalid
A52: App_17 | B52: Wind Generation Grid Integration - Short Duration | C52: 1 | D52: 0 | E52: 0 | F52: 0 | G52: 1 | H52: 0 | I52: 1 | J52: 0 | K52: 10001010 | L52: 10001010App_17 | M52: Wind Generation Grid Integration - Short Duration
A53: App_18 | B53: Wind Generation Grid Integration - Long Duration | C53: 1 | D53: 0 | E53: 0 | F53: 1 | G53: 0 | H53: 1 | I53: 0 | J53: 0 | K53: 10010100 | L53: 10010100App_18 | M53: Invalid
A54: App_18 | B54: Wind Generation Grid Integration - Long Duration | C54: 0 | D54: 1 | E54: 0 | F54: 1 | G54: 0 | H54: 1 | I54: 0 | J54: 0 | K54: 01010100 | L54: 01010100App_18 | M54: Invalid
A55: App_18 | B55: Wind Generation Grid Integration - Long Duration | C55: 1 | D55: 0 | E55: 0 | F55: 0 | G55: 1 | H55: 0 | I55: 1 | J55: 0 | K55: 10001010 | L55: 10001010App_18 | M55: Wind Generation Grid Integration - Long Duration
A56: App_18 | B56: Wind Generation Grid Integration - Long Duration | C56: 0 | D56: 1 | E56: 0 | F56: 0 | G56: 1 | H56: 0 | I56: 1 | J56: 0 | K56: 01001010 | L56: 01001010App_18 | M56: Invalid
M57: Invalid
L58: =K58&A58 ->  | M58: =IF(EXACT(LMO_Code,K58),B58,"Invalid") -> Invalid
L59: =K59&A59 ->  | M59: =IF(EXACT(LMO_Code,K59),B59,"Invalid") -> Invalid
L60: =K60&A60 ->  | M60: =IF(EXACT(LMO_Code,K60),B60,"Invalid") -> Invalid
M61: Invalid
B63: Power Output vs. Applications | C63: Low (kW) | D63: High (kW) | E63: Source: Sandia Report SAND2010-0815, Table 4. pg 23
A64: App_1 | B64: =INDIRECT(A64) -> Electric Energy Time-shift | C64: 1000 | D64: 500000
A65: App_2 | B65: Electric Supply Capacity | C65: 1000 | D65: 500000
A66: App_3 | B66: Load Following | C66: 1000 | D66: 500000
A67: App_4 | B67: Area Regulation | C67: 1000 | D67: 40000
A68: App_5 | B68: Electric Supply Reserve Capacity | C68: 1000 | D68: 500000
A69: App_6 | B69: Voltage Support | C69: 1000 | D69: 10000
A70: App_7 | B70: Transmission Support | C70: 10000 | D70: 100000
A71: App_8 | B71: Transmission Congestion Relief | C71: 1000 | D71: 100000
A72: App_9 | B72: Transmission & Distribution (T&D) Upgrade Deferral | C72: 250 | D72: 10000
A73: App_10 | B73: Substation On-site Power | C73: 1.5 | D73: 5
A74: App_11 | B74: Time-of-use (TOU) Energy Cost Management | C74: 1 | D74: 2000
A75: App_12 | B75: Demand Charge Management | C75: 50 | D75: 10000
A76: App_13 | B76: Electric Service Reliability | C76: 0.2 | D76: 10000
A77: App_14 | B77: Electric Service Power Quality | C77: 0.2 | D77: 10000
A78: App_15 | B78: Renewables Energy Time-shift | C78: 1 | D78: 500000
A79: App_16 | B79: Renewables Capacity Firming | C79: 1 | D79: 500000
A80: App_17 | B80: Wind Generation Grid Integration - Short Duration | C80: 0.2 | D80: 500000
A81: App_18 | B81: Wind Generation Grid Integration - Long Duration | C81: 0.2 | D81: 500000
B83: Duration of Discharge vs. Applications | C83: Low (h) | D83: High (h) | E83: Duration (L= long, S= short) | F83: Frequency ( F = Frequent, O = Occasional) | G83: Source: Sandia Report SAND2010-0815, Table 4. pg 23; Sandia Report SAND2011-2730, Table 1. pg 9
A84: App_1 | B84: =INDIRECT(A84) -> Electric Energy Time-shift | C84: 2 | D84: 8 | E84: L | F84: F
A85: App_2 | B85: Electric Supply Capacity | C85: 2 | D85: 8 | E85: L | F85: F
A86: App_3 | B86: Load Following | C86: 2 | D86: 4 | E86: L | F86: F
A87: App_4 | B87: Area Regulation | C87: 0.25 | D87: 0.5 | E87: S | F87: F
A88: App_5 | B88: Electric Supply Reserve Capacity | C88: 1 | D88: 2 | E88: L | F88: O
A89: App_6 | B89: Voltage Support | C89: 0.25 | D89: 1 | E89: S | F89: F
A90: App_7 | B90: Transmission Support | C90: =2/3600 -> 0.0005555555556 | D90: =5/3600 -> 0.001388888889 | E90: S | F90: O
A91: App_8 | B91: Transmission Congestion Relief | C91: 2 | D91: 6 | E91: L | F91: O
A92: App_9 | B92: Transmission & Distribution (T&D) Upgrade Deferral | C92: 2 | D92: 6 | E92: L | F92: O
A93: App_10 | B93: Substation On-site Power | C93: 8 | D93: 16 | E93: L | F93: F
A94: App_11 | B94: Time-of-use (TOU) Energy Cost Management | C94: 2 | D94: 6 | E94: L | F94: F
A95: App_12 | B95: Demand Charge Management | C95: 2 | D95: 11 | E95: L | F95: F
A96: App_13 | B96: Electric Service Reliability | C96: =5/60 -> 0.08333333333 | D96: 4 | E96: L | F96: O
A97: App_14 | B97: Electric Service Power Quality | C97: 0.002777777778 | D97: =1/60 -> 0.01666666667 | E97: S | F97: O
A98: App_15 | B98: Renewables Energy Time-shift | C98: 2 | D98: 5 | E98: L | F98: F
A99: App_16 | B99: Renewables Capacity Firming | C99: 1 | D99: 4 | E99: L | F99: F
A100: App_17 | B100: Wind Generation Grid Integration - Short Duration | C100: 1 | D100: 4 | E100: L | F100: F
A101: App_18 | B101: Wind Generation Grid Integration - Long Duration | C101: 2 | D101: 5 | E101: L | F101: F
B104: Synergies: Primary Applications vs. Secondary Appliactions
C105: App_1 | D105: App_2 | E105: App_3 | F105: App_4 | G105: App_5 | H105: App_6 | I105: App_7 | J105: App_8 | K105: App_9 | L105: App_10 | M105: App_11 | N105: App_12 | O105: App_13 | P105: App_14 | Q105: App_15 | R105: App_16 | S105: App_17 | T105: App_18
B106: Primary Applications | C106: =INDIRECT(C105) -> Electric Energy Time-shift | D106: =INDIRECT(D105) -> Electric Supply Capacity | E106: Load Following | F106: Area Regulation | G106: Electric Supply Reserve Capacity | H106: Voltage Support | I106: Transmission Support | J106: Transmission Congestion Relief | K106: Transmission & Distribution (T&D) Upgrade Deferral | L106: =INDIRECT(L105) -> Substation On-site Power | M106: Time-of-use (TOU) Energy Cost Management | N106: Demand Charge Management | O106: Electric Service Reliability | P106: Electric Service Power Quality | Q106: Renewables Energy Time-shift | R106: Renewables Capacity Firming | S106: Wind Generation Grid Integration - Short Duration | T106: Wind Generation Grid Integration - Long Duration
A107: App_1 | B107: =INDIRECT(A107) -> Electric Energy Time-shift | C107: 0 | D107: 1 | E107: 0 | F107: 0 | G107: 0 | H107: 0 | I107: 0 | J107: 1 | K107: 1 | L107: 0 | M107: 0 | N107: 0 | O107: 0 | P107: 0 | Q107: 1 | R107: 0 | S107: 0 | T107: 1
A108: App_2 | B108: Electric Supply Capacity | C108: 1 | D108: 0 | E108: 0 | F108: 0 | G108: 0 | H108: 0 | I108: 0 | J108: 1 | K108: 1 | L108: 0 | M108: 0 | N108: 0 | O108: 0 | P108: 0 | Q108: 1 | R108: 0 | S108: 0 | T108: 1
A109: App_3 | B109: Load Following | C109: 0 | D109: 0 | E109: 0 | F109: 1 | G109: 1 | H109: 1 | I109: 1 | J109: 0 | K109: 0 | L109: 0 | M109: 0 | N109: 0 | O109: 0 | P109: 0 | Q109: 0 | R109: 1 | S109: 1 | T109: 0
A110: App_4 | B110: Area Regulation | C110: 0 | D110: 0 | E110: 1 | F110: 1 | G110: 1 | H110: 1 | I110: 1 | J110: 0 | K110: 0 | L110: 0 | M110: 0 | N110: 0 | O110: 0 | P110: 0 | Q110: 0 | R110: 1 | S110: 1 | T110: 0
A111: App_5 | B111: Electric Supply Reserve Capacity | C111: 0 | D111: 0 | E111: 1 | F111: 1 | G111: 0 | H111: 1 | I111: 1 | J111: 0 | K111: 0 | L111: 0 | M111: 0 | N111: 0 | O111: 0 | P111: 0 | Q111: 0 | R111: 1 | S111: 1 | T111: 0
A112: App_6 | B112: Voltage Support | C112: 0 | D112: 0 | E112: 1 | F112: 1 | G112: 1 | H112: 0 | I112: 1 | J112: 0 | K112: 0 | L112: 0 | M112: 0 | N112: 0 | O112: 0 | P112: 0 | Q112: 0 | R112: 1 | S112: 1 | T112: 0
A113: App_7 | B113: Transmission Support | C113: 0 | D113: 0 | E113: 1 | F113: 1 | G113: 1 | H113: 1 | I113: 0 | J113: 0 | K113: 0 | L113: 0 | M113: 0 | N113: 0 | O113: 0 | P113: 0 | Q113: 0 | R113: 1 | S113: 1 | T113: 0
A114: App_8 | B114: Transmission Congestion Relief | C114: 1 | D114: 1 | E114: 0 | F114: 0 | G114: 0 | H114: 0 | I114: 0 | J114: 0 | K114: 1 | L114: 0 | M114: 0 | N114: 0 | O114: 0 | P114: 0 | Q114: 1 | R114: 0 | S114: 0 | T114: 1
A115: App_9 | B115: Transmission & Distribution (T&D) Upgrade Deferral | C115: 1 | D115: 1 | E115: 0 | F115: 0 | G115: 0 | H115: 0 | I115: 0 | J115: 1 | K115: 0 | L115: 0 | M115: 0 | N115: 0 | O115: 0 | P115: 0 | Q115: 1 | R115: 0 | S115: 0 | T115: 1
A116: App_10 | B116: Substation On-site Power | C116: 0 | D116: 0 | E116: 0 | F116: 0 | G116: 0 | H116: 0 | I116: 0 | J116: 0 | K116: 0 | L116: 0 | M116: 0 | N116: 0 | O116: 0 | P116: 0 | Q116: 0 | R116: 0 | S116: 0 | T116: 0
A117: App_11 | B117: Time-of-use (TOU) Energy Cost Management | C117: 0 | D117: 0 | E117: 0 | F117: 0 | G117: 0 | H117: 0 | I117: 0 | J117: 0 | K117: 0 | L117: 0 | M117: 0 | N117: 1 | O117: 1 | P117: 1 | Q117: 0 | R117: 0 | S117: 0 | T117: 0
A118: App_12 | B118: Demand Charge Management | C118: 0 | D118: 0 | E118: 0 | F118: 0 | G118: 0 | H118: 0 | I118: 0 | J118: 0 | K118: 0 | L118: 0 | M118: 1 | N118: 0 | O118: 1 | P118: 1 | Q118: 0 | R118: 0 | S118: 0 | T118: 0
A119: App_13 | B119: Electric Service Reliability | C119: 0 | D119: 0 | E119: 0 | F119: 0 | G119: 0 | H119: 0 | I119: 0 | J119: 0 | K119: 0 | L119: 0 | M119: 0 | N119: 0 | O119: 0 | P119: 0 | Q119: 0 | R119: 0 | S119: 0 | T119: 0
A120: App_14 | B120: Electric Service Power Quality | C120: 0 | D120: 0 | E120: 0 | F120: 0 | G120: 0 | H120: 0 | I120: 0 | J120: 0 | K120: 0 | L120: 0 | M120: 0 | N120: 0 | O120: 0 | P120: 0 | Q120: 0 | R120: 0 | S120: 0 | T120: 0
A121: App_15 | B121: Renewables Energy Time-shift | C121: 1 | D121: 1 | E121: 0 | F121: 0 | G121: 0 | H121: 0 | I121: 0 | J121: 1 | K121: 1 | L121: 0 | M121: 1 | N121: 1 | O121: 0 | P121: 0 | Q121: 1 | R121: 0 | S121: 0 | T121: 1
A122: App_16 | B122: Renewables Capacity Firming | C122: 0 | D122: 0 | E122: 1 | F122: 1 | G122: 1 | H122: 1 | I122: 1 | J122: 0 | K122: 0 | L122: 0 | M122: 0 | N122: 0 | O122: 0 | P122: 0 | Q122: 0 | R122: 0 | S122: 1 | T122: 0
A123: App_17 | B123: Wind Generation Grid Integration - Short Duration | C123: 0 | D123: 0 | E123: 1 | F123: 1 | G123: 1 | H123: 1 | I123: 0 | J123: 0 | K123: 0 | L123: 0 | M123: 0 | N123: 0 | O123: 0 | P123: 0 | Q123: 0 | R123: 1 | S123: 0 | T123: 0
A124: App_18 | B124: Wind Generation Grid Integration - Long Duration | C124: 1 | D124: 1 | E124: 0 | F124: 0 | G124: 0 | H124: 0 | I124: 0 | J124: 1 | K124: 1 | L124: 0 | M124: 0 | N124: 0 | O124: 0 | P124: 0 | Q124: 1 | R124: 0 | S124: 0 | T124: 1
B126: Energy Requirements vs. Applications | C126: Low (kWh)
A127: App_1 | B127: =INDIRECT(A127) -> Electric Energy Time-shift | C127: =C64*C84 -> 2000
A128: App_2 | B128: Electric Supply Capacity | C128: =C65*C85 -> 2000
A129: App_3 | B129: Load Following | C129: 2000
A130: App_4 | B130: Area Regulation | C130: 250
A131: App_5 | B131: Electric Supply Reserve Capacity | C131: 1000
A132: App_6 | B132: Voltage Support | C132: 250
A133: App_7 | B133: Transmission Support | C133: 5.555555556
A134: App_8 | B134: Transmission Congestion Relief | C134: 2000
A135: App_9 | B135: Transmission & Distribution (T&D) Upgrade Deferral | C135: 500
A136: App_10 | B136: Substation On-site Power | C136: 12
A137: App_11 | B137: Time-of-use (TOU) Energy Cost Management | C137: 2
A138: App_12 | B138: Demand Charge Management | C138: 100
A139: App_13 | B139: Electric Service Reliability | C139: 0.01666666667
A140: App_14 | B140: Electric Service Power Quality | C140: 0.0005555555556
A141: App_15 | B141: Renewables Energy Time-shift | C141: 2
A142: App_16 | B142: Renewables Capacity Firming | C142: 1
A143: App_17 | B143: Wind Generation Grid Integration - Short Duration | C143: 0.2
A144: App_18 | B144: Wind Generation Grid Integration - Long Duration | C144: 0.4

Sheet Available & Selected App (hidden)
B1: Going down these colums shows the results of individual Fileters. To the right are the results of those combined filters. | H1: Primary Appliactions Available | L1: Primary Application Chosen | P1: Ideal Secondary Appliactions Available | T1: Secondary Applications Chosen
B2: Available Applications Based on L-M-O Code | G2: Available Primary Applications Based on all conditions | O2: Available Applications Based on L-M-O Code and Primary Chosen
B3: App_1 | C3: =INDIRECT(B3) -> Electric Energy Time-shift | D3: =IF(ISERROR(INDEX('Relational Matrices'!$M$4:$M$61,MATCH(C3,'Relational Matrices'!$M$4:$M$61,0))),0,1) -> 1 | G3: App_1 | H3: =INDIRECT(G3) -> Electric Energy Time-shift | I3: =D3*D23*D64*D43 -> 0 | K3: App_1 | L3: =INDIRECT(K3) -> Electric Energy Time-shift | M3: =IF(L3=primary_application,1,0) -> 1 | O3: App_1 | P3: =INDIRECT(O3) -> Electric Energy Time-shift | Q3: =MMULT(TRANSPOSE('Relational Matrices'!C107:T124),M3:M20)*I3:I20 -> 0 | S3: App_1 | T3: =INDIRECT(S3) -> Electric Energy Time-shift | U3: =IF(OR(T3=secondary_application_1,T3=secondary_application_2),1,0) -> 0
B4: App_2 | C4: Electric Supply Capacity | D4: =IF(ISERROR(INDEX('Relational Matrices'!$M$4:$M$61,MATCH(C4,'Relational Matrices'!$M$4:$M$61,0))),0,1) -> 1 | G4: App_2 | H4: Electric Supply Capacity | I4: =D4*D24*D65*D44 -> 0 | K4: App_2 | L4: Electric Supply Capacity | M4: =IF(L4=primary_application,1,0) -> 0 | O4: App_2 | P4: Electric Supply Capacity | Q4: 0 | S4: App_2 | T4: Electric Supply Capacity | U4: 0
B5: App_3 | C5: Load Following | D5: =IF(ISERROR(INDEX('Relational Matrices'!$M$4:$M$61,MATCH(C5,'Relational Matrices'!$M$4:$M$61,0))),0,1) -> 1 | G5: App_3 | H5: Load Following | I5: =D5*D25*D66*D45 -> 0 | K5: App_3 | L5: Load Following | M5: 0 | O5: App_3 | P5: Load Following | Q5: 0 | S5: App_3 | T5: Load Following | U5: 0
B6: App_4 | C6: Area Regulation | D6: =IF(ISERROR(INDEX('Relational Matrices'!$M$4:$M$61,MATCH(C6,'Relational Matrices'!$M$4:$M$61,0))),0,1) -> 1 | G6: App_4 | H6: Area Regulation | I6: 0 | K6: App_4 | L6: Area Regulation | M6: 0 | O6: App_4 | P6: Area Regulation | Q6: 0 | S6: App_4 | T6: Area Regulation | U6: 0
B7: App_5 | C7: Electric Supply Reserve Capacity | D7: =IF(ISERROR(INDEX('Relational Matrices'!$M$4:$M$61,MATCH(C7,'Relational Matrices'!$M$4:$M$61,0))),0,1) -> 1 | G7: App_5 | H7: Electric Supply Reserve Capacity | I7: =D7*D27*D68*D47 -> 0 | K7: App_5 | L7: Electric Supply Reserve Capacity | M7: 0 | O7: App_5 | P7: Electric Supply Reserve Capacity | Q7: 0 | S7: App_5 | T7: Electric Supply Reserve Capacity | U7: 0
B8: App_6 | C8: Voltage Support | D8: =IF(ISERROR(INDEX('Relational Matrices'!$M$4:$M$61,MATCH(C8,'Relational Matrices'!$M$4:$M$61,0))),0,1) -> 1 | G8: App_6 | H8: Voltage Support | I8: 0 | K8: App_6 | L8: Voltage Support | M8: 0 | O8: App_6 | P8: Voltage Support | Q8: 0 | S8: App_6 | T8: Voltage Support | U8: 0
B9: App_7 | C9: Transmission Support | D9: =IF(ISERROR(INDEX('Relational Matrices'!$M$4:$M$61,MATCH(C9,'Relational Matrices'!$M$4:$M$61,0))),0,1) -> 0 | G9: App_7 | H9: Transmission Support | I9: 0 | K9: App_7 | L9: Transmission Support | M9: 0 | O9: App_7 | P9: Transmission Support | Q9: 0 | S9: App_7 | T9: Transmission Support | U9: 0
B10: App_8 | C10: Transmission Congestion Relief | D10: =IF(ISERROR(INDEX('Relational Matrices'!$M$4:$M$61,MATCH(C10,'Relational Matrices'!$M$4:$M$61,0))),0,1) -> 1 | G10: App_8 | H10: Transmission Congestion Relief | I10: 0 | K10: App_8 | L10: Transmission Congestion Relief | M10: 0 | O10: App_8 | P10: Transmission Congestion Relief | Q10: 0 | S10: App_8 | T10: Transmission Congestion Relief | U10: 0
B11: App_9 | C11: Transmission & Distribution (T&D) Upgrade Deferral | D11: =IF(ISERROR(INDEX('Relational Matrices'!$M$4:$M$61,MATCH(C11,'Relational Matrices'!$M$4:$M$61,0))),0,1) -> 0 | G11: App_9 | H11: Transmission & Distribution (T&D) Upgrade Deferral | I11: 0 | K11: App_9 | L11: Transmission & Distribution (T&D) Upgrade Deferral | M11: 0 | O11: App_9 | P11: Transmission & Distribution (T&D) Upgrade Deferral | Q11: 0 | S11: App_9 | T11: Transmission & Distribution (T&D) Upgrade Deferral | U11: 0
B12: App_10 | C12: Substation On-site Power | D12: =IF(ISERROR(INDEX('Relational Matrices'!$M$4:$M$61,MATCH(C12,'Relational Matrices'!$M$4:$M$61,0))),0,1) -> 0 | G12: App_10 | H12: Substation On-site Power | I12: 0 | K12: App_10 | L12: Substation On-site Power | M12: 0 | O12: App_10 | P12: Substation On-site Power | Q12: 0 | S12: App_10 | T12: Substation On-site Power | U12: 0
B13: App_11 | C13: Time-of-use (TOU) Energy Cost Management | D13: =IF(ISERROR(INDEX('Relational Matrices'!$M$4:$M$61,MATCH(C13,'Relational Matrices'!$M$4:$M$61,0))),0,1) -> 0 | G13: App_11 | H13: Time-of-use (TOU) Energy Cost Management | I13: 0 | K13: App_11 | L13: Time-of-use (TOU) Energy Cost Management | M13: 0 | O13: App_11 | P13: Time-of-use (TOU) Energy Cost Management | Q13: 0 | S13: App_11 | T13: Time-of-use (TOU) Energy Cost Management | U13: 0
B14: App_12 | C14: Demand Charge Management | D14: =IF(ISERROR(INDEX('Relational Matrices'!$M$4:$M$61,MATCH(C14,'Relational Matrices'!$M$4:$M$61,0))),0,1) -> 0 | G14: App_12 | H14: Demand Charge Management | I14: 0 | K14: App_12 | L14: Demand Charge Management | M14: 0 | O14: App_12 | P14: Demand Charge Management | Q14: 0 | S14: App_12 | T14: Demand Charge Management | U14: 0
B15: App_13 | C15: Electric Service Reliability | D15: =IF(ISERROR(INDEX('Relational Matrices'!$M$4:$M$61,MATCH(C15,'Relational Matrices'!$M$4:$M$61,0))),0,1) -> 0 | G15: App_13 | H15: Electric Service Reliability | I15: 0 | K15: App_13 | L15: Electric Service Reliability | M15: 0 | O15: App_13 | P15: Electric Service Reliability | Q15: 0 | S15: App_13 | T15: Electric Service Reliability | U15: 0
B16: App_14 | C16: Electric Service Power Quality | D16: =IF(ISERROR(INDEX('Relational Matrices'!$M$4:$M$61,MATCH(C16,'Relational Matrices'!$M$4:$M$61,0))),0,1) -> 0 | G16: App_14 | H16: Electric Service Power Quality | I16: 0 | K16: App_14 | L16: Electric Service Power Quality | M16: 0 | O16: App_14 | P16: Electric Service Power Quality | Q16: 0 | S16: App_14 | T16: Electric Service Power Quality | U16: 0
B17: App_15 | C17: Renewables Energy Time-shift | D17: =IF(ISERROR(INDEX('Relational Matrices'!$M$4:$M$61,MATCH(C17,'Relational Matrices'!$M$4:$M$61,0))),0,1) -> 1 | G17: App_15 | H17: Renewables Energy Time-shift | I17: 0 | K17: App_15 | L17: Renewables Energy Time-shift | M17: 0 | O17: App_15 | P17: Renewables Energy Time-shift | Q17: 0 | S17: App_15 | T17: Renewables Energy Time-shift | U17: 0
B18: App_16 | C18: Renewables Capacity Firming | D18: =IF(ISERROR(INDEX('Relational Matrices'!$M$4:$M$61,MATCH(C18,'Relational Matrices'!$M$4:$M$61,0))),0,1) -> 1 | G18: App_16 | H18: Renewables Capacity Firming | I18: 1 | K18: App_16 | L18: Renewables Capacity Firming | M18: 0 | O18: App_16 | P18: Renewables Capacity Firming | Q18: 0 | S18: App_16 | T18: Renewables Capacity Firming | U18: 0
B19: App_17 | C19: Wind Generation Grid Integration - Short Duration | D19: =IF(ISERROR(INDEX('Relational Matrices'!$M$4:$M$61,MATCH(C19,'Relational Matrices'!$M$4:$M$61,0))),0,1) -> 1 | G19: App_17 | H19: =INDIRECT(G19) -> Wind Generation Grid Integration - Short Duration | I19: 1 | K19: App_17 | L19: =INDIRECT(K19) -> Wind Generation Grid Integration - Short Duration | M19: =IF(L19=primary_application,1,0) -> 0 | O19: App_17 | P19: =INDIRECT(O19) -> Wind Generation Grid Integration - Short Duration | Q19: 0 | S19: App_17 | T19: =INDIRECT(S19) -> Wind Generation Grid Integration - Short Duration | U19: =IF(OR(T19=secondary_application_1,T19=secondary_application_2),1,0) -> 0
B20: App_18 | C20: Wind Generation Grid Integration - Long Duration | D20: =IF(ISERROR(INDEX('Relational Matrices'!$M$4:$M$61,MATCH(C20,'Relational Matrices'!$M$4:$M$61,0))),0,1) -> 1 | G20: App_18 | H20: Wind Generation Grid Integration - Long Duration | I20: 1 | K20: App_18 | L20: Wind Generation Grid Integration - Long Duration | M20: =IF(L20=primary_application,1,0) -> 0 | O20: App_18 | P20: Wind Generation Grid Integration - Long Duration | Q20: 1 | S20: App_18 | T20: Wind Generation Grid Integration - Long Duration | U20: 0
B22: Available Applications Based on Energy Requirement
B23: App_1 | C23: =INDIRECT(B23) -> Electric Energy Time-shift | D23: =IF(input_Param_2>='Relational Matrices'!C127,1,0) -> 0
B24: App_2 | C24: Electric Supply Capacity | D24: =IF(input_Param_2>='Relational Matrices'!C128,1,0) -> 0
B25: App_3 | C25: Load Following | D25: =IF(input_Param_2>='Relational Matrices'!C129,1,0) -> 0
B26: App_4 | C26: Area Regulation | D26: =IF(input_Param_2>='Relational Matrices'!C130,1,0) -> 0
B27: App_5 | C27: Electric Supply Reserve Capacity | D27: =IF(input_Param_2>='Relational Matrices'!C131,1,0) -> 0
B28: App_6 | C28: Voltage Support | D28: =IF(input_Param_2>='Relational Matrices'!C132,1,0) -> 0
B29: App_7 | C29: Transmission Support | D29: =IF(input_Param_2>='Relational Matrices'!C133,1,0) -> 0
B30: App_8 | C30: Transmission Congestion Relief | D30: =IF(input_Param_2>='Relational Matrices'!C134,1,0) -> 0
B31: App_9 | C31: Transmission & Distribution (T&D) Upgrade Deferral | D31: =IF(input_Param_2>='Relational Matrices'!C135,1,0) -> 0
B32: App_10 | C32: Substation On-site Power | D32: =IF(input_Param_2>='Relational Matrices'!C136,1,0) -> 0
B33: App_11 | C33: Time-of-use (TOU) Energy Cost Management | D33: =IF(input_Param_2>='Relational Matrices'!C137,1,0) -> 0
B34: App_12 | C34: Demand Charge Management | D34: =IF(input_Param_2>='Relational Matrices'!C138,1,0) -> 0
B35: App_13 | C35: Electric Service Reliability | D35: =IF(input_Param_2>='Relational Matrices'!C139,1,0) -> 1
B36: App_14 | C36: Electric Service Power Quality | D36: =IF(input_Param_2>='Relational Matrices'!C140,1,0) -> 1
B37: App_15 | C37: Renewables Energy Time-shift | D37: =IF(input_Param_2>='Relational Matrices'!C141,1,0) -> 0
B38: App_16 | C38: Renewables Capacity Firming | D38: =IF(input_Param_2>='Relational Matrices'!C142,1,0) -> 1
B39: App_17 | C39: =INDIRECT(B39) -> Wind Generation Grid Integration - Short Duration | D39: =IF(input_Param_2>='Relational Matrices'!C143,1,0) -> 1
B40: App_18 | C40: Wind Generation Grid Integration - Long Duration | D40: =IF(input_Param_2>='Relational Matrices'!C144,1,0) -> 1
B42: Available Applications Based on Nameplate Power
B43: App_1 | C43: =INDIRECT(B43) -> Electric Energy Time-shift | D43: =IF(input_Param_1>='Relational Matrices'!C64,1,0) -> 0
B44: App_2 | C44: Electric Supply Capacity | D44: =IF(input_Param_1>='Relational Matrices'!C65,1,0) -> 0
B45: App_3 | C45: Load Following | D45: =IF(input_Param_1>='Relational Matrices'!C66,1,0) -> 0
B46: App_4 | C46: Area Regulation | D46: =IF(input_Param_1>='Relational Matrices'!C67,1,0) -> 0
B47: App_5 | C47: Electric Supply Reserve Capacity | D47: =IF(input_Param_1>='Relational Matrices'!C68,1,0) -> 0
B48: App_6 | C48: Voltage Support | D48: =IF(input_Param_1>='Relational Matrices'!C69,1,0) -> 0
B49: App_7 | C49: Transmission Support | D49: =IF(input_Param_1>='Relational Matrices'!C70,1,0) -> 0
B50: App_8 | C50: Transmission Congestion Relief | D50: =IF(input_Param_1>='Relational Matrices'!C71,1,0) -> 0
B51: App_9 | C51: Transmission & Distribution (T&D) Upgrade Deferral | D51: =IF(input_Param_1>='Relational Matrices'!C72,1,0) -> 0
B52: App_10 | C52: Substation On-site Power | D52: =IF(input_Param_1>='Relational Matrices'!C73,1,0) -> 0
B53: App_11 | C53: Time-of-use (TOU) Energy Cost Management | D53: =IF(input_Param_1>='Relational Matrices'!C74,1,0) -> 1
B54: App_12 | C54: Demand Charge Management | D54: =IF(input_Param_1>='Relational Matrices'!C75,1,0) -> 0
B55: App_13 | C55: Electric Service Reliability | D55: =IF(input_Param_1>='Relational Matrices'!C76,1,0) -> 1
B56: App_14 | C56: Electric Service Power Quality | D56: =IF(input_Param_1>='Relational Matrices'!C77,1,0) -> 1
B57: App_15 | C57: Renewables Energy Time-shift | D57: =IF(input_Param_1>='Relational Matrices'!C78,1,0) -> 1
B58: App_16 | C58: Renewables Capacity Firming | D58: =IF(input_Param_1>='Relational Matrices'!C79,1,0) -> 1
B59: App_17 | C59: =INDIRECT(B59) -> Wind Generation Grid Integration - Short Duration | D59: =IF(input_Param_1>='Relational Matrices'!C80,1,0) -> 1
B60: App_18 | C60: =INDIRECT(B60) -> Wind Generation Grid Integration - Long Duration | D60: =IF(input_Param_1>='Relational Matrices'!C81,1,0) -> 1
B63: Available Applications Based on Reactive Power Capability
B64: App_1 | C64: =INDIRECT(B64) -> Electric Energy Time-shift | D64: 1
B65: App_2 | C65: Electric Supply Capacity | D65: 1
B66: App_3 | C66: Load Following | D66: 1
B67: App_4 | C67: Area Regulation | D67: 1
B68: App_5 | C68: Electric Supply Reserve Capacity | D68: 1
B69: App_6 | C69: Voltage Support | D69: =IF(input_Param_6="Yes",1,0) -> 1
B70: App_7 | C70: Transmission Support | D70: 1
B71: App_8 | C71: Transmission Congestion Relief | D71: 1
B72: App_9 | C72: Transmission & Distribution (T&D) Upgrade Deferral | D72: 1
B73: App_10 | C73: Substation On-site Power | D73: 1
B74: App_11 | C74: Time-of-use (TOU) Energy Cost Management | D74: 1
B75: App_12 | C75: Demand Charge Management | D75: 1
B76: App_13 | C76: Electric Service Reliability | D76: 1
B77: App_14 | C77: Electric Service Power Quality | D77: =IF(input_Param_6="Yes",1,0) -> 1
B78: App_15 | C78: Renewables Energy Time-shift | D78: 1
B79: App_16 | C79: Renewables Capacity Firming | D79: 1
B80: App_17 | C80: =INDIRECT(B80) -> Wind Generation Grid Integration - Short Duration | D80: 1
B81: App_18 | C81: Wind Generation Grid Integration - Long Duration | D81: 1

Sheet Benefits and Benefit Calcs (hidden)
B2: LMO-Application Code vs. Benefits Matrix | G2: Ben_01 | H2: Ben_02 | I2: Ben_03 | J2: Ben_10 | K2: Ben_34 | L2: Ben_28 | M2: Ben_30 | N2: Ben_31 | O2: Ben_11 | P2: Ben_12 | Q2: Ben_15 | R2: Ben_04 | S2: Ben_14 | T2: Ben_32 | U2: Ben_29 | V2: Ben_33 | W2: Ben_23 | X2: Ben_24 | Y2: Ben_25 | Z2: Ben_26
B3: L-M-O-Application Code | C3: Location | D3: Market | E3: Owner | F3: Application | G3: =INDIRECT(G2) -> Arbitrage Revenue | H3: =INDIRECT(H2) -> Capacity Market Revenue | I3: =INDIRECT(I2) -> Ancillary Services Revenue | J3: =INDIRECT(J2) -> Optimized Generator Operation (Non-Utility Merchant) | K3: Optimized Generator Operation (Utility/Ratepayer) | L3: Deferred Generation Capacity Investments | M3: Reduced Congestion Costs (Non-Utility Merchant) | N3: Reduced Congestion Costs (Utility/Ratepayer) | O3: Deferred Transmission Investments | P3: Deferred Distribution Investments | Q3: Reduced Electricity Losses | R3: =INDIRECT(R2) -> Reduced Electricity Cost (Consumer) | S3: Reduced Electricity Cost (Utility/Ratepayer) | T3: Reduced Outages (Consumer) | U3: Reduced Outages (Utility/Ratepayer) | V3: Improved Power Quality | W3: Reduced CO2 Emissions | X3: Reduced SOx Emissions | Y3: Reduced NOx Emissions | Z3: Reduced PM Emissions
B4: ='Relational Matrices'!L4 -> 10010100App_1 | C4: =IF(MID(B4,1,1)="1",Loc_1,IF(MID(B4,2,1)="1",Loc_2,IF(MID(B4,3,1)="1",Loc_3))) -> Generation and Transmission | D4: =IF(MID(B4,4,1)="1",Mark_1,IF(MID(B4,5,1)="1",Mark_2)) -> Regulated | E4: =IF(MID(B4,6,1)="1",Own_1,IF(MID(B4,7,1)="1",Own_2,IF(MID(B4,8,1)="1",Own_3))) -> Utility | F4: =INDIRECT(MID(B4,9,6)) -> Electric Energy Time-shift | G4: 0 | H4: 0 | I4: 0 | J4: 0 | K4: 1 | L4: 1 | M4: 0 | N4: 0 | O4: 1 | P4: 0 | Q4: 1 | R4: 0 | S4: 1 | T4: 0 | U4: 0 | V4: 0 | W4: 1 | X4: 1 | Y4: 1 | Z4: 1
B5: ='Relational Matrices'!L5 -> 01010100App_1 | C5: Distribution | D5: Regulated | E5: Utility | F5: =INDIRECT(MID(B5,9,6)) -> Electric Energy Time-shift | G5: 0 | H5: 0 | I5: 0 | J5: 0 | K5: 1 | L5: 1 | M5: 0 | N5: 0 | O5: 0 | P5: 1 | Q5: 1 | R5: 0 | S5: 1 | T5: 0 | U5: 0 | V5: 0 | W5: 1 | X5: 1 | Y5: 1 | Z5: 1
B6: ='Relational Matrices'!L6 -> 10001010App_1 | C6: Generation and Transmission | D6: Deregulated | E6: Non-Utility Merchant/Independent Power Producer | F6: Electric Energy Time-shift | G6: 1 | H6: 0 | I6: 0 | J6: 1 | K6: 0 | L6: 1 | M6: 0 | N6: 0 | O6: 1 | P6: 0 | Q6: 1 | R6: 0 | S6: 0 | T6: 0 | U6: 0 | V6: 0 | W6: 1 | X6: 1 | Y6: 1 | Z6: 1
B7: ='Relational Matrices'!L7 -> 00000000App_1 | C7: FALSE | D7: FALSE | E7: FALSE | F7: Electric Energy Time-shift | G7: 0 | H7: 0 | I7: 0 | J7: 0 | K7: 0 | L7: 0 | M7: 0 | N7: 0 | O7: 0 | P7: 0 | Q7: 0 | R7: 0 | S7: 0 | T7: 0 | U7: 0 | V7: 0 | W7: 0 | X7: 0 | Y7: 0 | Z7: 0
B8: ='Relational Matrices'!L8 -> 10010100App_2 | C8: Generation and Transmission | D8: Regulated | E8: Utility | F8: Electric Supply Capacity | G8: 0 | H8: 0 | I8: 0 | J8: 0 | K8: 0 | L8: 1 | M8: 0 | N8: 0 | O8: 0 | P8: 0 | Q8: 0 | R8: 0 | S8: 0 | T8: 0 | U8: 0 | V8: 0 | W8: 0 | X8: 0 | Y8: 0 | Z8: 0
B9: ='Relational Matrices'!L9 -> 10001010App_2 | C9: Generation and Transmission | D9: Deregulated | E9: Non-Utility Merchant/Independent Power Producer | F9: Electric Supply Capacity | G9: 0 | H9: 1 | I9: 0 | J9: 0 | K9: 0 | L9: 0 | M9: 0 | N9: 0 | O9: 0 | P9: 0 | Q9: 0 | R9: 0 | S9: 0 | T9: 0 | U9: 0 | V9: 0 | W9: 0 | X9: 0 | Y9: 0 | Z9: 0
B10: ='Relational Matrices'!L10 -> 10010100App_3 | C10: Generation and Transmission | D10: Regulated | E10: Utility | F10: Load Following | G10: 0 | H10: 0 | I10: 0 | J10: 0 | K10: 1 | L10: 1 | M10: 0 | N10: 0 | O10: 0 | P10: 0 | Q10: 0 | R10: 0 | S10: 0 | T10: 0 | U10: 0 | V10: 0 | W10: 1 | X10: 1 | Y10: 1 | Z10: 1
B11: ='Relational Matrices'!L11 -> 10001010App_3 | C11: Generation and Transmission | D11: Deregulated | E11: Non-Utility Merchant/Independent Power Producer | F11: Load Following | G11: 0 | H11: 0 | I11: 1 | J11: 1 | K11: 0 | L11: 1 | M11: 0 | N11: 0 | O11: 0 | P11: 0 | Q11: 0 | R11: 0 | S11: 0 | T11: 0 | U11: 0 | V11: 0 | W11: 1 | X11: 1 | Y11: 1 | Z11: 1
B12: ='Relational Matrices'!L12 -> 10010100App_4 | C12: Generation and Transmission | D12: Regulated | E12: Utility | F12: Area Regulation | G12: 0 | H12: 0 | I12: 0 | J12: 0 | K12: 1 | L12: 1 | M12: 0 | N12: 0 | O12: 0 | P12: 0 | Q12: 0 | R12: 0 | S12: 0 | T12: 0 | U12: 0 | V12: 0 | W12: 1 | X12: 1 | Y12: 1 | Z12: 1
B13: ='Relational Matrices'!L13 -> 10001010App_4 | C13: Generation and Transmission | D13: Deregulated | E13: Non-Utility Merchant/Independent Power Producer | F13: Area Regulation | G13: 0 | H13: 0 | I13: 1 | J13: 1 | K13: 0 | L13: 1 | M13: 0 | N13: 0 | O13: 0 | P13: 0 | Q13: 0 | R13: 0 | S13: 0 | T13: 0 | U13: 0 | V13: 0 | W13: 1 | X13: 1 | Y13: 1 | Z13: 1
B14: ='Relational Matrices'!L14 -> 10010100App_5 | C14: Generation and Transmission | D14: Regulated | E14: Utility | F14: Electric Supply Reserve Capacity | G14: 0 | H14: 0 | I14: 0 | J14: 0 | K14: 1 | L14: 1 | M14: 0 | N14: 0 | O14: 0 | P14: 0 | Q14: 0 | R14: 0 | S14: 0 | T14: 0 | U14: 0 | V14: 0 | W14: 1 | X14: 1 | Y14: 1 | Z14: 1
B15: ='Relational Matrices'!L15 -> 10001010App_5 | C15: Generation and Transmission | D15: Deregulated | E15: Non-Utility Merchant/Independent Power Producer | F15: Electric Supply Reserve Capacity | G15: 0 | H15: 0 | I15: 1 | J15: 1 | K15: 0 | L15: 1 | M15: 0 | N15: 0 | O15: 0 | P15: 0 | Q15: 0 | R15: 0 | S15: 0 | T15: 0 | U15: 0 | V15: 0 | W15: 1 | X15: 1 | Y15: 1 | Z15: 1
B16: ='Relational Matrices'!L16 -> 10010100App_6 | C16: Generation and Transmission | D16: Regulated | E16: Utility | F16: Voltage Support | G16: 0 | H16: 0 | I16: 1 | J16: 0 | K16: 0 | L16: 0 | M16: 0 | N16: 0 | O16: 0 | P16: 0 | Q16: 0 | R16: 0 | S16: 0 | T16: 0 | U16: 0 | V16: 0 | W16: 0 | X16: 0 | Y16: 0 | Z16: 0
B17: ='Relational Matrices'!L17 -> 10001010App_6 | C17: Generation and Transmission | D17: Deregulated | E17: Non-Utility Merchant/Independent Power Producer | F17: Voltage Support | G17: 0 | H17: 0 | I17: 1 | J17: 0 | K17: 0 | L17: 0 | M17: 0 | N17: 0 | O17: 0 | P17: 0 | Q17: 0 | R17: 0 | S17: 0 | T17: 0 | U17: 0 | V17: 0 | W17: 0 | X17: 0 | Y17: 0 | Z17: 0
B18: ='Relational Matrices'!L18 -> 01010100App_6 | C18: Distribution | D18: Regulated | E18: Utility | F18: Voltage Support | G18: 0 | H18: 0 | I18: 0 | J18: 0 | K18: 0 | L18: 0 | M18: 0 | N18: 0 | O18: 0 | P18: 0 | Q18: 0 | R18: 0 | S18: 0 | T18: 0 | U18: 0 | V18: 1 | W18: 0 | X18: 0 | Y18: 0 | Z18: 0
B19: ='Relational Matrices'!L19 -> 01001100App_6 | C19: Distribution | D19: Deregulated | E19: Utility | F19: Voltage Support | G19: 0 | H19: 0 | I19: 0 | J19: 0 | K19: 0 | L19: 0 | M19: 0 | N19: 0 | O19: 0 | P19: 0 | Q19: 0 | R19: 0 | S19: 0 | T19: 0 | U19: 0 | V19: 1 | W19: 0 | X19: 0 | Y19: 0 | Z19: 0
B20: ='Relational Matrices'!L20 -> 10010100App_7 | C20: Generation and Transmission | D20: Regulated | E20: Utility | F20: Transmission Support | G20: 0 | H20: 0 | I20: 0 | J20: 0 | K20: 0 | L20: 0 | M20: 0 | N20: 0 | O20: 1 | P20: 0 | Q20: 0 | R20: 0 | S20: 0 | T20: 0 | U20: 1 | V20: 0 | W20: 0 | X20: 0 | Y20: 0 | Z20: 0
B21: ='Relational Matrices'!L21 -> 10001100App_7 | C21: Generation and Transmission | D21: Deregulated | E21: Utility | F21: Transmission Support | G21: 0 | H21: 0 | I21: 0 | J21: 0 | K21: 0 | L21: 0 | M21: 0 | N21: 0 | O21: 1 | P21: 0 | Q21: 0 | R21: 0 | S21: 0 | T21: 0 | U21: 1 | V21: 0 | W21: 0 | X21: 0 | Y21: 0 | Z21: 0
B22: ='Relational Matrices'!L22 -> 10010100App_8 | C22: Generation and Transmission | D22: Regulated | E22: Utility | F22: Transmission Congestion Relief | G22: 0 | H22: 0 | I22: 0 | J22: 0 | K22: 0 | L22: 0 | M22: 0 | N22: 1 | O22: 1 | P22: 0 | Q22: 0 | R22: 0 | S22: 0 | T22: 0 | U22: 0 | V22: 0 | W22: 0 | X22: 0 | Y22: 0 | Z22: 0
B23: ='Relational Matrices'!L23 -> 00000000App_8 | C23: FALSE | D23: FALSE | E23: FALSE | F23: Transmission Congestion Relief | G23: 0 | H23: 0 | I23: 0 | J23: 0 | K23: 0 | L23: 0 | M23: 0 | N23: 0 | O23: 0 | P23: 0 | Q23: 0 | R23: 0 | S23: 0 | T23: 0 | U23: 0 | V23: 0 | W23: 0 | X23: 0 | Y23: 0 | Z23: 0
B24: ='Relational Matrices'!L24 -> 10001010App_8 | C24: Generation and Transmission | D24: Deregulated | E24: Non-Utility Merchant/Independent Power Producer | F24: Transmission Congestion Relief | G24: 0 | H24: 0 | I24: 0 | J24: 0 | K24: 0 | L24: 0 | M24: 1 | N24: 0 | O24: 0 | P24: 0 | Q24: 0 | R24: 0 | S24: 0 | T24: 0 | U24: 0 | V24: 0 | W24: 0 | X24: 0 | Y24: 0 | Z24: 0
B25: ='Relational Matrices'!L25 -> 00000000App_8 | C25: FALSE | D25: FALSE | E25: FALSE | F25: Transmission Congestion Relief | G25: 0 | H25: 0 | I25: 0 | J25: 0 | K25: 0 | L25: 0 | M25: 0 | N25: 0 | O25: 0 | P25: 0 | Q25: 0 | R25: 0 | S25: 0 | T25: 0 | U25: 0 | V25: 0 | W25: 0 | X25: 0 | Y25: 0 | Z25: 0
B26: ='Relational Matrices'!L26 -> 10010100App_9 | C26: Generation and Transmission | D26: Regulated | E26: Utility | F26: Transmission & Distribution (T&D) Upgrade Deferral | G26: 0 | H26: 0 | I26: 0 | J26: 0 | K26: 1 | L26: 1 | M26: 0 | N26: 0 | O26: 1 | P26: 0 | Q26: 1 | R26: 0 | S26: 0 | T26: 0 | U26: 0 | V26: 0 | W26: 1 | X26: 1 | Y26: 1 | Z26: 1
B27: ='Relational Matrices'!L27 -> 10001100App_9 | C27: Generation and Transmission | D27: Deregulated | E27: Utility | F27: Transmission & Distribution (T&D) Upgrade Deferral | G27: 0 | H27: 0 | I27: 0 | J27: 1 | K27: 0 | L27: 1 | M27: 0 | N27: 0 | O27: 1 | P27: 0 | Q27: 1 | R27: 0 | S27: 0 | T27: 0 | U27: 0 | V27: 0 | W27: 1 | X27: 1 | Y27: 1 | Z27: 1
B28: ='Relational Matrices'!L28 -> 01010100App_9 | C28: Distribution | D28: Regulated | E28: Utility | F28: Transmission & Distribution (T&D) Upgrade Deferral | G28: 0 | H28: 0 | I28: 0 | J28: 0 | K28: 1 | L28: 1 | M28: 0 | N28: 0 | O28: 0 | P28: 1 | Q28: 1 | R28: 0 | S28: 0 | T28: 0 | U28: 0 | V28: 0 | W28: 1 | X28: 1 | Y28: 1 | Z28: 1
B29: ='Relational Matrices'!L29 -> 01001100App_9 | C29: Distribution | D29: Deregulated | E29: Utility | F29: Transmission & Distribution (T&D) Upgrade Deferral | G29: 0 | H29: 0 | I29: 0 | J29: 1 | K29: 0 | L29: 1 | M29: 0 | N29: 0 | O29: 0 | P29: 1 | Q29: 1 | R29: 0 | S29: 0 | T29: 0 | U29: 0 | V29: 0 | W29: 1 | X29: 1 | Y29: 1 | Z29: 1
B30: ='Relational Matrices'!L30 -> 00000000App_10 | C30: FALSE | D30: FALSE | E30: FALSE | F30: Substation On-site Power | G30: 0 | H30: 0 | I30: 0 | J30: 0 | K30: 0 | L30: 0 | M30: 0 | N30: 0 | O30: 0 | P30: 0 | Q30: 0 | R30: 0 | S30: 0 | T30: 0 | U30: 0 | V30: 0 | W30: 0 | X30: 0 | Y30: 0 | Z30: 0
B31: ='Relational Matrices'!L31 -> 00110001App_11 | C31: End-User | D31: Regulated | E31: End-User | F31: Time-of-use (TOU) Energy Cost Management | G31: 0 | H31: 0 | I31: 0 | J31: 0 | K31: 1 | L31: 1 | M31: 0 | N31: 0 | O31: 1 | P31: 1 | Q31: 1 | R31: 1 | S31: 0 | T31: 0 | U31: 0 | V31: 0 | W31: 1 | X31: 1 | Y31: 1 | Z31: 1
B32: ='Relational Matrices'!L32 -> 00101001App_11 | C32: End-User | D32: Deregulated | E32: End-User | F32: Time-of-use (TOU) Energy Cost Management | G32: 0 | H32: 0 | I32: 0 | J32: 1 | K32: 0 | L32: 1 | M32: 0 | N32: 0 | O32: 1 | P32: 1 | Q32: 1 | R32: 1 | S32: 0 | T32: 0 | U32: 0 | V32: 0 | W32: 1 | X32: 1 | Y32: 1 | Z32: 1
B33: ='Relational Matrices'!L33 -> 00110001App_12 | C33: End-User | D33: Regulated | E33: End-User | F33: Demand Charge Management | G33: 0 | H33: 0 | I33: 0 | J33: 0 | K33: 1 | L33: 1 | M33: 0 | N33: 0 | O33: 1 | P33: 1 | Q33: 1 | R33: 1 | S33: 0 | T33: 0 | U33: 0 | V33: 0 | W33: 1 | X33: 1 | Y33: 1 | Z33: 1
B34: ='Relational Matrices'!L34 -> 00101001App_12 | C34: End-User | D34: Deregulated | E34: End-User | F34: Demand Charge Management | G34: 0 | H34: 0 | I34: 0 | J34: 1 | K34: 0 | L34: 1 | M34: 0 | N34: 0 | O34: 1 | P34: 1 | Q34: 1 | R34: 1 | S34: 0 | T34: 0 | U34: 0 | V34: 0 | W34: 1 | X34: 1 | Y34: 1 | Z34: 1
B35: ='Relational Matrices'!L35 -> 10010100App_13 | C35: Generation and Transmission | D35: Regulated | E35: Utility | F35: Electric Service Reliability | G35: 0 | H35: 0 | I35: 0 | J35: 0 | K35: 0 | L35: 0 | M35: 0 | N35: 0 | O35: 0 | P35: 0 | Q35: 0 | R35: 0 | S35: 0 | T35: 0 | U35: 1 | V35: 0 | W35: 0 | X35: 0 | Y35: 0 | Z35: 0
B36: ='Relational Matrices'!L36 -> 10001100App_13 | C36: =IF(MID(B36,1,1)="1",Loc_1,IF(MID(B36,2,1)="1",Loc_2,IF(MID(B36,3,1)="1",Loc_3))) -> Generation and Transmission | D36: =IF(MID(B36,4,1)="1",Mark_1,IF(MID(B36,5,1)="1",Mark_2)) -> Deregulated | E36: =IF(MID(B36,6,1)="1",Own_1,IF(MID(B36,7,1)="1",Own_2,IF(MID(B36,8,1)="1",Own_3))) -> Utility | F36: Electric Service Reliability | G36: 0 | H36: 0 | I36: 0 | J36: 0 | K36: 0 | L36: 0 | M36: 0 | N36: 0 | O36: 0 | P36: 0 | Q36: 0 | R36: 0 | S36: 0 | T36: 0 | U36: 1 | V36: 0 | W36: 0 | X36: 0 | Y36: 0 | Z36: 0
B37: ='Relational Matrices'!L37 -> 01010100App_13 | C37: Distribution | D37: Regulated | E37: Utility | F37: Electric Service Reliability | G37: 0 | H37: 0 | I37: 0 | J37: 0 | K37: 0 | L37: 0 | M37: 0 | N37: 0 | O37: 0 | P37: 0 | Q37: 0 | R37: 0 | S37: 0 | T37: 0 | U37: 1 | V37: 0 | W37: 0 | X37: 0 | Y37: 0 | Z37: 0
B38: ='Relational Matrices'!L38 -> 01001100App_13 | C38: Distribution | D38: Deregulated | E38: Utility | F38: Electric Service Reliability | G38: 0 | H38: 0 | I38: 0 | J38: 0 | K38: 0 | L38: 0 | M38: 0 | N38: 0 | O38: 0 | P38: 0 | Q38: 0 | R38: 0 | S38: 0 | T38: 0 | U38: 1 | V38: 0 | W38: 0 | X38: 0 | Y38: 0 | Z38: 0
B39: ='Relational Matrices'!L39 -> 00110001App_13 | C39: End-User | D39: Regulated | E39: End-User | F39: Electric Service Reliability | G39: 0 | H39: 0 | I39: 0 | J39: 0 | K39: 0 | L39: 0 | M39: 0 | N39: 0 | O39: 0 | P39: 0 | Q39: 0 | R39: 0 | S39: 0 | T39: 1 | U39: 0 | V39: 0 | W39: 0 | X39: 0 | Y39: 0 | Z39: 0
B40: ='Relational Matrices'!L40 -> 00101001App_13 | C40: End-User | D40: Deregulated | E40: End-User | F40: Electric Service Reliability | G40: 0 | H40: 0 | I40: 0 | J40: 0 | K40: 0 | L40: 0 | M40: 0 | N40: 0 | O40: 0 | P40: 0 | Q40: 0 | R40: 0 | S40: 0 | T40: 1 | U40: 0 | V40: 0 | W40: 0 | X40: 0 | Y40: 0 | Z40: 0
B41: ='Relational Matrices'!L41 -> 00110001App_14 | C41: End-User | D41: Regulated | E41: End-User | F41: Electric Service Power Quality | G41: 0 | H41: 0 | I41: 0 | J41: 0 | K41: 0 | L41: 0 | M41: 0 | N41: 0 | O41: 0 | P41: 0 | Q41: 0 | R41: 0 | S41: 0 | T41: 0 | U41: 0 | V41: 1 | W41: 0 | X41: 0 | Y41: 0 | Z41: 0
B42: ='Relational Matrices'!L42 -> 00101001App_14 | C42: End-User | D42: Deregulated | E42: End-User | F42: Electric Service Power Quality | G42: 0 | H42: 0 | I42: 0 | J42: 0 | K42: 0 | L42: 0 | M42: 0 | N42: 0 | O42: 0 | P42: 0 | Q42: 0 | R42: 0 | S42: 0 | T42: 0 | U42: 0 | V42: 1 | W42: 0 | X42: 0 | Y42: 0 | Z42: 0
B43: ='Relational Matrices'!L43 -> 10010100App_15 | C43: Generation and Transmission | D43: Regulated | E43: Utility | F43: Renewables Energy Time-shift | G43: 0 | H43: 0 | I43: 0 | J43: 0 | K43: 1 | L43: 1 | M43: 0 | N43: 0 | O43: 1 | P43: 0 | Q43: 1 | R43: 0 | S43: 1 | T43: 0 | U43: 0 | V43: 0 | W43: 1 | X43: 1 | Y43: 1 | Z43: 1
B44: ='Relational Matrices'!L44 -> 01010100App_15 | C44: Distribution | D44: Regulated | E44: Utility | F44: Renewables Energy Time-shift | G44: 0 | H44: 0 | I44: 0 | J44: 0 | K44: 1 | L44: 1 | M44: 0 | N44: 0 | O44: 0 | P44: 1 | Q44: 1 | R44: 0 | S44: 1 | T44: 0 | U44: 0 | V44: 0 | W44: 1 | X44: 1 | Y44: 1 | Z44: 1
B45: ='Relational Matrices'!L45 -> 10001010App_15 | C45: Generation and Transmission | D45: Deregulated | E45: Non-Utility Merchant/Independent Power Producer | F45: Renewables Energy Time-shift | G45: 1 | H45: 0 | I45: 0 | J45: 1 | K45: 0 | L45: 1 | M45: 0 | N45: 0 | O45: 1 | P45: 0 | Q45: 1 | R45: 0 | S45: 0 | T45: 0 | U45: 0 | V45: 0 | W45: 1 | X45: 1 | Y45: 1 | Z45: 1
B46: ='Relational Matrices'!L46 -> 01001010App_15 | C46: Distribution | D46: Deregulated | E46: Non-Utility Merchant/Independent Power Producer | F46: Renewables Energy Time-shift | G46: 1 | H46: 0 | I46: 0 | J46: 1 | K46: 0 | L46: 1 | M46: 0 | N46: 0 | O46: 0 | P46: 1 | Q46: 1 | R46: 0 | S46: 0 | T46: 0 | U46: 0 | V46: 0 | W46: 1 | X46: 1 | Y46: 1 | Z46: 1
B47: ='Relational Matrices'!L47 -> 00110001App_15 | C47: End-User | D47: Regulated | E47: End-User | F47: Renewables Energy Time-shift | G47: 0 | H47: 0 | I47: 0 | J47: 0 | K47: 0 | L47: 0 | M47: 0 | N47: 0 | O47: 0 | P47: 0 | Q47: 0 | R47: 1 | S47: 0 | T47: 0 | U47: 0 | V47: 0 | W47: 1 | X47: 1 | Y47: 1 | Z47: 1
B48: ='Relational Matrices'!L48 -> 00101001App_15 | C48: End-User | D48: Deregulated | E48: End-User | F48: Renewables Energy Time-shift | G48: 0 | H48: 0 | I48: 0 | J48: 0 | K48: 0 | L48: 0 | M48: 0 | N48: 0 | O48: 0 | P48: 0 | Q48: 0 | R48: 1 | S48: 0 | T48: 0 | U48: 0 | V48: 0 | W48: 1 | X48: 1 | Y48: 1 | Z48: 1
B49: ='Relational Matrices'!L49 -> 10010100App_16 | C49: Generation and Transmission | D49: Regulated | E49: Utility | F49: Renewables Capacity Firming | G49: 0 | H49: 0 | I49: 0 | J49: 0 | K49: 0 | L49: 1 | M49: 0 | N49: 0 | O49: 0 | P49: 0 | Q49: 0 | R49: 0 | S49: 0 | T49: 0 | U49: 0 | V49: 0 | W49: 1 | X49: 1 | Y49: 1 | Z49: 1
B50: ='Relational Matrices'!L50 -> 10001010App_16 | C50: Generation and Transmission | D50: Deregulated | E50: Non-Utility Merchant/Independent Power Producer | F50: Renewables Capacity Firming | G50: 0 | H50: 1 | I50: 0 | J50: 0 | K50: 0 | L50: 0 | M50: 0 | N50: 0 | O50: 0 | P50: 0 | Q50: 0 | R50: 0 | S50: 0 | T50: 0 | U50: 0 | V50: 0 | W50: 1 | X50: 1 | Y50: 1 | Z50: 1
B51: ='Relational Matrices'!L51 -> 10010100App_17 | C51: Generation and Transmission | D51: Regulated | E51: Utility | F51: Wind Generation Grid Integration - Short Duration | G51: 0 | H51: 0 | I51: 0 | J51: 0 | K51: 0 | L51: 1 | M51: 0 | N51: 0 | O51: 0 | P51: 0 | Q51: 0 | R51: 0 | S51: 0 | T51: 0 | U51: 0 | V51: 0 | W51: 1 | X51: 1 | Y51: 1 | Z51: 1
B52: ='Relational Matrices'!L52 -> 10001010App_17 | C52: Generation and Transmission | D52: Deregulated | E52: Non-Utility Merchant/Independent Power Producer | F52: Wind Generation Grid Integration - Short Duration | G52: 0 | H52: 1 | I52: 0 | J52: 0 | K52: 0 | L52: 0 | M52: 0 | N52: 0 | O52: 0 | P52: 0 | Q52: 0 | R52: 0 | S52: 0 | T52: 0 | U52: 0 | V52: 0 | W52: 1 | X52: 1 | Y52: 1 | Z52: 1
B53: ='Relational Matrices'!L53 -> 10010100App_18 | C53: Generation and Transmission | D53: Regulated | E53: Utility | F53: Wind Generation Grid Integration - Long Duration | G53: 0 | H53: 0 | I53: 0 | J53: 0 | K53: 1 | L53: 1 | M53: 0 | N53: 0 | O53: 1 | P53: 0 | Q53: 1 | R53: 0 | S53: 1 | T53: 0 | U53: 0 | V53: 0 | W53: 1 | X53: 1 | Y53: 1 | Z53: 1
B54: ='Relational Matrices'!L54 -> 01010100App_18 | C54: Distribution | D54: Regulated | E54: Utility | F54: Wind Generation Grid Integration - Long Duration | G54: 0 | H54: 0 | I54: 0 | J54: 0 | K54: 1 | L54: 1 | M54: 0 | N54: 0 | O54: 0 | P54: 1 | Q54: 1 | R54: 0 | S54: 1 | T54: 0 | U54: 0 | V54: 0 | W54: 1 | X54: 1 | Y54: 1 | Z54: 1
B55: ='Relational Matrices'!L55 -> 10001010App_18 | C55: Generation and Transmission | D55: Deregulated | E55: Non-Utility Merchant/Independent Power Producer | F55: Wind Generation Grid Integration - Long Duration | G55: 1 | H55: 0 | I55: 0 | J55: 1 | K55: 0 | L55: 1 | M55: 0 | N55: 0 | O55: 1 | P55: 0 | Q55: 1 | R55: 0 | S55: 0 | T55: 0 | U55: 0 | V55: 0 | W55: 1 | X55: 1 | Y55: 1 | Z55: 1
B56: ='Relational Matrices'!L56 -> 01001010App_18 | C56: Distribution | D56: Deregulated | E56: Non-Utility Merchant/Independent Power Producer | F56: Wind Generation Grid Integration - Long Duration | G56: 1 | H56: 0 | I56: 0 | J56: 1 | K56: 0 | L56: 1 | M56: 0 | N56: 0 | O56: 0 | P56: 1 | Q56: 1 | R56: 0 | S56: 0 | T56: 0 | U56: 0 | V56: 0 | W56: 1 | X56: 1 | Y56: 1 | Z56: 1
B64: Activated LMO-Application Codes
B65: L-M-O-Application Code | C65: Is Code Selected?
B66: =B4 -> 10010100App_1 | C66: =IF(OR(B66=LMO_A_Code_1,B66=LMO_A_Code_2,B66=LMO_A_Code_3),1,0) -> 0
B67: =B5 -> 01010100App_1 | C67: =IF(OR(B67=LMO_A_Code_1,B67=LMO_A_Code_2,B67=LMO_A_Code_3),1,0) -> 0
B68: 10001010App_1 | C68: 1
B69: 00000000App_1 | C69: 0
B70: 10010100App_2 | C70: 0
B71: 10001010App_2 | C71: 0
B72: 10010100App_3 | C72: 0
B73: 10001010App_3 | C73: 0
B74: 10010100App_4 | C74: 0
B75: 10001010App_4 | C75: 0
B76: 10010100App_5 | C76: 0
B77: 10001010App_5 | C77: 0
B78: 10010100App_6 | C78: 0
B79: 10001010App_6 | C79: 0
B80: 01010100App_6 | C80: 0
B81: 01001100App_6 | C81: 0
B82: 10010100App_7 | C82: 0
B83: 10001100App_7 | C83: 0
B84: 10010100App_8 | C84: 0
B85: 00000000App_8 | C85: 0
B86: 10001010App_8 | C86: 0
B87: 00000000App_8 | C87: 0
B88: 10010100App_9 | C88: 0
B89: 10001100App_9 | C89: 0
B90: 01010100App_9 | C90: 0
B91: 01001100App_9 | C91: 0
B92: 00000000App_10 | C92: 0
B93: 00110001App_11 | C93: 0
B94: 00101001App_11 | C94: 0
B95: 00110001App_12 | C95: 0
B96: 00101001App_12 | C96: 0
B97: 10010100App_13 | C97: 0
B98: =B36 -> 10001100App_13 | C98: =IF(OR(B98=LMO_A_Code_1,B98=LMO_A_Code_2,B98=LMO_A_Code_3),1,0) -> 0
B99: 01010100App_13 | C99: 0
B100: 01001100App_13 | C100: 0
B101: 00110001App_13 | C101: 0
B102: 00101001App_13 | C102: 0
B103: 00110001App_14 | C103: 0
B104: 00101001App_14 | C104: 0
B105: 10010100App_15 | C105: 0
B106: 01010100App_15 | C106: 0
B107: 10001010App_15 | C107: 0
B108: 01001010App_15 | C108: 0
B109: 00110001App_15 | C109: 0
B110: 00101001App_15 | C110: 0
B111: 10010100App_16 | C111: 0
B112: 10001010App_16 | C112: 0
B113: 10010100App_17 | C113: 0
B114: 10001010App_17 | C114: 0
B115: 10010100App_18 | C115: 0
B116: 01010100App_18 | C116: 0
B117: 10001010App_18 | C117: 0
B118: =B56 -> 01001010App_18 | C118: 0
C125: Activated Benefits List
C126: Benefit | E126: Is Benefit Activated?
B127: Ben_01 | C127: =INDIRECT(B127) -> Arbitrage Revenue | D127: =MMULT(TRANSPOSE(G4:Z56),C66:C118) -> 1 | E127: =IF(D127>0,1,0) -> 1
B128: Ben_02 | C128: =INDIRECT(B128) -> Capacity Market Revenue | D128: 0 | E128: =IF(D128>0,1,0) -> 0
B129: Ben_03 | C129: Ancillary Services Revenue | D129: 0 | E129: 0
B130: Ben_10 | C130: Optimized Generator Operation (Non-Utility Merchant) | D130: 1 | E130: 1
B131: Ben_34 | C131: Optimized Generator Operation (Utility/Ratepayer) | D131: 0 | E131: 0
B132: Ben_28 | C132: Deferred Generation Capacity Investments | D132: 1 | E132: 1
B133: Ben_30 | C133: Reduced Congestion Costs (Non-Utility Merchant) | D133: 0 | E133: 0
B134: Ben_31 | C134: Reduced Congestion Costs (Utility/Ratepayer) | D134: 0 | E134: 0
B135: Ben_11 | C135: Deferred Transmission Investments | D135: 1 | E135: 1
B136: Ben_12 | C136: Deferred Distribution Investments | D136: 0 | E136: 0
B137: Ben_15 | C137: Reduced Electricity Losses | D137: 1 | E137: 1
B138: Ben_04 | C138: Reduced Electricity Cost (Consumer) | D138: 0 | E138: 0
B139: Ben_14 | C139: Reduced Electricity Cost (Utility/Ratepayer) | D139: 0 | E139: 0
B140: Ben_32 | C140: Reduced Outages (Consumer) | D140: 0 | E140: 0
B141: Ben_29 | C141: Reduced Outages (Utility/Ratepayer) | D141: 0 | E141: 0
B142: Ben_33 | C142: Improved Power Quality | D142: 0 | E142: 0
B143: Ben_23 | C143: Reduced CO2 Emissions | D143: 1 | E143: 1
B144: Ben_24 | C144: Reduced SOx Emissions | D144: 1 | E144: 1
B145: Ben_25 | C145: Reduced NOx Emissions | D145: 1 | E145: 1
B146: Ben_26 | C146: Reduced PM Emissions | D146: 1 | E146: 1

Sheet Maintenance Schedule (hidden)
B2: Asset Characterization Module (ACM): Custom Maintenance Cost Schedule
B3: Directions: A custom maintenance cost schedule can be entered into the table below. This cost schedule may include fixed and variable maintenance costs as well as replacement costs. Please enter all values in nominal dollars.
B5: Custom Maintenance Cost Schedule
B6: Year | C6: =input_EcoParam_8 -> 2011 | D6: =C6+1 -> 2012 | E6: 2013 | F6: 2014 | G6: 2015 | H6: 2016 | I6: 2017 | J6: 2018 | K6: 2019 | L6: 2020 | M6: 2021 | N6: 2022 | O6: 2023 | P6: 2024 | Q6: 2025 | R6: 2026 | S6: 2027 | T6: 2028 | U6: 2029 | V6: 2030 | W6: 2031 | X6: 2032 | Y6: 2033 | Z6: 2034 | AA6: 2035 | AB6: 2036 | AC6: 2037 | AD6: 2038 | AE6: 2039 | AF6: 2040 | AG6: 2041 | AH6: 2042 | AI6: 2043 | AJ6: 2044 | AK6: 2045 | AL6: 2046 | AM6: 2047 | AN6: 2048 | AO6: 2049 | AP6: 2050
B7: Yearly Cost ($/Year)

Sheet Application Benefits Summary (hidden)
J1: Ben_01 | K1: Ben_02 | L1: Ben_03 | M1: Ben_10 | N1: Ben_34 | O1: Ben_28 | P1: Ben_30 | Q1: Ben_31 | R1: Ben_11 | S1: Ben_12 | T1: Ben_15 | U1: Ben_04 | V1: Ben_14 | W1: Ben_32 | X1: Ben_29 | Y1: Ben_33 | Z1: Ben_23 | AA1: Ben_24 | AB1: Ben_25 | AC1: Ben_26
F2: Verify the Applications and Benefits of the Project
F3: Below is a table that summarizes the benefits that your project will yield. Each row represents a primary or secondary application your project is pursuing. All of the benefits a project could yield are listed along the top of the chart. Based on your inputs in the ACM, this chart has been populated with the benefits that your project may yield along with the applications that will lead to the benefits. Therefore, this chart should graphically summarize the objectives and expected benefits of your project. If the chart adequately summarizes your project click the blue button on the left to proceed to the next phase of the tool. If the chart does not adequately summarize your project click the button to the right to return to the ACM entry screens and adjust your inputs accordingly.
F5: Application vs. Benefits Matrix
C6: Is the application applicable? | D6: L-M-O-Application Code | F6: Location | G6: Market | H6: Owner | I6: Application | J6: =INDIRECT(J1) -> Arbitrage Revenue | K6: =INDIRECT(K1) -> Capacity Market Revenue | L6: Ancillary Services Revenue | M6: =INDIRECT(M1) -> Optimized Generator Operation (Non-Utility Merchant) | N6: Optimized Generator Operation (Utility/Ratepayer) | O6: Deferred Generation Capacity Investments | P6: Reduced Congestion Costs (Non-Utility Merchant) | Q6: Reduced Congestion Costs (Utility/Ratepayer) | R6: Deferred Transmission Investments | S6: Deferred Distribution Investments | T6: Reduced Electricity Losses | U6: Reduced Electricity Cost (Consumer) | V6: Reduced Electricity Cost (Utility/Ratepayer) | W6: Reduced Outages (Consumer) | X6: Reduced Outages (Utility/Ratepayer) | Y6: Improved Power Quality | Z6: Reduced CO2 Emissions | AA6: Reduced SOx Emissions | AB6: Reduced NOx Emissions | AC6: Reduced PM Emissions
C7: =INDEX('Benefits and Benefit Calcs'!$C$66:$C$123,MATCH(D7,'Benefits and Benefit Calcs'!$B$66:$B$123,0)) -> 0 | D7: 10010100App_1 | F7: =IF(MID(D7,1,1)="1",Loc_1,IF(MID(D7,2,1)="1",Loc_2,IF(MID(D7,3,1)="1",Loc_3))) -> Generation and Transmission | G7: =IF(MID(D7,4,1)="1",Mark_1,IF(MID(D7,5,1)="1",Mark_2)) -> Regulated | H7: =IF(MID(D7,6,1)="1",Own_1,IF(MID(D7,7,1)="1",Own_2,IF(MID(D7,8,1)="1",Own_3))) -> Utility | I7: =INDIRECT(MID(D7,9,6)) -> Electric Energy Time-shift | J7: ='Benefits and Benefit Calcs'!G4 -> 0 | K7: ='Benefits and Benefit Calcs'!H4 -> 0 | L7: ='Benefits and Benefit Calcs'!I4 -> 0 | M7: ='Benefits and Benefit Calcs'!J4 -> 0 | N7: ='Benefits and Benefit Calcs'!K4 -> 1 | O7: ='Benefits and Benefit Calcs'!L4 -> 1 | P7: ='Benefits and Benefit Calcs'!M4 -> 0 | Q7: ='Benefits and Benefit Calcs'!N4 -> 0 | R7: ='Benefits and Benefit Calcs'!O4 -> 1 | S7: ='Benefits and Benefit Calcs'!P4 -> 0 | T7: ='Benefits and Benefit Calcs'!Q4 -> 1 | U7: ='Benefits and Benefit Calcs'!R4 -> 0 | V7: ='Benefits and Benefit Calcs'!S4 -> 1 | W7: ='Benefits and Benefit Calcs'!T4 -> 0 | X7: ='Benefits and Benefit Calcs'!U4 -> 0 | Y7: ='Benefits and Benefit Calcs'!V4 -> 0 | Z7: ='Benefits and Benefit Calcs'!W4 -> 1 | AA7: ='Benefits and Benefit Calcs'!X4 -> 1 | AB7: ='Benefits and Benefit Calcs'!Y4 -> 1 | AC7: ='Benefits and Benefit Calcs'!Z4 -> 1
C8: =INDEX('Benefits and Benefit Calcs'!$C$66:$C$123,MATCH(D8,'Benefits and Benefit Calcs'!$B$66:$B$123,0)) -> 0 | D8: 01010100App_1 | F8: Distribution | G8: Regulated | H8: Utility | I8: Electric Energy Time-shift | J8: ='Benefits and Benefit Calcs'!G5 -> 0 | K8: ='Benefits and Benefit Calcs'!H5 -> 0 | L8: ='Benefits and Benefit Calcs'!I5 -> 0 | M8: ='Benefits and Benefit Calcs'!J5 -> 0 | N8: ='Benefits and Benefit Calcs'!K5 -> 1 | O8: ='Benefits and Benefit Calcs'!L5 -> 1 | P8: ='Benefits and Benefit Calcs'!M5 -> 0 | Q8: ='Benefits and Benefit Calcs'!N5 -> 0 | R8: ='Benefits and Benefit Calcs'!O5 -> 0 | S8: ='Benefits and Benefit Calcs'!P5 -> 1 | T8: ='Benefits and Benefit Calcs'!Q5 -> 1 | U8: ='Benefits and Benefit Calcs'!R5 -> 0 | V8: ='Benefits and Benefit Calcs'!S5 -> 1 | W8: ='Benefits and Benefit Calcs'!T5 -> 0 | X8: ='Benefits and Benefit Calcs'!U5 -> 0 | Y8: ='Benefits and Benefit Calcs'!V5 -> 0 | Z8: ='Benefits and Benefit Calcs'!W5 -> 1 | AA8: ='Benefits and Benefit Calcs'!X5 -> 1 | AB8: ='Benefits and Benefit Calcs'!Y5 -> 1 | AC8: ='Benefits and Benefit Calcs'!Z5 -> 1
C9: =INDEX('Benefits and Benefit Calcs'!$C$66:$C$123,MATCH(D9,'Benefits and Benefit Calcs'!$B$66:$B$123,0)) -> 1 | D9: 10001010App_1 | F9: Generation and Transmission | G9: Deregulated | H9: Non-Utility Merchant/Independent Power Producer | I9: Electric Energy Time-shift | J9: ='Benefits and Benefit Calcs'!G6 -> 1 | K9: ='Benefits and Benefit Calcs'!H6 -> 0 | L9: ='Benefits and Benefit Calcs'!I6 -> 0 | M9: ='Benefits and Benefit Calcs'!J6 -> 1 | N9: ='Benefits and Benefit Calcs'!K6 -> 0 | O9: ='Benefits and Benefit Calcs'!L6 -> 1 | P9: ='Benefits and Benefit Calcs'!M6 -> 0 | Q9: ='Benefits and Benefit Calcs'!N6 -> 0 | R9: ='Benefits and Benefit Calcs'!O6 -> 1 | S9: ='Benefits and Benefit Calcs'!P6 -> 0 | T9: ='Benefits and Benefit Calcs'!Q6 -> 1 | U9: ='Benefits and Benefit Calcs'!R6 -> 0 | V9: ='Benefits and Benefit Calcs'!S6 -> 0 | W9: ='Benefits and Benefit Calcs'!T6 -> 0 | X9: ='Benefits and Benefit Calcs'!U6 -> 0 | Y9: ='Benefits and Benefit Calcs'!V6 -> 0 | Z9: ='Benefits and Benefit Calcs'!W6 -> 1 | AA9: ='Benefits and Benefit Calcs'!X6 -> 1 | AB9: ='Benefits and Benefit Calcs'!Y6 -> 1 | AC9: ='Benefits and Benefit Calcs'!Z6 -> 1
C10: =INDEX('Benefits and Benefit Calcs'!$C$66:$C$123,MATCH(D10,'Benefits and Benefit Calcs'!$B$66:$B$123,0)) -> 0 | D10: 00000000App_1 | F10: FALSE | G10: FALSE | H10: FALSE | I10: Electric Energy Time-shift | J10: ='Benefits and Benefit Calcs'!G7 -> 0 | K10: ='Benefits and Benefit Calcs'!H7 -> 0 | L10: ='Benefits and Benefit Calcs'!I7 -> 0 | M10: ='Benefits and Benefit Calcs'!J7 -> 0 | N10: ='Benefits and Benefit Calcs'!K7 -> 0 | O10: ='Benefits and Benefit Calcs'!L7 -> 0 | P10: ='Benefits and Benefit Calcs'!M7 -> 0 | Q10: ='Benefits and Benefit Calcs'!N7 -> 0 | R10: ='Benefits and Benefit Calcs'!O7 -> 0 | S10: ='Benefits and Benefit Calcs'!P7 -> 0 | T10: ='Benefits and Benefit Calcs'!Q7 -> 0 | U10: ='Benefits and Benefit Calcs'!R7 -> 0 | V10: ='Benefits and Benefit Calcs'!S7 -> 0 | W10: ='Benefits and Benefit Calcs'!T7 -> 0 | X10: ='Benefits and Benefit Calcs'!U7 -> 0 | Y10: ='Benefits and Benefit Calcs'!V7 -> 0 | Z10: ='Benefits and Benefit Calcs'!W7 -> 0 | AA10: ='Benefits and Benefit Calcs'!X7 -> 0 | AB10: ='Benefits and Benefit Calcs'!Y7 -> 0 | AC10: ='Benefits and Benefit Calcs'!Z7 -> 0
C11: =INDEX('Benefits and Benefit Calcs'!$C$66:$C$123,MATCH(D11,'Benefits and Benefit Calcs'!$B$66:$B$123,0)) -> 0 | D11: 10010100App_2 | F11: Generation and Transmission | G11: Regulated | H11: Utility | I11: Electric Supply Capacity | J11: ='Benefits and Benefit Calcs'!G8 -> 0 | K11: ='Benefits and Benefit Calcs'!H8 -> 0 | L11: ='Benefits and Benefit Calcs'!I8 -> 0 | M11: ='Benefits and Benefit Calcs'!J8 -> 0 | N11: ='Benefits and Benefit Calcs'!K8 -> 0 | O11: ='Benefits and Benefit Calcs'!L8 -> 1 | P11: ='Benefits and Benefit Calcs'!M8 -> 0 | Q11: ='Benefits and Benefit Calcs'!N8 -> 0 | R11: ='Benefits and Benefit Calcs'!O8 -> 0 | S11: ='Benefits and Benefit Calcs'!P8 -> 0 | T11: ='Benefits and Benefit Calcs'!Q8 -> 0 | U11: ='Benefits and Benefit Calcs'!R8 -> 0 | V11: ='Benefits and Benefit Calcs'!S8 -> 0 | W11: ='Benefits and Benefit Calcs'!T8 -> 0 | X11: ='Benefits and Benefit Calcs'!U8 -> 0 | Y11: ='Benefits and Benefit Calcs'!V8 -> 0 | Z11: ='Benefits and Benefit Calcs'!W8 -> 0 | AA11: ='Benefits and Benefit Calcs'!X8 -> 0 | AB11: ='Benefits and Benefit Calcs'!Y8 -> 0 | AC11: ='Benefits and Benefit Calcs'!Z8 -> 0
C12: =INDEX('Benefits and Benefit Calcs'!$C$66:$C$123,MATCH(D12,'Benefits and Benefit Calcs'!$B$66:$B$123,0)) -> 0 | D12: 10001010App_2 | F12: Generation and Transmission | G12: Deregulated | H12: Non-Utility Merchant/Independent Power Producer | I12: Electric Supply Capacity | J12: ='Benefits and Benefit Calcs'!G9 -> 0 | K12: ='Benefits and Benefit Calcs'!H9 -> 1 | L12: ='Benefits and Benefit Calcs'!I9 -> 0 | M12: ='Benefits and Benefit Calcs'!J9 -> 0 | N12: ='Benefits and Benefit Calcs'!K9 -> 0 | O12: ='Benefits and Benefit Calcs'!L9 -> 0 | P12: ='Benefits and Benefit Calcs'!M9 -> 0 | Q12: ='Benefits and Benefit Calcs'!N9 -> 0 | R12: ='Benefits and Benefit Calcs'!O9 -> 0 | S12: ='Benefits and Benefit Calcs'!P9 -> 0 | T12: ='Benefits and Benefit Calcs'!Q9 -> 0 | U12: ='Benefits and Benefit Calcs'!R9 -> 0 | V12: ='Benefits and Benefit Calcs'!S9 -> 0 | W12: ='Benefits and Benefit Calcs'!T9 -> 0 | X12: ='Benefits and Benefit Calcs'!U9 -> 0 | Y12: ='Benefits and Benefit Calcs'!V9 -> 0 | Z12: ='Benefits and Benefit Calcs'!W9 -> 0 | AA12: ='Benefits and Benefit Calcs'!X9 -> 0 | AB12: ='Benefits and Benefit Calcs'!Y9 -> 0 | AC12: ='Benefits and Benefit Calcs'!Z9 -> 0
C13: =INDEX('Benefits and Benefit Calcs'!$C$66:$C$123,MATCH(D13,'Benefits and Benefit Calcs'!$B$66:$B$123,0)) -> 0 | D13: 10010100App_3 | F13: Generation and Transmission | G13: Regulated | H13: Utility | I13: Load Following | J13: ='Benefits and Benefit Calcs'!G10 -> 0 | K13: ='Benefits and Benefit Calcs'!H10 -> 0 | L13: ='Benefits and Benefit Calcs'!I10 -> 0 | M13: ='Benefits and Benefit Calcs'!J10 -> 0 | N13: ='Benefits and Benefit Calcs'!K10 -> 1 | O13: ='Benefits and Benefit Calcs'!L10 -> 1 | P13: ='Benefits and Benefit Calcs'!M10 -> 0 | Q13: ='Benefits and Benefit Calcs'!N10 -> 0 | R13: ='Benefits and Benefit Calcs'!O10 -> 0 | S13: ='Benefits and Benefit Calcs'!P10 -> 0 | T13: ='Benefits and Benefit Calcs'!Q10 -> 0 | U13: ='Benefits and Benefit Calcs'!R10 -> 0 | V13: ='Benefits and Benefit Calcs'!S10 -> 0 | W13: ='Benefits and Benefit Calcs'!T10 -> 0 | X13: ='Benefits and Benefit Calcs'!U10 -> 0 | Y13: ='Benefits and Benefit Calcs'!V10 -> 0 | Z13: ='Benefits and Benefit Calcs'!W10 -> 1 | AA13: ='Benefits and Benefit Calcs'!X10 -> 1 | AB13: ='Benefits and Benefit Calcs'!Y10 -> 1 | AC13: ='Benefits and Benefit Calcs'!Z10 -> 1
C14: =INDEX('Benefits and Benefit Calcs'!$C$66:$C$123,MATCH(D14,'Benefits and Benefit Calcs'!$B$66:$B$123,0)) -> 0 | D14: 10001010App_3 | F14: Generation and Transmission | G14: Deregulated | H14: Non-Utility Merchant/Independent Power Producer | I14: Load Following | J14: ='Benefits and Benefit Calcs'!G11 -> 0 | K14: ='Benefits and Benefit Calcs'!H11 -> 0 | L14: ='Benefits and Benefit Calcs'!I11 -> 1 | M14: ='Benefits and Benefit Calcs'!J11 -> 1 | N14: ='Benefits and Benefit Calcs'!K11 -> 0 | O14: ='Benefits and Benefit Calcs'!L11 -> 1 | P14: ='Benefits and Benefit Calcs'!M11 -> 0 | Q14: ='Benefits and Benefit Calcs'!N11 -> 0 | R14: ='Benefits and Benefit Calcs'!O11 -> 0 | S14: ='Benefits and Benefit Calcs'!P11 -> 0 | T14: ='Benefits and Benefit Calcs'!Q11 -> 0 | U14: ='Benefits and Benefit Calcs'!R11 -> 0 | V14: ='Benefits and Benefit Calcs'!S11 -> 0 | W14: ='Benefits and Benefit Calcs'!T11 -> 0 | X14: ='Benefits and Benefit Calcs'!U11 -> 0 | Y14: ='Benefits and Benefit Calcs'!V11 -> 0 | Z14: ='Benefits and Benefit Calcs'!W11 -> 1 | AA14: ='Benefits and Benefit Calcs'!X11 -> 1 | AB14: ='Benefits and Benefit Calcs'!Y11 -> 1 | AC14: ='Benefits and Benefit Calcs'!Z11 -> 1
C15: =INDEX('Benefits and Benefit Calcs'!$C$66:$C$123,MATCH(D15,'Benefits and Benefit Calcs'!$B$66:$B$123,0)) -> 0 | D15: 10010100App_4 | F15: Generation and Transmission | G15: Regulated | H15: Utility | I15: Area Regulation | J15: ='Benefits and Benefit Calcs'!G12 -> 0 | K15: ='Benefits and Benefit Calcs'!H12 -> 0 | L15: ='Benefits and Benefit Calcs'!I12 -> 0 | M15: ='Benefits and Benefit Calcs'!J12 -> 0 | N15: ='Benefits and Benefit Calcs'!K12 -> 1 | O15: ='Benefits and Benefit Calcs'!L12 -> 1 | P15: ='Benefits and Benefit Calcs'!M12 -> 0 | Q15: ='Benefits and Benefit Calcs'!N12 -> 0 | R15: ='Benefits and Benefit Calcs'!O12 -> 0 | S15: ='Benefits and Benefit Calcs'!P12 -> 0 | T15: ='Benefits and Benefit Calcs'!Q12 -> 0 | U15: ='Benefits and Benefit Calcs'!R12 -> 0 | V15: ='Benefits and Benefit Calcs'!S12 -> 0 | W15: ='Benefits and Benefit Calcs'!T12 -> 0 | X15: ='Benefits and Benefit Calcs'!U12 -> 0 | Y15: ='Benefits and Benefit Calcs'!V12 -> 0 | Z15: ='Benefits and Benefit Calcs'!W12 -> 1 | AA15: ='Benefits and Benefit Calcs'!X12 -> 1 | AB15: ='Benefits and Benefit Calcs'!Y12 -> 1 | AC15: ='Benefits and Benefit Calcs'!Z12 -> 1
C16: =INDEX('Benefits and Benefit Calcs'!$C$66:$C$123,MATCH(D16,'Benefits and Benefit Calcs'!$B$66:$B$123,0)) -> 0 | D16: 10001010App_4 | F16: Generation and Transmission | G16: Deregulated | H16: Non-Utility Merchant/Independent Power Producer | I16: Area Regulation | J16: ='Benefits and Benefit Calcs'!G13 -> 0 | K16: ='Benefits and Benefit Calcs'!H13 -> 0 | L16: ='Benefits and Benefit Calcs'!I13 -> 1 | M16: ='Benefits and Benefit Calcs'!J13 -> 1 | N16: ='Benefits and Benefit Calcs'!K13 -> 0 | O16: ='Benefits and Benefit Calcs'!L13 -> 1 | P16: ='Benefits and Benefit Calcs'!M13 -> 0 | Q16: ='Benefits and Benefit Calcs'!N13 -> 0 | R16: ='Benefits and Benefit Calcs'!O13 -> 0 | S16: ='Benefits and Benefit Calcs'!P13 -> 0 | T16: ='Benefits and Benefit Calcs'!Q13 -> 0 | U16: ='Benefits and Benefit Calcs'!R13 -> 0 | V16: ='Benefits and Benefit Calcs'!S13 -> 0 | W16: ='Benefits and Benefit Calcs'!T13 -> 0 | X16: ='Benefits and Benefit Calcs'!U13 -> 0 | Y16: ='Benefits and Benefit Calcs'!V13 -> 0 | Z16: ='Benefits and Benefit Calcs'!W13 -> 1 | AA16: ='Benefits and Benefit Calcs'!X13 -> 1 | AB16: ='Benefits and Benefit Calcs'!Y13 -> 1 | AC16: ='Benefits and Benefit Calcs'!Z13 -> 1
C17: =INDEX('Benefits and Benefit Calcs'!$C$66:$C$123,MATCH(D17,'Benefits and Benefit Calcs'!$B$66:$B$123,0)) -> 0 | D17: 10010100App_5 | F17: Generation and Transmission | G17: Regulated | H17: Utility | I17: Electric Supply Reserve Capacity | J17: ='Benefits and Benefit Calcs'!G14 -> 0 | K17: ='Benefits and Benefit Calcs'!H14 -> 0 | L17: ='Benefits and Benefit Calcs'!I14 -> 0 | M17: ='Benefits and Benefit Calcs'!J14 -> 0 | N17: ='Benefits and Benefit Calcs'!K14 -> 1 | O17: ='Benefits and Benefit Calcs'!L14 -> 1 | P17: ='Benefits and Benefit Calcs'!M14 -> 0 | Q17: ='Benefits and Benefit Calcs'!N14 -> 0 | R17: ='Benefits and Benefit Calcs'!O14 -> 0 | S17: ='Benefits and Benefit Calcs'!P14 -> 0 | T17: ='Benefits and Benefit Calcs'!Q14 -> 0 | U17: ='Benefits and Benefit Calcs'!R14 -> 0 | V17: ='Benefits and Benefit Calcs'!S14 -> 0 | W17: ='Benefits and Benefit Calcs'!T14 -> 0 | X17: ='Benefits and Benefit Calcs'!U14 -> 0 | Y17: ='Benefits and Benefit Calcs'!V14 -> 0 | Z17: ='Benefits and Benefit Calcs'!W14 -> 1 | AA17: ='Benefits and Benefit Calcs'!X14 -> 1 | AB17: ='Benefits and Benefit Calcs'!Y14 -> 1 | AC17: ='Benefits and Benefit Calcs'!Z14 -> 1
C18: =INDEX('Benefits and Benefit Calcs'!$C$66:$C$123,MATCH(D18,'Benefits and Benefit Calcs'!$B$66:$B$123,0)) -> 0 | D18: 10001010App_5 | F18: Generation and Transmission | G18: Deregulated | H18: Non-Utility Merchant/Independent Power Producer | I18: Electric Supply Reserve Capacity | J18: ='Benefits and Benefit Calcs'!G15 -> 0 | K18: ='Benefits and Benefit Calcs'!H15 -> 0 | L18: ='Benefits and Benefit Calcs'!I15 -> 1 | M18: ='Benefits and Benefit Calcs'!J15 -> 1 | N18: ='Benefits and Benefit Calcs'!K15 -> 0 | O18: ='Benefits and Benefit Calcs'!L15 -> 1 | P18: ='Benefits and Benefit Calcs'!M15 -> 0 | Q18: ='Benefits and Benefit Calcs'!N15 -> 0 | R18: ='Benefits and Benefit Calcs'!O15 -> 0 | S18: ='Benefits and Benefit Calcs'!P15 -> 0 | T18: ='Benefits and Benefit Calcs'!Q15 -> 0 | U18: ='Benefits and Benefit Calcs'!R15 -> 0 | V18: ='Benefits and Benefit Calcs'!S15 -> 0 | W18: ='Benefits and Benefit Calcs'!T15 -> 0 | X18: ='Benefits and Benefit Calcs'!U15 -> 0 | Y18: ='Benefits and Benefit Calcs'!V15 -> 0 | Z18: ='Benefits and Benefit Calcs'!W15 -> 1 | AA18: ='Benefits and Benefit Calcs'!X15 -> 1 | AB18: ='Benefits and Benefit Calcs'!Y15 -> 1 | AC18: ='Benefits and Benefit Calcs'!Z15 -> 1
C19: =INDEX('Benefits and Benefit Calcs'!$C$66:$C$123,MATCH(D19,'Benefits and Benefit Calcs'!$B$66:$B$123,0)) -> 0 | D19: 10010100App_6 | F19: Generation and Transmission | G19: Regulated | H19: Utility | I19: Voltage Support | J19: ='Benefits and Benefit Calcs'!G16 -> 0 | K19: ='Benefits and Benefit Calcs'!H16 -> 0 | L19: ='Benefits and Benefit Calcs'!I16 -> 1 | M19: ='Benefits and Benefit Calcs'!J16 -> 0 | N19: ='Benefits and Benefit Calcs'!K16 -> 0 | O19: ='Benefits and Benefit Calcs'!L16 -> 0 | P19: ='Benefits and Benefit Calcs'!M16 -> 0 | Q19: ='Benefits and Benefit Calcs'!N16 -> 0 | R19: ='Benefits and Benefit Calcs'!O16 -> 0 | S19: ='Benefits and Benefit Calcs'!P16 -> 0 | T19: ='Benefits and Benefit Calcs'!Q16 -> 0 | U19: ='Benefits and Benefit Calcs'!R16 -> 0 | V19: ='Benefits and Benefit Calcs'!S16 -> 0 | W19: ='Benefits and Benefit Calcs'!T16 -> 0 | X19: ='Benefits and Benefit Calcs'!U16 -> 0 | Y19: ='Benefits and Benefit Calcs'!V16 -> 0 | Z19: ='Benefits and Benefit Calcs'!W16 -> 0 | AA19: ='Benefits and Benefit Calcs'!X16 -> 0 | AB19: ='Benefits and Benefit Calcs'!Y16 -> 0 | AC19: ='Benefits and Benefit Calcs'!Z16 -> 0
C20: =INDEX('Benefits and Benefit Calcs'!$C$66:$C$123,MATCH(D20,'Benefits and Benefit Calcs'!$B$66:$B$123,0)) -> 0 | D20: 10001010App_6 | F20: Generation and Transmission | G20: Deregulated | H20: Non-Utility Merchant/Independent Power Producer | I20: Voltage Support | J20: ='Benefits and Benefit Calcs'!G17 -> 0 | K20: ='Benefits and Benefit Calcs'!H17 -> 0 | L20: ='Benefits and Benefit Calcs'!I17 -> 1 | M20: ='Benefits and Benefit Calcs'!J17 -> 0 | N20: ='Benefits and Benefit Calcs'!K17 -> 0 | O20: ='Benefits and Benefit Calcs'!L17 -> 0 | P20: ='Benefits and Benefit Calcs'!M17 -> 0 | Q20: ='Benefits and Benefit Calcs'!N17 -> 0 | R20: ='Benefits and Benefit Calcs'!O17 -> 0 | S20: ='Benefits and Benefit Calcs'!P17 -> 0 | T20: ='Benefits and Benefit Calcs'!Q17 -> 0 | U20: ='Benefits and Benefit Calcs'!R17 -> 0 | V20: ='Benefits and Benefit Calcs'!S17 -> 0 | W20: ='Benefits and Benefit Calcs'!T17 -> 0 | X20: ='Benefits and Benefit Calcs'!U17 -> 0 | Y20: ='Benefits and Benefit Calcs'!V17 -> 0 | Z20: ='Benefits and Benefit Calcs'!W17 -> 0 | AA20: ='Benefits and Benefit Calcs'!X17 -> 0 | AB20: ='Benefits and Benefit Calcs'!Y17 -> 0 | AC20: ='Benefits and Benefit Calcs'!Z17 -> 0
C21: =INDEX('Benefits and Benefit Calcs'!$C$66:$C$123,MATCH(D21,'Benefits and Benefit Calcs'!$B$66:$B$123,0)) -> 0 | D21: 01010100App_6 | F21: Distribution | G21: Regulated | H21: Utility | I21: Voltage Support | J21: ='Benefits and Benefit Calcs'!G18 -> 0 | K21: ='Benefits and Benefit Calcs'!H18 -> 0 | L21: ='Benefits and Benefit Calcs'!I18 -> 0 | M21: ='Benefits and Benefit Calcs'!J18 -> 0 | N21: ='Benefits and Benefit Calcs'!K18 -> 0 | O21: ='Benefits and Benefit Calcs'!L18 -> 0 | P21: ='Benefits and Benefit Calcs'!M18 -> 0 | Q21: ='Benefits and Benefit Calcs'!N18 -> 0 | R21: ='Benefits and Benefit Calcs'!O18 -> 0 | S21: ='Benefits and Benefit Calcs'!P18 -> 0 | T21: ='Benefits and Benefit Calcs'!Q18 -> 0 | U21: ='Benefits and Benefit Calcs'!R18 -> 0 | V21: ='Benefits and Benefit Calcs'!S18 -> 0 | W21: ='Benefits and Benefit Calcs'!T18 -> 0 | X21: ='Benefits and Benefit Calcs'!U18 -> 0 | Y21: ='Benefits and Benefit Calcs'!V18 -> 1 | Z21: ='Benefits and Benefit Calcs'!W18 -> 0 | AA21: ='Benefits and Benefit Calcs'!X18 -> 0 | AB21: ='Benefits and Benefit Calcs'!Y18 -> 0 | AC21: ='Benefits and Benefit Calcs'!Z18 -> 0
C22: =INDEX('Benefits and Benefit Calcs'!$C$66:$C$123,MATCH(D22,'Benefits and Benefit Calcs'!$B$66:$B$123,0)) -> 0 | D22: 01001100App_6 | F22: Distribution | G22: Deregulated | H22: Utility | I22: Voltage Support | J22: ='Benefits and Benefit Calcs'!G19 -> 0 | K22: ='Benefits and Benefit Calcs'!H19 -> 0 | L22: ='Benefits and Benefit Calcs'!I19 -> 0 | M22: ='Benefits and Benefit Calcs'!J19 -> 0 | N22: ='Benefits and Benefit Calcs'!K19 -> 0 | O22: ='Benefits and Benefit Calcs'!L19 -> 0 | P22: ='Benefits and Benefit Calcs'!M19 -> 0 | Q22: ='Benefits and Benefit Calcs'!N19 -> 0 | R22: ='Benefits and Benefit Calcs'!O19 -> 0 | S22: ='Benefits and Benefit Calcs'!P19 -> 0 | T22: ='Benefits and Benefit Calcs'!Q19 -> 0 | U22: ='Benefits and Benefit Calcs'!R19 -> 0 | V22: ='Benefits and Benefit Calcs'!S19 -> 0 | W22: ='Benefits and Benefit Calcs'!T19 -> 0 | X22: ='Benefits and Benefit Calcs'!U19 -> 0 | Y22: ='Benefits and Benefit Calcs'!V19 -> 1 | Z22: ='Benefits and Benefit Calcs'!W19 -> 0 | AA22: ='Benefits and Benefit Calcs'!X19 -> 0 | AB22: ='Benefits and Benefit Calcs'!Y19 -> 0 | AC22: ='Benefits and Benefit Calcs'!Z19 -> 0
C23: =INDEX('Benefits and Benefit Calcs'!$C$66:$C$123,MATCH(D23,'Benefits and Benefit Calcs'!$B$66:$B$123,0)) -> 0 | D23: 10010100App_7 | F23: Generation and Transmission | G23: Regulated | H23: Utility | I23: Transmission Support | J23: ='Benefits and Benefit Calcs'!G20 -> 0 | K23: ='Benefits and Benefit Calcs'!H20 -> 0 | L23: ='Benefits and Benefit Calcs'!I20 -> 0 | M23: ='Benefits and Benefit Calcs'!J20 -> 0 | N23: ='Benefits and Benefit Calcs'!K20 -> 0 | O23: ='Benefits and Benefit Calcs'!L20 -> 0 | P23: ='Benefits and Benefit Calcs'!M20 -> 0 | Q23: ='Benefits and Benefit Calcs'!N20 -> 0 | R23: ='Benefits and Benefit Calcs'!O20 -> 1 | S23: ='Benefits and Benefit Calcs'!P20 -> 0 | T23: ='Benefits and Benefit Calcs'!Q20 -> 0 | U23: ='Benefits and Benefit Calcs'!R20 -> 0 | V23: ='Benefits and Benefit Calcs'!S20 -> 0 | W23: ='Benefits and Benefit Calcs'!T20 -> 0 | X23: ='Benefits and Benefit Calcs'!U20 -> 1 | Y23: ='Benefits and Benefit Calcs'!V20 -> 0 | Z23: ='Benefits and Benefit Calcs'!W20 -> 0 | AA23: ='Benefits and Benefit Calcs'!X20 -> 0 | AB23: ='Benefits and Benefit Calcs'!Y20 -> 0 | AC23: ='Benefits and Benefit Calcs'!Z20 -> 0
C24: =INDEX('Benefits and Benefit Calcs'!$C$66:$C$123,MATCH(D24,'Benefits and Benefit Calcs'!$B$66:$B$123,0)) -> 0 | D24: 10001100App_7 | F24: Generation and Transmission | G24: Deregulated | H24: Utility | I24: Transmission Support | J24: ='Benefits and Benefit Calcs'!G21 -> 0 | K24: ='Benefits and Benefit Calcs'!H21 -> 0 | L24: ='Benefits and Benefit Calcs'!I21 -> 0 | M24: ='Benefits and Benefit Calcs'!J21 -> 0 | N24: ='Benefits and Benefit Calcs'!K21 -> 0 | O24: ='Benefits and Benefit Calcs'!L21 -> 0 | P24: ='Benefits and Benefit Calcs'!M21 -> 0 | Q24: ='Benefits and Benefit Calcs'!N21 -> 0 | R24: ='Benefits and Benefit Calcs'!O21 -> 1 | S24: ='Benefits and Benefit Calcs'!P21 -> 0 | T24: ='Benefits and Benefit Calcs'!Q21 -> 0 | U24: ='Benefits and Benefit Calcs'!R21 -> 0 | V24: ='Benefits and Benefit Calcs'!S21 -> 0 | W24: ='Benefits and Benefit Calcs'!T21 -> 0 | X24: ='Benefits and Benefit Calcs'!U21 -> 1 | Y24: ='Benefits and Benefit Calcs'!V21 -> 0 | Z24: ='Benefits and Benefit Calcs'!W21 -> 0 | AA24: ='Benefits and Benefit Calcs'!X21 -> 0 | AB24: ='Benefits and Benefit Calcs'!Y21 -> 0 | AC24: ='Benefits and Benefit Calcs'!Z21 -> 0
C25: =INDEX('Benefits and Benefit Calcs'!$C$66:$C$123,MATCH(D25,'Benefits and Benefit Calcs'!$B$66:$B$123,0)) -> 0 | D25: 10010100App_8 | F25: Generation and Transmission | G25: Regulated | H25: Utility | I25: Transmission Congestion Relief | J25: ='Benefits and Benefit Calcs'!G22 -> 0 | K25: ='Benefits and Benefit Calcs'!H22 -> 0 | L25: ='Benefits and Benefit Calcs'!I22 -> 0 | M25: ='Benefits and Benefit Calcs'!J22 -> 0 | N25: ='Benefits and Benefit Calcs'!K22 -> 0 | O25: ='Benefits and Benefit Calcs'!L22 -> 0 | P25: ='Benefits and Benefit Calcs'!M22 -> 0 | Q25: ='Benefits and Benefit Calcs'!N22 -> 1 | R25: ='Benefits and Benefit Calcs'!O22 -> 1 | S25: ='Benefits and Benefit Calcs'!P22 -> 0 | T25: ='Benefits and Benefit Calcs'!Q22 -> 0 | U25: ='Benefits and Benefit Calcs'!R22 -> 0 | V25: ='Benefits and Benefit Calcs'!S22 -> 0 | W25: ='Benefits and Benefit Calcs'!T22 -> 0 | X25: ='Benefits and Benefit Calcs'!U22 -> 0 | Y25: ='Benefits and Benefit Calcs'!V22 -> 0 | Z25: ='Benefits and Benefit Calcs'!W22 -> 0 | AA25: ='Benefits and Benefit Calcs'!X22 -> 0 | AB25: ='Benefits and Benefit Calcs'!Y22 -> 0 | AC25: ='Benefits and Benefit Calcs'!Z22 -> 0
C26: =INDEX('Benefits and Benefit Calcs'!$C$66:$C$123,MATCH(D26,'Benefits and Benefit Calcs'!$B$66:$B$123,0)) -> 0 | D26: 00000000App_8 | F26: FALSE | G26: FALSE | H26: FALSE | I26: Transmission Congestion Relief | J26: ='Benefits and Benefit Calcs'!G23 -> 0 | K26: ='Benefits and Benefit Calcs'!H23 -> 0 | L26: ='Benefits and Benefit Calcs'!I23 -> 0 | M26: ='Benefits and Benefit Calcs'!J23 -> 0 | N26: ='Benefits and Benefit Calcs'!K23 -> 0 | O26: ='Benefits and Benefit Calcs'!L23 -> 0 | P26: ='Benefits and Benefit Calcs'!M23 -> 0 | Q26: ='Benefits and Benefit Calcs'!N23 -> 0 | R26: ='Benefits and Benefit Calcs'!O23 -> 0 | S26: ='Benefits and Benefit Calcs'!P23 -> 0 | T26: ='Benefits and Benefit Calcs'!Q23 -> 0 | U26: ='Benefits and Benefit Calcs'!R23 -> 0 | V26: ='Benefits and Benefit Calcs'!S23 -> 0 | W26: ='Benefits and Benefit Calcs'!T23 -> 0 | X26: ='Benefits and Benefit Calcs'!U23 -> 0 | Y26: ='Benefits and Benefit Calcs'!V23 -> 0 | Z26: ='Benefits and Benefit Calcs'!W23 -> 0 | AA26: ='Benefits and Benefit Calcs'!X23 -> 0 | AB26: ='Benefits and Benefit Calcs'!Y23 -> 0 | AC26: ='Benefits and Benefit Calcs'!Z23 -> 0
C27: =INDEX('Benefits and Benefit Calcs'!$C$66:$C$123,MATCH(D27,'Benefits and Benefit Calcs'!$B$66:$B$123,0)) -> 0 | D27: 10001010App_8 | F27: Generation and Transmission | G27: Deregulated | H27: Non-Utility Merchant/Independent Power Producer | I27: Transmission Congestion Relief | J27: ='Benefits and Benefit Calcs'!G24 -> 0 | K27: ='Benefits and Benefit Calcs'!H24 -> 0 | L27: ='Benefits and Benefit Calcs'!I24 -> 0 | M27: ='Benefits and Benefit Calcs'!J24 -> 0 | N27: ='Benefits and Benefit Calcs'!K24 -> 0 | O27: ='Benefits and Benefit Calcs'!L24 -> 0 | P27: ='Benefits and Benefit Calcs'!M24 -> 1 | Q27: ='Benefits and Benefit Calcs'!N24 -> 0 | R27: ='Benefits and Benefit Calcs'!O24 -> 0 | S27: ='Benefits and Benefit Calcs'!P24 -> 0 | T27: ='Benefits and Benefit Calcs'!Q24 -> 0 | U27: ='Benefits and Benefit Calcs'!R24 -> 0 | V27: ='Benefits and Benefit Calcs'!S24 -> 0 | W27: ='Benefits and Benefit Calcs'!T24 -> 0 | X27: ='Benefits and Benefit Calcs'!U24 -> 0 | Y27: ='Benefits and Benefit Calcs'!V24 -> 0 | Z27: ='Benefits and Benefit Calcs'!W24 -> 0 | AA27: ='Benefits and Benefit Calcs'!X24 -> 0 | AB27: ='Benefits and Benefit Calcs'!Y24 -> 0 | AC27: ='Benefits and Benefit Calcs'!Z24 -> 0
C28: =INDEX('Benefits and Benefit Calcs'!$C$66:$C$123,MATCH(D28,'Benefits and Benefit Calcs'!$B$66:$B$123,0)) -> 0 | D28: 00000000App_8 | F28: FALSE | G28: FALSE | H28: FALSE | I28: Transmission Congestion Relief | J28: ='Benefits and Benefit Calcs'!G25 -> 0 | K28: ='Benefits and Benefit Calcs'!H25 -> 0 | L28: ='Benefits and Benefit Calcs'!I25 -> 0 | M28: ='Benefits and Benefit Calcs'!J25 -> 0 | N28: ='Benefits and Benefit Calcs'!K25 -> 0 | O28: ='Benefits and Benefit Calcs'!L25 -> 0 | P28: ='Benefits and Benefit Calcs'!M25 -> 0 | Q28: ='Benefits and Benefit Calcs'!N25 -> 0 | R28: ='Benefits and Benefit Calcs'!O25 -> 0 | S28: ='Benefits and Benefit Calcs'!P25 -> 0 | T28: ='Benefits and Benefit Calcs'!Q25 -> 0 | U28: ='Benefits and Benefit Calcs'!R25 -> 0 | V28: ='Benefits and Benefit Calcs'!S25 -> 0 | W28: ='Benefits and Benefit Calcs'!T25 -> 0 | X28: ='Benefits and Benefit Calcs'!U25 -> 0 | Y28: ='Benefits and Benefit Calcs'!V25 -> 0 | Z28: ='Benefits and Benefit Calcs'!W25 -> 0 | AA28: ='Benefits and Benefit Calcs'!X25 -> 0 | AB28: ='Benefits and Benefit Calcs'!Y25 -> 0 | AC28: ='Benefits and Benefit Calcs'!Z25 -> 0
C29: =INDEX('Benefits and Benefit Calcs'!$C$66:$C$123,MATCH(D29,'Benefits and Benefit Calcs'!$B$66:$B$123,0)) -> 0 | D29: 10010100App_9 | F29: Generation and Transmission | G29: Regulated | H29: Utility | I29: Transmission & Distribution (T&D) Upgrade Deferral | J29: ='Benefits and Benefit Calcs'!G26 -> 0 | K29: ='Benefits and Benefit Calcs'!H26 -> 0 | L29: ='Benefits and Benefit Calcs'!I26 -> 0 | M29: ='Benefits and Benefit Calcs'!J26 -> 0 | N29: ='Benefits and Benefit Calcs'!K26 -> 1 | O29: ='Benefits and Benefit Calcs'!L26 -> 1 | P29: ='Benefits and Benefit Calcs'!M26 -> 0 | Q29: ='Benefits and Benefit Calcs'!N26 -> 0 | R29: ='Benefits and Benefit Calcs'!O26 -> 1 | S29: ='Benefits and Benefit Calcs'!P26 -> 0 | T29: ='Benefits and Benefit Calcs'!Q26 -> 1 | U29: ='Benefits and Benefit Calcs'!R26 -> 0 | V29: ='Benefits and Benefit Calcs'!S26 -> 0 | W29: ='Benefits and Benefit Calcs'!T26 -> 0 | X29: ='Benefits and Benefit Calcs'!U26 -> 0 | Y29: ='Benefits and Benefit Calcs'!V26 -> 0 | Z29: ='Benefits and Benefit Calcs'!W26 -> 1 | AA29: ='Benefits and Benefit Calcs'!X26 -> 1 | AB29: ='Benefits and Benefit Calcs'!Y26 -> 1 | AC29: ='Benefits and Benefit Calcs'!Z26 -> 1
C30: =INDEX('Benefits and Benefit Calcs'!$C$66:$C$123,MATCH(D30,'Benefits and Benefit Calcs'!$B$66:$B$123,0)) -> 0 | D30: 10001100App_9 | F30: Generation and Transmission | G30: Deregulated | H30: Utility | I30: Transmission & Distribution (T&D) Upgrade Deferral | J30: ='Benefits and Benefit Calcs'!G27 -> 0 | K30: ='Benefits and Benefit Calcs'!H27 -> 0 | L30: ='Benefits and Benefit Calcs'!I27 -> 0 | M30: ='Benefits and Benefit Calcs'!J27 -> 1 | N30: ='Benefits and Benefit Calcs'!K27 -> 0 | O30: ='Benefits and Benefit Calcs'!L27 -> 1 | P30: ='Benefits and Benefit Calcs'!M27 -> 0 | Q30: ='Benefits and Benefit Calcs'!N27 -> 0 | R30: ='Benefits and Benefit Calcs'!O27 -> 1 | S30: ='Benefits and Benefit Calcs'!P27 -> 0 | T30: ='Benefits and Benefit Calcs'!Q27 -> 1 | U30: ='Benefits and Benefit Calcs'!R27 -> 0 | V30: ='Benefits and Benefit Calcs'!S27 -> 0 | W30: ='Benefits and Benefit Calcs'!T27 -> 0 | X30: ='Benefits and Benefit Calcs'!U27 -> 0 | Y30: ='Benefits and Benefit Calcs'!V27 -> 0 | Z30: ='Benefits and Benefit Calcs'!W27 -> 1 | AA30: ='Benefits and Benefit Calcs'!X27 -> 1 | AB30: ='Benefits and Benefit Calcs'!Y27 -> 1 | AC30: ='Benefits and Benefit Calcs'!Z27 -> 1
C31: =INDEX('Benefits and Benefit Calcs'!$C$66:$C$123,MATCH(D31,'Benefits and Benefit Calcs'!$B$66:$B$123,0)) -> 0 | D31: 01010100App_9 | F31: Distribution | G31: Regulated | H31: Utility | I31: Transmission & Distribution (T&D) Upgrade Deferral | J31: ='Benefits and Benefit Calcs'!G28 -> 0 | K31: ='Benefits and Benefit Calcs'!H28 -> 0 | L31: ='Benefits and Benefit Calcs'!I28 -> 0 | M31: ='Benefits and Benefit Calcs'!J28 -> 0 | N31: ='Benefits and Benefit Calcs'!K28 -> 1 | O31: ='Benefits and Benefit Calcs'!L28 -> 1 | P31: ='Benefits and Benefit Calcs'!M28 -> 0 | Q31: ='Benefits and Benefit Calcs'!N28 -> 0 | R31: ='Benefits and Benefit Calcs'!O28 -> 0 | S31: ='Benefits and Benefit Calcs'!P28 -> 1 | T31: ='Benefits and Benefit Calcs'!Q28 -> 1 | U31: ='Benefits and Benefit Calcs'!R28 -> 0 | V31: ='Benefits and Benefit Calcs'!S28 -> 0 | W31: ='Benefits and Benefit Calcs'!T28 -> 0 | X31: ='Benefits and Benefit Calcs'!U28 -> 0 | Y31: ='Benefits and Benefit Calcs'!V28 -> 0 | Z31: ='Benefits and Benefit Calcs'!W28 -> 1 | AA31: ='Benefits and Benefit Calcs'!X28 -> 1 | AB31: ='Benefits and Benefit Calcs'!Y28 -> 1 | AC31: ='Benefits and Benefit Calcs'!Z28 -> 1
C32: =INDEX('Benefits and Benefit Calcs'!$C$66:$C$123,MATCH(D32,'Benefits and Benefit Calcs'!$B$66:$B$123,0)) -> 0 | D32: 01001100App_9 | F32: Distribution | G32: Deregulated | H32: Utility | I32: Transmission & Distribution (T&D) Upgrade Deferral | J32: ='Benefits and Benefit Calcs'!G29 -> 0 | K32: ='Benefits and Benefit Calcs'!H29 -> 0 | L32: ='Benefits and Benefit Calcs'!I29 -> 0 | M32: ='Benefits and Benefit Calcs'!J29 -> 1 | N32: ='Benefits and Benefit Calcs'!K29 -> 0 | O32: ='Benefits and Benefit Calcs'!L29 -> 1 | P32: ='Benefits and Benefit Calcs'!M29 -> 0 | Q32: ='Benefits and Benefit Calcs'!N29 -> 0 | R32: ='Benefits and Benefit Calcs'!O29 -> 0 | S32: ='Benefits and Benefit Calcs'!P29 -> 1 | T32: ='Benefits and Benefit Calcs'!Q29 -> 1 | U32: ='Benefits and Benefit Calcs'!R29 -> 0 | V32: ='Benefits and Benefit Calcs'!S29 -> 0 | W32: ='Benefits and Benefit Calcs'!T29 -> 0 | X32: ='Benefits and Benefit Calcs'!U29 -> 0 | Y32: ='Benefits and Benefit Calcs'!V29 -> 0 | Z32: ='Benefits and Benefit Calcs'!W29 -> 1 | AA32: ='Benefits and Benefit Calcs'!X29 -> 1 | AB32: ='Benefits and Benefit Calcs'!Y29 -> 1 | AC32: ='Benefits and Benefit Calcs'!Z29 -> 1
C33: =INDEX('Benefits and Benefit Calcs'!$C$66:$C$123,MATCH(D33,'Benefits and Benefit Calcs'!$B$66:$B$123,0)) -> 0 | D33: 00000000App_10 | F33: FALSE | G33: FALSE | H33: FALSE | I33: Substation On-site Power | J33: ='Benefits and Benefit Calcs'!G30 -> 0 | K33: ='Benefits and Benefit Calcs'!H30 -> 0 | L33: ='Benefits and Benefit Calcs'!I30 -> 0 | M33: ='Benefits and Benefit Calcs'!J30 -> 0 | N33: ='Benefits and Benefit Calcs'!K30 -> 0 | O33: ='Benefits and Benefit Calcs'!L30 -> 0 | P33: ='Benefits and Benefit Calcs'!M30 -> 0 | Q33: ='Benefits and Benefit Calcs'!N30 -> 0 | R33: ='Benefits and Benefit Calcs'!O30 -> 0 | S33: ='Benefits and Benefit Calcs'!P30 -> 0 | T33: ='Benefits and Benefit Calcs'!Q30 -> 0 | U33: ='Benefits and Benefit Calcs'!R30 -> 0 | V33: ='Benefits and Benefit Calcs'!S30 -> 0 | W33: ='Benefits and Benefit Calcs'!T30 -> 0 | X33: ='Benefits and Benefit Calcs'!U30 -> 0 | Y33: ='Benefits and Benefit Calcs'!V30 -> 0 | Z33: ='Benefits and Benefit Calcs'!W30 -> 0 | AA33: ='Benefits and Benefit Calcs'!X30 -> 0 | AB33: ='Benefits and Benefit Calcs'!Y30 -> 0 | AC33: ='Benefits and Benefit Calcs'!Z30 -> 0
C34: =INDEX('Benefits and Benefit Calcs'!$C$66:$C$123,MATCH(D34,'Benefits and Benefit Calcs'!$B$66:$B$123,0)) -> 0 | D34: 00110001App_11 | F34: End-User | G34: Regulated | H34: End-User | I34: Time-of-use (TOU) Energy Cost Management | J34: ='Benefits and Benefit Calcs'!G31 -> 0 | K34: ='Benefits and Benefit Calcs'!H31 -> 0 | L34: ='Benefits and Benefit Calcs'!I31 -> 0 | M34: ='Benefits and Benefit Calcs'!J31 -> 0 | N34: ='Benefits and Benefit Calcs'!K31 -> 1 | O34: ='Benefits and Benefit Calcs'!L31 -> 1 | P34: ='Benefits and Benefit Calcs'!M31 -> 0 | Q34: ='Benefits and Benefit Calcs'!N31 -> 0 | R34: ='Benefits and Benefit Calcs'!O31 -> 1 | S34: ='Benefits and Benefit Calcs'!P31 -> 1 | T34: ='Benefits and Benefit Calcs'!Q31 -> 1 | U34: ='Benefits and Benefit Calcs'!R31 -> 1 | V34: ='Benefits and Benefit Calcs'!S31 -> 0 | W34: ='Benefits and Benefit Calcs'!T31 -> 0 | X34: ='Benefits and Benefit Calcs'!U31 -> 0 | Y34: ='Benefits and Benefit Calcs'!V31 -> 0 | Z34: ='Benefits and Benefit Calcs'!W31 -> 1 | AA34: ='Benefits and Benefit Calcs'!X31 -> 1 | AB34: ='Benefits and Benefit Calcs'!Y31 -> 1 | AC34: ='Benefits and Benefit Calcs'!Z31 -> 1
C35: =INDEX('Benefits and Benefit Calcs'!$C$66:$C$123,MATCH(D35,'Benefits and Benefit Calcs'!$B$66:$B$123,0)) -> 0 | D35: 00101001App_11 | F35: End-User | G35: Deregulated | H35: End-User | I35: Time-of-use (TOU) Energy Cost Management | J35: ='Benefits and Benefit Calcs'!G32 -> 0 | K35: ='Benefits and Benefit Calcs'!H32 -> 0 | L35: ='Benefits and Benefit Calcs'!I32 -> 0 | M35: ='Benefits and Benefit Calcs'!J32 -> 1 | N35: ='Benefits and Benefit Calcs'!K32 -> 0 | O35: ='Benefits and Benefit Calcs'!L32 -> 1 | P35: ='Benefits and Benefit Calcs'!M32 -> 0 | Q35: ='Benefits and Benefit Calcs'!N32 -> 0 | R35: ='Benefits and Benefit Calcs'!O32 -> 1 | S35: ='Benefits and Benefit Calcs'!P32 -> 1 | T35: ='Benefits and Benefit Calcs'!Q32 -> 1 | U35: ='Benefits and Benefit Calcs'!R32 -> 1 | V35: ='Benefits and Benefit Calcs'!S32 -> 0 | W35: ='Benefits and Benefit Calcs'!T32 -> 0 | X35: ='Benefits and Benefit Calcs'!U32 -> 0 | Y35: ='Benefits and Benefit Calcs'!V32 -> 0 | Z35: ='Benefits and Benefit Calcs'!W32 -> 1 | AA35: ='Benefits and Benefit Calcs'!X32 -> 1 | AB35: ='Benefits and Benefit Calcs'!Y32 -> 1 | AC35: ='Benefits and Benefit Calcs'!Z32 -> 1
C36: =INDEX('Benefits and Benefit Calcs'!$C$66:$C$123,MATCH(D36,'Benefits and Benefit Calcs'!$B$66:$B$123,0)) -> 0 | D36: 00110001App_12 | F36: End-User | G36: Regulated | H36: End-User | I36: Demand Charge Management | J36: ='Benefits and Benefit Calcs'!G33 -> 0 | K36: ='Benefits and Benefit Calcs'!H33 -> 0 | L36: ='Benefits and Benefit Calcs'!I33 -> 0 | M36: ='Benefits and Benefit Calcs'!J33 -> 0 | N36: ='Benefits and Benefit Calcs'!K33 -> 1 | O36: ='Benefits and Benefit Calcs'!L33 -> 1 | P36: ='Benefits and Benefit Calcs'!M33 -> 0 | Q36: ='Benefits and Benefit Calcs'!N33 -> 0 | R36: ='Benefits and Benefit Calcs'!O33 -> 1 | S36: ='Benefits and Benefit Calcs'!P33 -> 1 | T36: ='Benefits and Benefit Calcs'!Q33 -> 1 | U36: ='Benefits and Benefit Calcs'!R33 -> 1 | V36: ='Benefits and Benefit Calcs'!S33 -> 0 | W36: ='Benefits and Benefit Calcs'!T33 -> 0 | X36: ='Benefits and Benefit Calcs'!U33 -> 0 | Y36: ='Benefits and Benefit Calcs'!V33 -> 0 | Z36: ='Benefits and Benefit Calcs'!W33 -> 1 | AA36: ='Benefits and Benefit Calcs'!X33 -> 1 | AB36: ='Benefits and Benefit Calcs'!Y33 -> 1 | AC36: ='Benefits and Benefit Calcs'!Z33 -> 1
C37: =INDEX('Benefits and Benefit Calcs'!$C$66:$C$123,MATCH(D37,'Benefits and Benefit Calcs'!$B$66:$B$123,0)) -> 0 | D37: 00101001App_12 | F37: End-User | G37: Deregulated | H37: End-User | I37: Demand Charge Management | J37: ='Benefits and Benefit Calcs'!G34 -> 0 | K37: ='Benefits and Benefit Calcs'!H34 -> 0 | L37: ='Benefits and Benefit Calcs'!I34 -> 0 | M37: ='Benefits and Benefit Calcs'!J34 -> 1 | N37: ='Benefits and Benefit Calcs'!K34 -> 0 | O37: ='Benefits and Benefit Calcs'!L34 -> 1 | P37: ='Benefits and Benefit Calcs'!M34 -> 0 | Q37: ='Benefits and Benefit Calcs'!N34 -> 0 | R37: ='Benefits and Benefit Calcs'!O34 -> 1 | S37: ='Benefits and Benefit Calcs'!P34 -> 1 | T37: ='Benefits and Benefit Calcs'!Q34 -> 1 | U37: ='Benefits and Benefit Calcs'!R34 -> 1 | V37: ='Benefits and Benefit Calcs'!S34 -> 0 | W37: ='Benefits and Benefit Calcs'!T34 -> 0 | X37: ='Benefits and Benefit Calcs'!U34 -> 0 | Y37: ='Benefits and Benefit Calcs'!V34 -> 0 | Z37: ='Benefits and Benefit Calcs'!W34 -> 1 | AA37: ='Benefits and Benefit Calcs'!X34 -> 1 | AB37: ='Benefits and Benefit Calcs'!Y34 -> 1 | AC37: ='Benefits and Benefit Calcs'!Z34 -> 1
C38: =INDEX('Benefits and Benefit Calcs'!$C$66:$C$123,MATCH(D38,'Benefits and Benefit Calcs'!$B$66:$B$123,0)) -> 0 | D38: 10010100App_13 | F38: Generation and Transmission | G38: Regulated | H38: Utility | I38: Electric Service Reliability | J38: ='Benefits and Benefit Calcs'!G35 -> 0 | K38: ='Benefits and Benefit Calcs'!H35 -> 0 | L38: ='Benefits and Benefit Calcs'!I35 -> 0 | M38: ='Benefits and Benefit Calcs'!J35 -> 0 | N38: ='Benefits and Benefit Calcs'!K35 -> 0 | O38: ='Benefits and Benefit Calcs'!L35 -> 0 | P38: ='Benefits and Benefit Calcs'!M35 -> 0 | Q38: ='Benefits and Benefit Calcs'!N35 -> 0 | R38: ='Benefits and Benefit Calcs'!O35 -> 0 | S38: ='Benefits and Benefit Calcs'!P35 -> 0 | T38: ='Benefits and Benefit Calcs'!Q35 -> 0 | U38: ='Benefits and Benefit Calcs'!R35 -> 0 | V38: ='Benefits and Benefit Calcs'!S35 -> 0 | W38: ='Benefits and Benefit Calcs'!T35 -> 0 | X38: ='Benefits and Benefit Calcs'!U35 -> 1 | Y38: ='Benefits and Benefit Calcs'!V35 -> 0 | Z38: ='Benefits and Benefit Calcs'!W35 -> 0 | AA38: ='Benefits and Benefit Calcs'!X35 -> 0 | AB38: ='Benefits and Benefit Calcs'!Y35 -> 0 | AC38: ='Benefits and Benefit Calcs'!Z35 -> 0
C39: =INDEX('Benefits and Benefit Calcs'!$C$66:$C$123,MATCH(D39,'Benefits and Benefit Calcs'!$B$66:$B$123,0)) -> 0 | D39: 10001100App_13 | F39: =IF(MID(D39,1,1)="1",Loc_1,IF(MID(D39,2,1)="1",Loc_2,IF(MID(D39,3,1)="1",Loc_3))) -> Generation and Transmission | G39: =IF(MID(D39,4,1)="1",Mark_1,IF(MID(D39,5,1)="1",Mark_2)) -> Deregulated | H39: =IF(MID(D39,6,1)="1",Own_1,IF(MID(D39,7,1)="1",Own_2,IF(MID(D39,8,1)="1",Own_3))) -> Utility | I39: =INDIRECT(MID(D39,9,6)) -> Electric Service Reliability | J39: ='Benefits and Benefit Calcs'!G36 -> 0 | K39: ='Benefits and Benefit Calcs'!H36 -> 0 | L39: ='Benefits and Benefit Calcs'!I36 -> 0 | M39: ='Benefits and Benefit Calcs'!J36 -> 0 | N39: ='Benefits and Benefit Calcs'!K36 -> 0 | O39: ='Benefits and Benefit Calcs'!L36 -> 0 | P39: ='Benefits and Benefit Calcs'!M36 -> 0 | Q39: ='Benefits and Benefit Calcs'!N36 -> 0 | R39: ='Benefits and Benefit Calcs'!O36 -> 0 | S39: ='Benefits and Benefit Calcs'!P36 -> 0 | T39: ='Benefits and Benefit Calcs'!Q36 -> 0 | U39: ='Benefits and Benefit Calcs'!R36 -> 0 | V39: ='Benefits and Benefit Calcs'!S36 -> 0 | W39: ='Benefits and Benefit Calcs'!T36 -> 0 | X39: ='Benefits and Benefit Calcs'!U36 -> 1 | Y39: ='Benefits and Benefit Calcs'!V36 -> 0 | Z39: ='Benefits and Benefit Calcs'!W36 -> 0 | AA39: ='Benefits and Benefit Calcs'!X36 -> 0 | AB39: ='Benefits and Benefit Calcs'!Y36 -> 0 | AC39: ='Benefits and Benefit Calcs'!Z36 -> 0
C40: =INDEX('Benefits and Benefit Calcs'!$C$66:$C$123,MATCH(D40,'Benefits and Benefit Calcs'!$B$66:$B$123,0)) -> 0 | D40: 01010100App_13 | F40: Distribution | G40: Regulated | H40: Utility | I40: Electric Service Reliability | J40: ='Benefits and Benefit Calcs'!G37 -> 0 | K40: ='Benefits and Benefit Calcs'!H37 -> 0 | L40: ='Benefits and Benefit Calcs'!I37 -> 0 | M40: ='Benefits and Benefit Calcs'!J37 -> 0 | N40: ='Benefits and Benefit Calcs'!K37 -> 0 | O40: ='Benefits and Benefit Calcs'!L37 -> 0 | P40: ='Benefits and Benefit Calcs'!M37 -> 0 | Q40: ='Benefits and Benefit Calcs'!N37 -> 0 | R40: ='Benefits and Benefit Calcs'!O37 -> 0 | S40: ='Benefits and Benefit Calcs'!P37 -> 0 | T40: ='Benefits and Benefit Calcs'!Q37 -> 0 | U40: ='Benefits and Benefit Calcs'!R37 -> 0 | V40: ='Benefits and Benefit Calcs'!S37 -> 0 | W40: ='Benefits and Benefit Calcs'!T37 -> 0 | X40: ='Benefits and Benefit Calcs'!U37 -> 1 | Y40: ='Benefits and Benefit Calcs'!V37 -> 0 | Z40: ='Benefits and Benefit Calcs'!W37 -> 0 | AA40: ='Benefits and Benefit Calcs'!X37 -> 0 | AB40: ='Benefits and Benefit Calcs'!Y37 -> 0 | AC40: ='Benefits and Benefit Calcs'!Z37 -> 0
C41: =INDEX('Benefits and Benefit Calcs'!$C$66:$C$123,MATCH(D41,'Benefits and Benefit Calcs'!$B$66:$B$123,0)) -> 0 | D41: 01001100App_13 | F41: Distribution | G41: Deregulated | H41: Utility | I41: Electric Service Reliability | J41: ='Benefits and Benefit Calcs'!G38 -> 0 | K41: ='Benefits and Benefit Calcs'!H38 -> 0 | L41: ='Benefits and Benefit Calcs'!I38 -> 0 | M41: ='Benefits and Benefit Calcs'!J38 -> 0 | N41: ='Benefits and Benefit Calcs'!K38 -> 0 | O41: ='Benefits and Benefit Calcs'!L38 -> 0 | P41: ='Benefits and Benefit Calcs'!M38 -> 0 | Q41: ='Benefits and Benefit Calcs'!N38 -> 0 | R41: ='Benefits and Benefit Calcs'!O38 -> 0 | S41: ='Benefits and Benefit Calcs'!P38 -> 0 | T41: ='Benefits and Benefit Calcs'!Q38 -> 0 | U41: ='Benefits and Benefit Calcs'!R38 -> 0 | V41: ='Benefits and Benefit Calcs'!S38 -> 0 | W41: ='Benefits and Benefit Calcs'!T38 -> 0 | X41: ='Benefits and Benefit Calcs'!U38 -> 1 | Y41: ='Benefits and Benefit Calcs'!V38 -> 0 | Z41: ='Benefits and Benefit Calcs'!W38 -> 0 | AA41: ='Benefits and Benefit Calcs'!X38 -> 0 | AB41: ='Benefits and Benefit Calcs'!Y38 -> 0 | AC41: ='Benefits and Benefit Calcs'!Z38 -> 0
C42: =INDEX('Benefits and Benefit Calcs'!$C$66:$C$123,MATCH(D42,'Benefits and Benefit Calcs'!$B$66:$B$123,0)) -> 0 | D42: 00110001App_13 | F42: End-User | G42: Regulated | H42: End-User | I42: Electric Service Reliability | J42: ='Benefits and Benefit Calcs'!G39 -> 0 | K42: ='Benefits and Benefit Calcs'!H39 -> 0 | L42: ='Benefits and Benefit Calcs'!I39 -> 0 | M42: ='Benefits and Benefit Calcs'!J39 -> 0 | N42: ='Benefits and Benefit Calcs'!K39 -> 0 | O42: ='Benefits and Benefit Calcs'!L39 -> 0 | P42: ='Benefits and Benefit Calcs'!M39 -> 0 | Q42: ='Benefits and Benefit Calcs'!N39 -> 0 | R42: ='Benefits and Benefit Calcs'!O39 -> 0 | S42: ='Benefits and Benefit Calcs'!P39 -> 0 | T42: ='Benefits and Benefit Calcs'!Q39 -> 0 | U42: ='Benefits and Benefit Calcs'!R39 -> 0 | V42: ='Benefits and Benefit Calcs'!S39 -> 0 | W42: ='Benefits and Benefit Calcs'!T39 -> 1 | X42: ='Benefits and Benefit Calcs'!U39 -> 0 | Y42: ='Benefits and Benefit Calcs'!V39 -> 0 | Z42: ='Benefits and Benefit Calcs'!W39 -> 0 | AA42: ='Benefits and Benefit Calcs'!X39 -> 0 | AB42: ='Benefits and Benefit Calcs'!Y39 -> 0 | AC42: ='Benefits and Benefit Calcs'!Z39 -> 0
C43: =INDEX('Benefits and Benefit Calcs'!$C$66:$C$123,MATCH(D43,'Benefits and Benefit Calcs'!$B$66:$B$123,0)) -> 0 | D43: 00101001App_13 | F43: End-User | G43: Deregulated | H43: End-User | I43: Electric Service Reliability | J43: ='Benefits and Benefit Calcs'!G40 -> 0 | K43: ='Benefits and Benefit Calcs'!H40 -> 0 | L43: ='Benefits and Benefit Calcs'!I40 -> 0 | M43: ='Benefits and Benefit Calcs'!J40 -> 0 | N43: ='Benefits and Benefit Calcs'!K40 -> 0 | O43: ='Benefits and Benefit Calcs'!L40 -> 0 | P43: ='Benefits and Benefit Calcs'!M40 -> 0 | Q43: ='Benefits and Benefit Calcs'!N40 -> 0 | R43: ='Benefits and Benefit Calcs'!O40 -> 0 | S43: ='Benefits and Benefit Calcs'!P40 -> 0 | T43: ='Benefits and Benefit Calcs'!Q40 -> 0 | U43: ='Benefits and Benefit Calcs'!R40 -> 0 | V43: ='Benefits and Benefit Calcs'!S40 -> 0 | W43: ='Benefits and Benefit Calcs'!T40 -> 1 | X43: ='Benefits and Benefit Calcs'!U40 -> 0 | Y43: ='Benefits and Benefit Calcs'!V40 -> 0 | Z43: ='Benefits and Benefit Calcs'!W40 -> 0 | AA43: ='Benefits and Benefit Calcs'!X40 -> 0 | AB43: ='Benefits and Benefit Calcs'!Y40 -> 0 | AC43: ='Benefits and Benefit Calcs'!Z40 -> 0
C44: =INDEX('Benefits and Benefit Calcs'!$C$66:$C$123,MATCH(D44,'Benefits and Benefit Calcs'!$B$66:$B$123,0)) -> 0 | D44: 00110001App_14 | F44: End-User | G44: Regulated | H44: End-User | I44: Electric Service Power Quality | J44: ='Benefits and Benefit Calcs'!G41 -> 0 | K44: ='Benefits and Benefit Calcs'!H41 -> 0 | L44: ='Benefits and Benefit Calcs'!I41 -> 0 | M44: ='Benefits and Benefit Calcs'!J41 -> 0 | N44: ='Benefits and Benefit Calcs'!K41 -> 0 | O44: ='Benefits and Benefit Calcs'!L41 -> 0 | P44: ='Benefits and Benefit Calcs'!M41 -> 0 | Q44: ='Benefits and Benefit Calcs'!N41 -> 0 | R44: ='Benefits and Benefit Calcs'!O41 -> 0 | S44: ='Benefits and Benefit Calcs'!P41 -> 0 | T44: ='Benefits and Benefit Calcs'!Q41 -> 0 | U44: ='Benefits and Benefit Calcs'!R41 -> 0 | V44: ='Benefits and Benefit Calcs'!S41 -> 0 | W44: ='Benefits and Benefit Calcs'!T41 -> 0 | X44: ='Benefits and Benefit Calcs'!U41 -> 0 | Y44: ='Benefits and Benefit Calcs'!V41 -> 1 | Z44: ='Benefits and Benefit Calcs'!W41 -> 0 | AA44: ='Benefits and Benefit Calcs'!X41 -> 0 | AB44: ='Benefits and Benefit Calcs'!Y41 -> 0 | AC44: ='Benefits and Benefit Calcs'!Z41 -> 0
C45: =INDEX('Benefits and Benefit Calcs'!$C$66:$C$123,MATCH(D45,'Benefits and Benefit Calcs'!$B$66:$B$123,0)) -> 0 | D45: 00101001App_14 | F45: End-User | G45: Deregulated | H45: End-User | I45: Electric Service Power Quality | J45: ='Benefits and Benefit Calcs'!G42 -> 0 | K45: ='Benefits and Benefit Calcs'!H42 -> 0 | L45: ='Benefits and Benefit Calcs'!I42 -> 0 | M45: ='Benefits and Benefit Calcs'!J42 -> 0 | N45: ='Benefits and Benefit Calcs'!K42 -> 0 | O45: ='Benefits and Benefit Calcs'!L42 -> 0 | P45: ='Benefits and Benefit Calcs'!M42 -> 0 | Q45: ='Benefits and Benefit Calcs'!N42 -> 0 | R45: ='Benefits and Benefit Calcs'!O42 -> 0 | S45: ='Benefits and Benefit Calcs'!P42 -> 0 | T45: ='Benefits and Benefit Calcs'!Q42 -> 0 | U45: ='Benefits and Benefit Calcs'!R42 -> 0 | V45: ='Benefits and Benefit Calcs'!S42 -> 0 | W45: ='Benefits and Benefit Calcs'!T42 -> 0 | X45: ='Benefits and Benefit Calcs'!U42 -> 0 | Y45: ='Benefits and Benefit Calcs'!V42 -> 1 | Z45: ='Benefits and Benefit Calcs'!W42 -> 0 | AA45: ='Benefits and Benefit Calcs'!X42 -> 0 | AB45: ='Benefits and Benefit Calcs'!Y42 -> 0 | AC45: ='Benefits and Benefit Calcs'!Z42 -> 0
C46: =INDEX('Benefits and Benefit Calcs'!$C$66:$C$123,MATCH(D46,'Benefits and Benefit Calcs'!$B$66:$B$123,0)) -> 0 | D46: 10010100App_15 | F46: Generation and Transmission | G46: Regulated | H46: Utility | I46: Renewables Energy Time-shift | J46: ='Benefits and Benefit Calcs'!G43 -> 0 | K46: ='Benefits and Benefit Calcs'!H43 -> 0 | L46: ='Benefits and Benefit Calcs'!I43 -> 0 | M46: ='Benefits and Benefit Calcs'!J43 -> 0 | N46: ='Benefits and Benefit Calcs'!K43 -> 1 | O46: ='Benefits and Benefit Calcs'!L43 -> 1 | P46: ='Benefits and Benefit Calcs'!M43 -> 0 | Q46: ='Benefits and Benefit Calcs'!N43 -> 0 | R46: ='Benefits and Benefit Calcs'!O43 -> 1 | S46: ='Benefits and Benefit Calcs'!P43 -> 0 | T46: ='Benefits and Benefit Calcs'!Q43 -> 1 | U46: ='Benefits and Benefit Calcs'!R43 -> 0 | V46: ='Benefits and Benefit Calcs'!S43 -> 1 | W46: ='Benefits and Benefit Calcs'!T43 -> 0 | X46: ='Benefits and Benefit Calcs'!U43 -> 0 | Y46: ='Benefits and Benefit Calcs'!V43 -> 0 | Z46: ='Benefits and Benefit Calcs'!W43 -> 1 | AA46: ='Benefits and Benefit Calcs'!X43 -> 1 | AB46: ='Benefits and Benefit Calcs'!Y43 -> 1 | AC46: ='Benefits and Benefit Calcs'!Z43 -> 1
C47: =INDEX('Benefits and Benefit Calcs'!$C$66:$C$123,MATCH(D47,'Benefits and Benefit Calcs'!$B$66:$B$123,0)) -> 0 | D47: 01010100App_15 | F47: Distribution | G47: Regulated | H47: Utility | I47: Renewables Energy Time-shift | J47: ='Benefits and Benefit Calcs'!G44 -> 0 | K47: ='Benefits and Benefit Calcs'!H44 -> 0 | L47: ='Benefits and Benefit Calcs'!I44 -> 0 | M47: ='Benefits and Benefit Calcs'!J44 -> 0 | N47: ='Benefits and Benefit Calcs'!K44 -> 1 | O47: ='Benefits and Benefit Calcs'!L44 -> 1 | P47: ='Benefits and Benefit Calcs'!M44 -> 0 | Q47: ='Benefits and Benefit Calcs'!N44 -> 0 | R47: ='Benefits and Benefit Calcs'!O44 -> 0 | S47: ='Benefits and Benefit Calcs'!P44 -> 1 | T47: ='Benefits and Benefit Calcs'!Q44 -> 1 | U47: ='Benefits and Benefit Calcs'!R44 -> 0 | V47: ='Benefits and Benefit Calcs'!S44 -> 1 | W47: ='Benefits and Benefit Calcs'!T44 -> 0 | X47: ='Benefits and Benefit Calcs'!U44 -> 0 | Y47: ='Benefits and Benefit Calcs'!V44 -> 0 | Z47: ='Benefits and Benefit Calcs'!W44 -> 1 | AA47: ='Benefits and Benefit Calcs'!X44 -> 1 | AB47: ='Benefits and Benefit Calcs'!Y44 -> 1 | AC47: ='Benefits and Benefit Calcs'!Z44 -> 1
C48: =INDEX('Benefits and Benefit Calcs'!$C$66:$C$123,MATCH(D48,'Benefits and Benefit Calcs'!$B$66:$B$123,0)) -> 0 | D48: 10001010App_15 | F48: Generation and Transmission | G48: Deregulated | H48: Non-Utility Merchant/Independent Power Producer | I48: Renewables Energy Time-shift | J48: ='Benefits and Benefit Calcs'!G45 -> 1 | K48: ='Benefits and Benefit Calcs'!H45 -> 0 | L48: ='Benefits and Benefit Calcs'!I45 -> 0 | M48: ='Benefits and Benefit Calcs'!J45 -> 1 | N48: ='Benefits and Benefit Calcs'!K45 -> 0 | O48: ='Benefits and Benefit Calcs'!L45 -> 1 | P48: ='Benefits and Benefit Calcs'!M45 -> 0 | Q48: ='Benefits and Benefit Calcs'!N45 -> 0 | R48: ='Benefits and Benefit Calcs'!O45 -> 1 | S48: ='Benefits and Benefit Calcs'!P45 -> 0 | T48: ='Benefits and Benefit Calcs'!Q45 -> 1 | U48: ='Benefits and Benefit Calcs'!R45 -> 0 | V48: ='Benefits and Benefit Calcs'!S45 -> 0 | W48: ='Benefits and Benefit Calcs'!T45 -> 0 | X48: ='Benefits and Benefit Calcs'!U45 -> 0 | Y48: ='Benefits and Benefit Calcs'!V45 -> 0 | Z48: ='Benefits and Benefit Calcs'!W45 -> 1 | AA48: ='Benefits and Benefit Calcs'!X45 -> 1 | AB48: ='Benefits and Benefit Calcs'!Y45 -> 1 | AC48: ='Benefits and Benefit Calcs'!Z45 -> 1
C49: =INDEX('Benefits and Benefit Calcs'!$C$66:$C$123,MATCH(D49,'Benefits and Benefit Calcs'!$B$66:$B$123,0)) -> 0 | D49: 01001010App_15 | F49: Distribution | G49: Deregulated | H49: Non-Utility Merchant/Independent Power Producer | I49: Renewables Energy Time-shift | J49: ='Benefits and Benefit Calcs'!G46 -> 1 | K49: ='Benefits and Benefit Calcs'!H46 -> 0 | L49: ='Benefits and Benefit Calcs'!I46 -> 0 | M49: ='Benefits and Benefit Calcs'!J46 -> 1 | N49: ='Benefits and Benefit Calcs'!K46 -> 0 | O49: ='Benefits and Benefit Calcs'!L46 -> 1 | P49: ='Benefits and Benefit Calcs'!M46 -> 0 | Q49: ='Benefits and Benefit Calcs'!N46 -> 0 | R49: ='Benefits and Benefit Calcs'!O46 -> 0 | S49: ='Benefits and Benefit Calcs'!P46 -> 1 | T49: ='Benefits and Benefit Calcs'!Q46 -> 1 | U49: ='Benefits and Benefit Calcs'!R46 -> 0 | V49: ='Benefits and Benefit Calcs'!S46 -> 0 | W49: ='Benefits and Benefit Calcs'!T46 -> 0 | X49: ='Benefits and Benefit Calcs'!U46 -> 0 | Y49: ='Benefits and Benefit Calcs'!V46 -> 0 | Z49: ='Benefits and Benefit Calcs'!W46 -> 1 | AA49: ='Benefits and Benefit Calcs'!X46 -> 1 | AB49: ='Benefits and Benefit Calcs'!Y46 -> 1 | AC49: ='Benefits and Benefit Calcs'!Z46 -> 1
C50: =INDEX('Benefits and Benefit Calcs'!$C$66:$C$123,MATCH(D50,'Benefits and Benefit Calcs'!$B$66:$B$123,0)) -> 0 | D50: 00110001App_15 | F50: End-User | G50: Regulated | H50: End-User | I50: Renewables Energy Time-shift | J50: ='Benefits and Benefit Calcs'!G47 -> 0 | K50: ='Benefits and Benefit Calcs'!H47 -> 0 | L50: ='Benefits and Benefit Calcs'!I47 -> 0 | M50: ='Benefits and Benefit Calcs'!J47 -> 0 | N50: ='Benefits and Benefit Calcs'!K47 -> 0 | O50: ='Benefits and Benefit Calcs'!L47 -> 0 | P50: ='Benefits and Benefit Calcs'!M47 -> 0 | Q50: ='Benefits and Benefit Calcs'!N47 -> 0 | R50: ='Benefits and Benefit Calcs'!O47 -> 0 | S50: ='Benefits and Benefit Calcs'!P47 -> 0 | T50: ='Benefits and Benefit Calcs'!Q47 -> 0 | U50: ='Benefits and Benefit Calcs'!R47 -> 1 | V50: ='Benefits and Benefit Calcs'!S47 -> 0 | W50: ='Benefits and Benefit Calcs'!T47 -> 0 | X50: ='Benefits and Benefit Calcs'!U47 -> 0 | Y50: ='Benefits and Benefit Calcs'!V47 -> 0 | Z50: ='Benefits and Benefit Calcs'!W47 -> 1 | AA50: ='Benefits and Benefit Calcs'!X47 -> 1 | AB50: ='Benefits and Benefit Calcs'!Y47 -> 1 | AC50: ='Benefits and Benefit Calcs'!Z47 -> 1
C51: =INDEX('Benefits and Benefit Calcs'!$C$66:$C$123,MATCH(D51,'Benefits and Benefit Calcs'!$B$66:$B$123,0)) -> 0 | D51: 00101001App_15 | F51: End-User | G51: Deregulated | H51: End-User | I51: Renewables Energy Time-shift | J51: ='Benefits and Benefit Calcs'!G48 -> 0 | K51: ='Benefits and Benefit Calcs'!H48 -> 0 | L51: ='Benefits and Benefit Calcs'!I48 -> 0 | M51: ='Benefits and Benefit Calcs'!J48 -> 0 | N51: ='Benefits and Benefit Calcs'!K48 -> 0 | O51: ='Benefits and Benefit Calcs'!L48 -> 0 | P51: ='Benefits and Benefit Calcs'!M48 -> 0 | Q51: ='Benefits and Benefit Calcs'!N48 -> 0 | R51: ='Benefits and Benefit Calcs'!O48 -> 0 | S51: ='Benefits and Benefit Calcs'!P48 -> 0 | T51: ='Benefits and Benefit Calcs'!Q48 -> 0 | U51: ='Benefits and Benefit Calcs'!R48 -> 1 | V51: ='Benefits and Benefit Calcs'!S48 -> 0 | W51: ='Benefits and Benefit Calcs'!T48 -> 0 | X51: ='Benefits and Benefit Calcs'!U48 -> 0 | Y51: ='Benefits and Benefit Calcs'!V48 -> 0 | Z51: ='Benefits and Benefit Calcs'!W48 -> 1 | AA51: ='Benefits and Benefit Calcs'!X48 -> 1 | AB51: ='Benefits and Benefit Calcs'!Y48 -> 1 | AC51: ='Benefits and Benefit Calcs'!Z48 -> 1
C52: =INDEX('Benefits and Benefit Calcs'!$C$66:$C$123,MATCH(D52,'Benefits and Benefit Calcs'!$B$66:$B$123,0)) -> 0 | D52: 10010100App_16 | F52: Generation and Transmission | G52: Regulated | H52: Utility | I52: Renewables Capacity Firming | J52: ='Benefits and Benefit Calcs'!G49 -> 0 | K52: ='Benefits and Benefit Calcs'!H49 -> 0 | L52: ='Benefits and Benefit Calcs'!I49 -> 0 | M52: ='Benefits and Benefit Calcs'!J49 -> 0 | N52: ='Benefits and Benefit Calcs'!K49 -> 0 | O52: ='Benefits and Benefit Calcs'!L49 -> 1 | P52: ='Benefits and Benefit Calcs'!M49 -> 0 | Q52: ='Benefits and Benefit Calcs'!N49 -> 0 | R52: ='Benefits and Benefit Calcs'!O49 -> 0 | S52: ='Benefits and Benefit Calcs'!P49 -> 0 | T52: ='Benefits and Benefit Calcs'!Q49 -> 0 | U52: ='Benefits and Benefit Calcs'!R49 -> 0 | V52: ='Benefits and Benefit Calcs'!S49 -> 0 | W52: ='Benefits and Benefit Calcs'!T49 -> 0 | X52: ='Benefits and Benefit Calcs'!U49 -> 0 | Y52: ='Benefits and Benefit Calcs'!V49 -> 0 | Z52: ='Benefits and Benefit Calcs'!W49 -> 1 | AA52: ='Benefits and Benefit Calcs'!X49 -> 1 | AB52: ='Benefits and Benefit Calcs'!Y49 -> 1 | AC52: ='Benefits and Benefit Calcs'!Z49 -> 1
C53: =INDEX('Benefits and Benefit Calcs'!$C$66:$C$123,MATCH(D53,'Benefits and Benefit Calcs'!$B$66:$B$123,0)) -> 0 | D53: 10001010App_16 | F53: Generation and Transmission | G53: Deregulated | H53: Non-Utility Merchant/Independent Power Producer | I53: Renewables Capacity Firming | J53: ='Benefits and Benefit Calcs'!G50 -> 0 | K53: ='Benefits and Benefit Calcs'!H50 -> 1 | L53: ='Benefits and Benefit Calcs'!I50 -> 0 | M53: ='Benefits and Benefit Calcs'!J50 -> 0 | N53: ='Benefits and Benefit Calcs'!K50 -> 0 | O53: ='Benefits and Benefit Calcs'!L50 -> 0 | P53: ='Benefits and Benefit Calcs'!M50 -> 0 | Q53: ='Benefits and Benefit Calcs'!N50 -> 0 | R53: ='Benefits and Benefit Calcs'!O50 -> 0 | S53: ='Benefits and Benefit Calcs'!P50 -> 0 | T53: ='Benefits and Benefit Calcs'!Q50 -> 0 | U53: ='Benefits and Benefit Calcs'!R50 -> 0 | V53: ='Benefits and Benefit Calcs'!S50 -> 0 | W53: ='Benefits and Benefit Calcs'!T50 -> 0 | X53: ='Benefits and Benefit Calcs'!U50 -> 0 | Y53: ='Benefits and Benefit Calcs'!V50 -> 0 | Z53: ='Benefits and Benefit Calcs'!W50 -> 1 | AA53: ='Benefits and Benefit Calcs'!X50 -> 1 | AB53: ='Benefits and Benefit Calcs'!Y50 -> 1 | AC53: ='Benefits and Benefit Calcs'!Z50 -> 1
C54: =INDEX('Benefits and Benefit Calcs'!$C$66:$C$123,MATCH(D54,'Benefits and Benefit Calcs'!$B$66:$B$123,0)) -> 0 | D54: 10010100App_17 | F54: Generation and Transmission | G54: Regulated | H54: Utility | I54: Wind Generation Grid Integration - Short Duration | J54: ='Benefits and Benefit Calcs'!G51 -> 0 | K54: ='Benefits and Benefit Calcs'!H51 -> 0 | L54: ='Benefits and Benefit Calcs'!I51 -> 0 | M54: ='Benefits and Benefit Calcs'!J51 -> 0 | N54: ='Benefits and Benefit Calcs'!K51 -> 0 | O54: ='Benefits and Benefit Calcs'!L51 -> 1 | P54: ='Benefits and Benefit Calcs'!M51 -> 0 | Q54: ='Benefits and Benefit Calcs'!N51 -> 0 | R54: ='Benefits and Benefit Calcs'!O51 -> 0 | S54: ='Benefits and Benefit Calcs'!P51 -> 0 | T54: ='Benefits and Benefit Calcs'!Q51 -> 0 | U54: ='Benefits and Benefit Calcs'!R51 -> 0 | V54: ='Benefits and Benefit Calcs'!S51 -> 0 | W54: ='Benefits and Benefit Calcs'!T51 -> 0 | X54: ='Benefits and Benefit Calcs'!U51 -> 0 | Y54: ='Benefits and Benefit Calcs'!V51 -> 0 | Z54: ='Benefits and Benefit Calcs'!W51 -> 1 | AA54: ='Benefits and Benefit Calcs'!X51 -> 1 | AB54: ='Benefits and Benefit Calcs'!Y51 -> 1 | AC54: ='Benefits and Benefit Calcs'!Z51 -> 1
C55: =INDEX('Benefits and Benefit Calcs'!$C$66:$C$123,MATCH(D55,'Benefits and Benefit Calcs'!$B$66:$B$123,0)) -> 0 | D55: 10001010App_17 | F55: Generation and Transmission | G55: Deregulated | H55: Non-Utility Merchant/Independent Power Producer | I55: Wind Generation Grid Integration - Short Duration | J55: ='Benefits and Benefit Calcs'!G52 -> 0 | K55: ='Benefits and Benefit Calcs'!H52 -> 1 | L55: ='Benefits and Benefit Calcs'!I52 -> 0 | M55: ='Benefits and Benefit Calcs'!J52 -> 0 | N55: ='Benefits and Benefit Calcs'!K52 -> 0 | O55: ='Benefits and Benefit Calcs'!L52 -> 0 | P55: ='Benefits and Benefit Calcs'!M52 -> 0 | Q55: ='Benefits and Benefit Calcs'!N52 -> 0 | R55: ='Benefits and Benefit Calcs'!O52 -> 0 | S55: ='Benefits and Benefit Calcs'!P52 -> 0 | T55: ='Benefits and Benefit Calcs'!Q52 -> 0 | U55: ='Benefits and Benefit Calcs'!R52 -> 0 | V55: ='Benefits and Benefit Calcs'!S52 -> 0 | W55: ='Benefits and Benefit Calcs'!T52 -> 0 | X55: ='Benefits and Benefit Calcs'!U52 -> 0 | Y55: ='Benefits and Benefit Calcs'!V52 -> 0 | Z55: ='Benefits and Benefit Calcs'!W52 -> 1 | AA55: ='Benefits and Benefit Calcs'!X52 -> 1 | AB55: ='Benefits and Benefit Calcs'!Y52 -> 1 | AC55: ='Benefits and Benefit Calcs'!Z52 -> 1
C56: =INDEX('Benefits and Benefit Calcs'!$C$66:$C$123,MATCH(D56,'Benefits and Benefit Calcs'!$B$66:$B$123,0)) -> 0 | D56: 10010100App_18 | F56: Generation and Transmission | G56: Regulated | H56: Utility | I56: Wind Generation Grid Integration - Long Duration | J56: ='Benefits and Benefit Calcs'!G53 -> 0 | K56: ='Benefits and Benefit Calcs'!H53 -> 0 | L56: ='Benefits and Benefit Calcs'!I53 -> 0 | M56: ='Benefits and Benefit Calcs'!J53 -> 0 | N56: ='Benefits and Benefit Calcs'!K53 -> 1 | O56: ='Benefits and Benefit Calcs'!L53 -> 1 | P56: ='Benefits and Benefit Calcs'!M53 -> 0 | Q56: ='Benefits and Benefit Calcs'!N53 -> 0 | R56: ='Benefits and Benefit Calcs'!O53 -> 1 | S56: ='Benefits and Benefit Calcs'!P53 -> 0 | T56: ='Benefits and Benefit Calcs'!Q53 -> 1 | U56: ='Benefits and Benefit Calcs'!R53 -> 0 | V56: ='Benefits and Benefit Calcs'!S53 -> 1 | W56: ='Benefits and Benefit Calcs'!T53 -> 0 | X56: ='Benefits and Benefit Calcs'!U53 -> 0 | Y56: ='Benefits and Benefit Calcs'!V53 -> 0 | Z56: ='Benefits and Benefit Calcs'!W53 -> 1 | AA56: ='Benefits and Benefit Calcs'!X53 -> 1 | AB56: ='Benefits and Benefit Calcs'!Y53 -> 1 | AC56: ='Benefits and Benefit Calcs'!Z53 -> 1
C57: =INDEX('Benefits and Benefit Calcs'!$C$66:$C$123,MATCH(D57,'Benefits and Benefit Calcs'!$B$66:$B$123,0)) -> 0 | D57: 01010100App_18 | F57: Distribution | G57: Regulated | H57: Utility | I57: Wind Generation Grid Integration - Long Duration | J57: ='Benefits and Benefit Calcs'!G54 -> 0 | K57: ='Benefits and Benefit Calcs'!H54 -> 0 | L57: ='Benefits and Benefit Calcs'!I54 -> 0 | M57: ='Benefits and Benefit Calcs'!J54 -> 0 | N57: ='Benefits and Benefit Calcs'!K54 -> 1 | O57: ='Benefits and Benefit Calcs'!L54 -> 1 | P57: ='Benefits and Benefit Calcs'!M54 -> 0 | Q57: ='Benefits and Benefit Calcs'!N54 -> 0 | R57: ='Benefits and Benefit Calcs'!O54 -> 0 | S57: ='Benefits and Benefit Calcs'!P54 -> 1 | T57: ='Benefits and Benefit Calcs'!Q54 -> 1 | U57: ='Benefits and Benefit Calcs'!R54 -> 0 | V57: ='Benefits and Benefit Calcs'!S54 -> 1 | W57: ='Benefits and Benefit Calcs'!T54 -> 0 | X57: ='Benefits and Benefit Calcs'!U54 -> 0 | Y57: ='Benefits and Benefit Calcs'!V54 -> 0 | Z57: ='Benefits and Benefit Calcs'!W54 -> 1 | AA57: ='Benefits and Benefit Calcs'!X54 -> 1 | AB57: ='Benefits and Benefit Calcs'!Y54 -> 1 | AC57: ='Benefits and Benefit Calcs'!Z54 -> 1
C58: =INDEX('Benefits and Benefit Calcs'!$C$66:$C$123,MATCH(D58,'Benefits and Benefit Calcs'!$B$66:$B$123,0)) -> 0 | D58: 10001010App_18 | F58: Generation and Transmission | G58: Deregulated | H58: Non-Utility Merchant/Independent Power Producer | I58: Wind Generation Grid Integration - Long Duration | J58: ='Benefits and Benefit Calcs'!G55 -> 1 | K58: ='Benefits and Benefit Calcs'!H55 -> 0 | L58: ='Benefits and Benefit Calcs'!I55 -> 0 | M58: ='Benefits and Benefit Calcs'!J55 -> 1 | N58: ='Benefits and Benefit Calcs'!K55 -> 0 | O58: ='Benefits and Benefit Calcs'!L55 -> 1 | P58: ='Benefits and Benefit Calcs'!M55 -> 0 | Q58: ='Benefits and Benefit Calcs'!N55 -> 0 | R58: ='Benefits and Benefit Calcs'!O55 -> 1 | S58: ='Benefits and Benefit Calcs'!P55 -> 0 | T58: ='Benefits and Benefit Calcs'!Q55 -> 1 | U58: ='Benefits and Benefit Calcs'!R55 -> 0 | V58: ='Benefits and Benefit Calcs'!S55 -> 0 | W58: ='Benefits and Benefit Calcs'!T55 -> 0 | X58: ='Benefits and Benefit Calcs'!U55 -> 0 | Y58: ='Benefits and Benefit Calcs'!V55 -> 0 | Z58: ='Benefits and Benefit Calcs'!W55 -> 1 | AA58: ='Benefits and Benefit Calcs'!X55 -> 1 | AB58: ='Benefits and Benefit Calcs'!Y55 -> 1 | AC58: ='Benefits and Benefit Calcs'!Z55 -> 1
C59: =INDEX('Benefits and Benefit Calcs'!$C$66:$C$123,MATCH(D59,'Benefits and Benefit Calcs'!$B$66:$B$123,0)) -> 0 | D59: 01001010App_18 | F59: Distribution | G59: Deregulated | H59: Non-Utility Merchant/Independent Power Producer | I59: Wind Generation Grid Integration - Long Duration | J59: ='Benefits and Benefit Calcs'!G56 -> 1 | K59: ='Benefits and Benefit Calcs'!H56 -> 0 | L59: ='Benefits and Benefit Calcs'!I56 -> 0 | M59: ='Benefits and Benefit Calcs'!J56 -> 1 | N59: ='Benefits and Benefit Calcs'!K56 -> 0 | O59: ='Benefits and Benefit Calcs'!L56 -> 1 | P59: ='Benefits and Benefit Calcs'!M56 -> 0 | Q59: ='Benefits and Benefit Calcs'!N56 -> 0 | R59: ='Benefits and Benefit Calcs'!O56 -> 0 | S59: ='Benefits and Benefit Calcs'!P56 -> 1 | T59: ='Benefits and Benefit Calcs'!Q56 -> 1 | U59: ='Benefits and Benefit Calcs'!R56 -> 0 | V59: ='Benefits and Benefit Calcs'!S56 -> 0 | W59: ='Benefits and Benefit Calcs'!T56 -> 0 | X59: ='Benefits and Benefit Calcs'!U56 -> 0 | Y59: ='Benefits and Benefit Calcs'!V56 -> 0 | Z59: ='Benefits and Benefit Calcs'!W56 -> 1 | AA59: ='Benefits and Benefit Calcs'!X56 -> 1 | AB59: ='Benefits and Benefit Calcs'!Y56 -> 1 | AC59: ='Benefits and Benefit Calcs'!Z56 -> 1

Sheet Data Input Module II --> (hidden)

Sheet Benefit Calc Inputs (hidden)
A1: Range Name | B1: Input Name | C1: Units | D1: Definition
A2: calc_input_01 | B2: Total Energy Discharged for Arbitrage | C2: MWh | D2: The total amount of energy discharged from the energy storage device and used for arbitrage purposes over a year.
A3: calc_input_02 | B3: Average On-Peak Price of Electricity | C3: $/MWh | D3: The average on-peak price of wholesale electricity over a year.
A4: calc_input_03 | B4: Average Off-Peak Price of Electricity | C4: $/MWh | D4: The average off-peak price of wholesale electricity over a year.
A5: calc_input_04 | B5: Total Energy Discharged for Energy Time-Shift | C5: MWh | D5: The total amount of energy discharged from the energy storage device for the purposes of shifting energy from an off-peak time to an on-peak time. This may allow a utility to decrease their costs by offsetting the need to run less efficient, more expensive peaking units.
A6: calc_input_05 | B6: Average Variable Peak Generation Costs | C6: $/MWh | D6: The average variable generation costs for marginal generation units used to meet peak demand.
A7: calc_input_06 | B7: Average Variable Off-Peak Generation Costs | C7: $/MWh | D7: The average variable generation costs for base load generation units.
A8: calc_input_07 | B8: CO2 Emissions Factor for Generation on the Margin | C8: lbs/MWh | D8: The characteristic or average CO2 emissions factor for marginal generation units used to meet peak demand.
A9: calc_input_08 | B9: CO2 Emissions Factor for Base Generation | C9: lbs/MWh | D9: The characteristic or average CO2 emissions factor for base load generation units.
A10: calc_input_09 | B10: SOx Emissions Factor for Generation on the Margin | C10: lbs/MWh | D10: The characteristic or average SOx emissions factor for marginal generation units used to meet peak demand.
A11: calc_input_10 | B11: SOx Emissions Factor for Base Generation | C11: lbs/MWh | D11: The characteristic or average SOx emissions factor for base load generation units.
A12: calc_input_11 | B12: NOx Emissions Factor for Generation on the Margin | C12: lbs/MWh | D12: The characteristic or average NOx emissions factor for marginal generation units used to meet peak demand.
A13: calc_input_12 | B13: NOx Emissions Factor for Base Generation | C13: lbs/MWh | D13: The characteristic or average NOx emissions factor for base load generation units.
A14: calc_input_13 | B14: PM Emissions Factor for Generation on the Margin | C14: lbs/MWh | D14: The characteristic or average PM emissions factor for marginal generation units used to meet peak demand.
A15: calc_input_14 | B15: PM Emissions Factor for Base Generation | C15: lbs/MWh | D15: The characteristic or average PM emissions factor for base load generation units.
A16: calc_input_15 | B16: Value of CO2 | C16: $/ton | D16: The anticipated or current market price of carbon emissions.
A17: calc_input_16 | B17: Value of SOx | C17: $/ton | D17: The anticipated or current market price of SOx emissions.
A18: calc_input_17 | B18: Value of NOx | C18: $/ton | D18: The anticipated or current market price of NOx emissions.
A19: calc_input_18 | B19: Value of PM | C19: $/ton | D19: The anticipated or current market price of PM emissions.
A20: calc_input_19 | B20: Total Energy Storage Capacity Sold | C20: MW-h | D20: The total energy storage capacity sold into an hourly capacity market over the course of a year.
A21: calc_input_20 | B21: Average Value of Capacity on the Market | C21: $/MW-h | D21: The average market price for capacity in the hourly capacity market.
A22: calc_input_21 | B22: Generation Capacity Deferred | C22: MW | D22: The size of the generation investment deferred as a result of installing energy storage. Please only enter a single value per deferral in the initial year of deferral. If there is no deferral in a given year, leave that entry cell blank.
A23: calc_input_22 | B23: Capital Cost of Deferred Generation Capacity | C23: $/MW | D23: The base overnight capital cost of the deferred generation investment. Please only enter a single value per deferral in the initial year of deferral. If there is no deferral in a given year, leave that entry cell blank.
A24: calc_input_23 | B24: Yearly O&M Costs of Deferred Generation Capacity | C24: $/MW-year | D24: The expected fixed yearly operations and maintenance costs of the deferred generation investment. Please only enter a single value per deferral in the initial year of deferral. If there is no deferral in a given year, leave that entry cell blank.
A25: calc_input_24 | B25: Annual Fixed Charge Rate for Generation Capital Investment | C25: % | D25: The rate used to convert capital plant installed cost into an annuity equivalent (payment) representing annual carrying charges for capital equipment. It includes consideration of interest and equity return rates, annual interest payments and return of debt principal, dividends and return of equity principal, income taxes, and property taxes. Please only enter a single value per deferral in the initial year of deferral. If there is no deferral in a given year, leave that entry cell blank.
A26: calc_input_25 | B26: Initial Year of Generation Deferral | C26: year | D26: The first year that generation is deferred. Enter the value in 20XX format. Please only enter a single value per deferral in the initial year of deferral. If there is no deferral in a given year, leave that entry cell blank.
A27: calc_input_26 | B27: Final year of Generation Deferral | C27: year | D27: The last year that generation is deferred. Enter the value in 20XX format. Please only enter a single value per deferral in the initial year of deferral. If there is no deferral in a given year, leave that entry cell blank.
A28: calc_input_27 | B28: Total Load Following Services Provided | C28: MW-h | D28: The total energy storage capacity sold into an hourly market for load following services. The calculation that uses this input assumes there is an hourly capacity market for this service. However, in many markets load following is not a separate ancillary service and is provided through the sub-hourly energy markets. In such cases, there is no way to generate explicit revenue by providing load following services.
A29: calc_input_28 | B29: Average Price for Load Following | C29: $/MW-h | D29: The average market price paid for load following services in the hourly market.
A30: calc_input_29 | B30: Capital Cost of Conventional Generation Capacity used for Load Following | C30: $/kW | D30: The base overnight capital cost of the conventional generation typically used to provide load following services.
A31: calc_input_30 | B31: Total Energy Discharged for Load Following | C31: MWh | D31: The total energy discharged by energy storage for the purposes of load following.
A32: calc_input_31 | B32: Marginal Operating Cost of Load Following Generation | C32: $/MWh | D32: The typical marginal operating costs of conventional generation if it was being used to provide load following. If the generator is being run at sub-optimal load conditions the marginal operating costs may be higher than normal.
A33: calc_input_32 | B33: Marginal Operating Cost of Base Load Generation | C33: $/MWh | D33: The typical marginal operating costs of conventional base load generation. It is assumed that this is the type of generation that will be used to charge the energy storage that is providing load following services.
A34: calc_input_33 | B34: Total Area Regulation Services Provided | C34: MW-h | D34: The total energy storage capacity sold into an hourly market for area regulation services.
A35: calc_input_34 | B35: Average Price for Area Regulation | C35: $/MW-h | D35: The average market price paid for area regulation services in the hourly market. If the market has a price for up regulation and down regulation please add the average cost of each and enter the sum into the tool.
A36: calc_input_105 | B36: Energy Storage Capacity for Area Regulation | C36: MW | D36: The amount of energy storage capacity being used to provide area regulation services annually.
A37: calc_input_35 | B37: Conventional Capacity Required for Equivalent Level of Area Regulation | C37: MW | D37: Because energy storage can respond to system regulation needs more accurately and quickly than some conventional generation sources, less capacity could be required if energy storage devices rather than conventional devices were used to provide this service. This input captures the amount of conventional capacity that would need to be devoted to area regulation annually in order to achieve the same level of service as the energy storage device.
A38: calc_input_36 | B38: Price of Conventional Capacity | C38: $/MW | D38: The annual price of conventional generation capacity. This can be estimated by assuming a base overnight cost of new generation and multiplying this cost by an annual fixed charge rate.
A39: calc_input_37 | B39: Total Spinning-Reserve Services Provided | C39: MW-h | D39: The total energy storage capacity sold into an hourly market for spinning-reserve services.
A40: calc_input_38 | B40: Average Price for Spinning Reserve Services | C40: $/MW-h | D40: The average market price paid for spinning-reserve services in the hourly market.
A41: calc_input_39 | B41: Total Non-Spinning-Reserve Services Provided | C41: MW-h | D41: The total energy storage capacity sold into an hourly market for non-spinning-reserve services.
A42: calc_input_40 | B42: Average Price for Non-Spinning Reserve Services | C42: $/MW-h | D42: The average market price paid for non-spinning-reserve services in the hourly market.
A43: calc_input_41 | B43: Total Backup Supply Services Provided | C43: MW-h | D43: The total energy storage capacity sold into an hourly market for backup supply services.
A44: calc_input_42 | B44: Average Price for Backup Supply Services | C44: $/MW-h | D44: The average market price paid for backup supply services in the hourly market.
A45: calc_input_43 | B45: Marginal Operating Costs of Conventional Generation at Partial Load | C45: $/MWh | D45: The typical marginal operating costs of conventional generation if it was being used to provide spinning-reserve capacity services. If a generator is being used to provide these services, it is being run at partial load conditions; therefore, the marginal operating costs may be higher than normal.
A46: calc_input_44 | B46: Marginal Operating Costs of Conventional Generation at Optimal Load | C46: $/MWh | D46: The typical marginal operating costs of conventional generation at optimal loading conditions.
A47: calc_input_45 | B47: CO2 Emissions Factor of Generation at Partial Load | C47: lbs/MWh | D47: The typical emissions factor of conventional generation operated at partial load so that it can provide spinning-reserve services.
A48: calc_input_46 | B48: CO2 Emissions Factor of Generation at Optimal Load | C48: lbs/MWh | D48: The typical emissions factor of conventional generation operated at optimal load.
A49: calc_input_47 | B49: SOx Emissions Factor of Generation at Partial Load | C49: lbs/MWh | D49: The typical emissions factor of conventional generation operated at partial load so that it can provide spinning-reserve services.
A50: calc_input_48 | B50: SOx Emissions Factor of Generation at Optimal Load | C50: lbs/MWh | D50: The typical emissions factor of conventional generation operated at optimal load.
A51: calc_input_49 | B51: NOx Emissions Factor of Generation at Partial Load | C51: lbs/MWh | D51: The typical emissions factor of conventional generation operated at partial load so that it can provide spinning-reserve services.
A52: calc_input_50 | B52: NOx Emissions Factor of Generation at Optimal Load | C52: lbs/MWh | D52: The typical emissions factor of conventional generation operated at optimal load.
A53: calc_input_51 | B53: PM Emissions Factor of Generation at Partial Load | C53: lbs/MWh | D53: The typical emissions factor of conventional generation operated at partial load so that it can provide spinning-reserve services.
A54: calc_input_52 | B54: PM Emissions Factor of Generation at Optimal Load | C54: lbs/MWh | D54: The typical emissions factor of conventional generation operated at optimal load.
A55: calc_input_53 | B55: Annual Reactive Power Capacity Available for Voltage Support | C55: MVAR-yr | D55: The annual energy storage capacity available for providing voltage support.
A56: calc_input_54 | B56: Annual Capacity Payment for Voltage Support | C56: $/MVAR-yr | D56: The approximate annual payment to generators for providing voltage support. These services are often procured through longer term, negotiated, agreements.
A57: calc_input_55 | B57: Average Variable Operating Cost of Non-Congestion Generation | C57: $/MWh | D57: If a utility is using energy storage to avoid "congestion", it means they are using energy storage to address transmission constraints and enable the most cost effective generation dispatch. If energy storage were used in this way this parameter captures the variable operating cost of the optimal generation dispatch not subject to the transmission constraints which energy storage alleviates.
A58: calc_input_56 | B58: Annual Transmission Enhancement Benefit | C58: $/kW-yr | D58: When limited by long-term stability the transmission capacity can be increased by providing active damping of low frequency oscillations. Energy storage devices can actively dampen these system oscillations through modulation of both real and reactive power. Using energy storage to provide this service can defer the need to invest in additional transmission capacity. This input estimates the value of this incremental transmission capacity increase.
A59: calc_input_57 | B59: Number of Underfrequency Load-Shedding Occurrences | C59: # | D59: Because energy storage can inject real power rapidly into the system, it is an effective method to offset, or reduce, under frequency load shedding because it reduces the mismatch between load and supply capability that takes place because of the system disturbance. Therefore, using energy storage to provide this service can result in a reliability benefit. This input represents the number of underfrequency load shedding occurrences that were avoided as a result of using energy storage for this purpose.
A60: calc_input_58 | B60: Value of Avoided Load-Shedding Occurrences | C60: $/# | D60: This parameter represents the average value of each underfrequency load-shedding occurrence that is avoided as a result of the energy storage device.
A61: calc_input_59 | B61: Total Hours of Congestion Avoided | C61: hr | D61: The total number of hours of congestion that the energy storage device was able to curtail.
A62: calc_input_60 | B62: Average Congestion Charge | C62: $/MW-h | D62: The average charge associated with the congestion that the energy storage device was able to curtail.
A63: calc_input_61 | B63: Average Wholesale Price of Electricity | C63: $/MWh | D63: The average wholesale price of electricity. For utilities that own and use their own generation, this represents the average levelized cost of electricity from generation plants.
A64: calc_input_62 | B64: Average Variable Operating Cost of Congestion Generation | C64: $/MWh | D64: If a utility is using energy storage to avoid "congestion", it means they are using energy storage to address transmission constraints and enable the most cost effective generation dispatch. If energy storage were not used in this way this parameter captures the variable operating cost of the sub-optimal generation dispatch subject to the transmission constraints that energy storage alleviates.
A65: calc_input_63 | B65: Transmission Capacity Deferred | C65: kVA | D65: The size of the transmission investment deferred as a result of installing energy storage. Please only enter a single value per deferral in the initial year of deferral. If there is no deferral in a given year, leave that entry cell blank. | E65: The size of the transmission investment deferred as a result of installing energy storage. Please only enter a single value per deferral in the initial year of deferral. If there is no deferral in a given year leave that entry cell blank.
A66: calc_input_64 | B66: Annual Fixed Charge Rate for Transmission Capital Investment | C66: % | D66: The rate used to convert capital transmission installed cost into an annuity equivalent (payment) representing annual carrying charges for capital equipment. It includes consideration of interest and equity return rates, annual interest payments and return of debt principal, dividends and return of equity principal, income taxes, and property taxes. Please only enter a single value per deferral in the initial year of deferral. If there is no deferral in a given year, leave that entry cell blank. | E66: The base overnight capital cost of the deferred transmission investment.
A67: calc_input_65 | B67: Capital Cost of Deferred Transmission Capacity | C67: $/kVA | D67: The base overnight capital cost of the deferred transmission investment. Please only enter a single value per deferral in the initial year of deferral. If there is no deferral in a given year, leave that entry cell blank. | E67: The expected fixed yearly operations and maintenance costs of the deferred transmission investment.
A68: calc_input_66 | B68: Yearly O&M Costs of Deferred Transmission Capacity | C68: $/year | D68: The expected fixed yearly operations and maintenance costs of the deferred transmission investment. Please only enter a single value per deferral in the initial year of deferral. If there is no deferral in a given year, leave that entry cell blank. | E68: The rate used to convert capital transmission installed cost into an annuity equivalent (payment) representing annual carrying charges for capital equipment. It includes consideration of interest and equity return rates, annual interest payments and return of debt principal, dividends and return of equity principal, income taxes, and property taxes.
A69: calc_input_67 | B69: Initial Year of Transmission Deferral | C69: year | D69: The first year that transmission is deferred. Enter the value in 20XX format. Please only enter a single value per deferral in the initial year of deferral. If there is no deferral in a given year, leave that entry cell blank. | E69: The first year that transmission is deferred. Enter the value in 20XX format.
A70: calc_input_68 | B70: Final year of Transmission Deferral | C70: year | D70: The last year that transmission is deferred. Enter the value in 20XX format. | E70: The last year that transmission is deferred. Enter the value in 20XX format.
A71: calc_input_69 | B71: Distribution Capacity Deferred | C71: kVA | D71: The size of the distribution investment deferred as a result of installing energy storage. Please only enter a single value per deferral in the initial year of deferral. If there is no deferral in a given year, leave that entry cell blank. | E71: The size of the transmission investment deferred as a result of installing energy storage.
A72: calc_input_70 | B72: Annual Fixed Charge Rate for Distribution Capital Investment | C72: % | D72: The rate used to convert capital distribution installed cost into an annuity equivalent (payment) representing annual carrying charges for capital equipment. It includes consideration of interest and equity return rates, annual interest payments and return of debt principal, dividends and return of equity principal, income taxes, and property taxes. Please only enter a single value per deferral in the initial year of deferral. If there is no deferral in a given year, leave that entry cell blank. | E72: The base overnight capital cost of the deferred transmission investment.
A73: calc_input_71 | B73: Capital Cost of Deferred Distribution Capacity | C73: $/kVA | D73: The base overnight capital cost of the deferred distribution investment. Please only enter a single value per deferral in the initial year of deferral. If there is no deferral in a given year, leave that entry cell blank. | E73: The expected fixed yearly operations and maintenance costs of the deferred transmission investment.
A74: calc_input_72 | B74: Yearly O&M Costs of Deferred Distribution Capacity | C74: $/year | D74: The expected fixed yearly operations and maintenance costs of the deferred distribution investment. Please only enter a single value per deferral in the initial year of deferral. If there is no deferral in a given year, leave that entry cell blank. | E74: The rate used to convert capital transmission installed cost into an annuity equivalent (payment) representing annual carrying charges for capital equipment. It includes consideration of interest and equity return rates, annual interest payments and return of debt principal, dividends and return of equity principal, income taxes, and property taxes.
A75: calc_input_73 | B75: Initial Year of Distribution Deferral | C75: year | D75: The first year that distribution investment is deferred. Enter the value in 20XX format. Please only enter a single value per deferral in the initial year of deferral. If there is no deferral in a given year, leave that entry cell blank. | E75: The first year that transmission is deferred. Enter the value in 20XX format.
A76: calc_input_74 | B76: Final year of Distribution Deferral | C76: year | D76: The last year that distribution investment is deferred. Enter the value in 20XX format. Please only enter a single value per deferral in the initial year of deferral. If there is no deferral in a given year, leave that entry cell blank. | E76: The last year that transmission is deferred. Enter the value in 20XX format.
A77: calc_input_75 | B77: Total Energy Discharged for TOU Energy Cost Management | C77: MWh | D77: Total amount of energy discharged by the energy storage device to provide energy during peak-time so as to avoid paying peak prices.
A78: calc_input_76 | B78: Average On-Peak Retail Price of Electricity | C78: $/MWh | D78: Average on-peak retail price of electricity. This would be the price that was avoided as a result of the energy storage device.
A79: calc_input_77 | B79: Average Off-Peak Retail Price of Electricity | C79: $/MWh | D79: Average off-peak retail price of electricity. This would be the price that was paid for electricity used to charge the energy storage device.
A80: calc_input_78 | B80: Average Monthly Load Reduction from ES at Peak | C80: MW | D80: For customers with a peak demand charge, this parameter represents the average monthly peak reduction that results from using the energy storage device to peak-shave during peak times.
A81: calc_input_79 | B81: Average Monthly Load Reduction from ES at Partial-Peak | C81: MW | D81: For customers with a partial-peak demand charge, this parameter represents the average monthly peak reduction that results from using the energy storage device to peak-shave during partial-peak times.
A82: calc_input_80 | B82: Average Monthly Load Reduction from ES at Off-Peak | C82: MW | D82: For customers with an off-peak demand charge, this parameter represents the average monthly peak reduction that results from using the energy storage device to peak-shave during off-peak times.
A83: calc_input_81 | B83: Peak Demand Charge | C83: $/MW-month | D83: For customers with a peak demand charge, this parameter represents the price of that demand charge.
A84: calc_input_82 | B84: Partial-Peak Demand Charge | C84: $/MW-month | D84: For customers with a partial-peak demand charge, this parameter represents the price of that demand charge.
A85: calc_input_83 | B85: Off-Peak Demand Charge | C85: $/MW-month | D85: For customers with an off-peak demand charge, this parameter represents the price of that demand charge.
A86: calc_input_84 | B86: Outage Minutes Avoided by Residential Customers | C86: minutes | D86: The total outage minutes avoided by residential customers as a result of energy storage devices being used to provide power during system interruptions.
A87: calc_input_85 | B87: Outage Minutes Avoided by Commercial Customers | C87: minutes | D87: The total outage minutes avoided by commercial customers as a result of energy storage devices being used to provide power during system interruptions.
A88: calc_input_86 | B88: Outage Minutes Avoided by Industrial Customers | C88: minutes | D88: The total outage minutes avoided by industrial customers as a result of energy storage devices being used to provide power during system interruptions.
A89: calc_input_87 | B89: Average Hourly Residential Load Not Served During Outage | C89: kW | D89: The average residential load unserved during outages. This parameter can be estimated by determining the average load of customers whose reliability will be impacted by the energy storage device.
A90: calc_input_88 | B90: Average Hourly Commercial Load Not Served During Outage | C90: kW | D90: The average commercial load unserved during outages. This parameter can be estimated by determining the average load of customers whose reliability will be impacted by the energy storage device.
A91: calc_input_89 | B91: Average Hourly Industrial Load Not Served During Outage | C91: kW | D91: The average industrial load unserved during outages. This parameter can be estimated by determining the average load of customers whose reliability will be impacted by the energy storage device.
A92: calc_input_90 | B92: Residential VOS | C92: $/kWh | D92: Represents the true value of the electricity service to the residential customer without regard to the actual cost of providing the service. This input captures the value of service reliability quantified by the willingness of customers to pay for service reliability, taking into account the resources (e.g., income) of the residential customer.
A93: calc_input_91 | B93: Commercial VOS | C93: $/kWh | D93: Represents the true value of the electricity service to the commercial customer without regard to the actual cost of providing the service. This input captures the value of service reliability quantified by the willingness of customers to pay for service reliability, taking into account the resources (e.g., income) of the commercial customer or by a firm's expected net revenues associated with the added reliability.
A94: calc_input_92 | B94: Industrial VOS | C94: $/kWh | D94: Represents the true value of the electricity service to the commercial customer without regard to the actual cost of providing the service. This input captures the value of service reliability quantified by the willingness of customers to pay for service reliability, taking into account the resources (e.g., income) of the commercial customer or by a firm's expected net revenues associated with the added reliability.
A95: calc_input_93 | B95: Number of Months that Demand Charges are Avoided | C95: # | D95: Represents the number of months that all demand charges are avoided by using energy storage to reduce peak load during demand charge periods.
A96: calc_input_94 | B96: Typical Number of Power Quality Events per Year | C96: # | D96: The typical number of power quality events experienced each year such as variations in voltage magnitude, variations in frequency, or momentary service interruption. These power quality interruptions may disrupt operations, harm equipment, and result in lost revenue. It is assumed that the energy storage solution will avoid all power quality events that would have otherwise taken place.
A97: calc_input_95 | B97: Value of Avoided Power Quality Events | C97: $/kw peak load | D97: The value of avoiding each power quality event. This parameter may be quantified by taking into account the extent to which power quality events disrupt operations, harm equipment, and result in lost revenue or productivity.
A98: calc_input_96 | B98: Customer Peak Load | C98: kW | D98: The average monthly peak load.
A99: calc_input_97 | B99: Average Variable Renewable Generation Costs | C99: $/MW | D99: The average variable generation costs for renewable generation units used to charge energy storage devices and accomplish renewable energy time-shifting.
A100: calc_input_98 | B100: Total Renewable Energy Discharged for Arbitrage | C100: MWh | D100: The total amount of renewable energy discharged from the energy storage device and used for arbitrage purposes over a year.
A101: calc_input_99 | B101: Total Renewable Energy Discharged for Energy Time-Shift | C101: MWh | D101: The total amount of renewable energy discharged from the energy storage device for the purposes of shifting energy from an off-peak time to an on-peak time. This may allow an end user to avoid paying peak-prices for electricity or this may allow a utility to decrease their costs by offsetting the need to run less efficient, more expensive peaking units.
A102: calc_input_100 | B102: Effective Load Carrying Capacity of Renewable Post-Firming | C102: % | D102: The effective load carrying capacity is a measure of a power plant's contribution to the greater electric supply system's capacity during times when the amount and reliability of capacity is important. The ELCC of renewable or intermittent sources is usually less than 100%. Firming a renewable resource with energy storage can increase that unit's ELCC. This parameter captures the ELCC post-firming.
A103: calc_input_101 | B103: Effective Load Carrying Capacity of Renewable Pre-Firming | C103: % | D103: The effective load carrying capacity is a measure of a power plant's contribution to the greater electric supply system's capacity during times when the amount and reliability of capacity is important. The ELCC of renewable or intermittent sources is usually less than 100%. Firming a renewable resource with energy storage can increase that unit's ELCC. This parameter captures the ELCC pre-firming.
A104: calc_input_102 | B104: Hours of Renewable Energy Capacity Sold | C104: hr | D104: The total hours of renewable energy capacity sold into an hourly capacity market over the course of a year. This input assumes that capacity was firmed with energy storage and the seller therefore was able to sell more capacity into the market than they otherwise would have been able to.
A105: calc_input_103 | B105: Nameplate Capacity of Renewable Resource | C105: MW | D105: The nameplate capacity of the renewable resource(s) that were firmed with energy storage.
A106: calc_input_104 | B106: Capacity Factor of Renewable Resource | C106: % | D106: The total number of hours the firmed renewable resource runs represented as a percentage of total hours in the year.
A107: calc_input_106 | B107: Capital Cost of Conventional Voltage Support Solution | C107: $/kVAR | D107: The amount of money that would be required to fix a reactive power issue that is causing power quality issues using a conventional solution. This value will be used as a proxy to monetize the power quality benefit provided by the energy storage solution.
A108: calc_input_107 | B108: Nameplate Reactive Power Capacity of Energy Storage | C108: kVAR | D108: The total reactive power output capacity of the distributed energy storage solution. This reactive power output capability of distributed energy storage devices would be used in the voltage support application to provide reactive power and manage voltage thereby ensuring better power quality and reliability.
A109: calc_input_108 | B109: Annual Fixed Charge Rate for Voltage Support Capital Investment | C109: % | D109: The rate used to convert the capital cost of an installed conventional voltage support solution into an annuity equivalent (payment) representing annual carrying charges for capital equipment. It includes consideration of interest and equity return rates, annual interest payments and return of debt principal, dividends and return of equity principal, income taxes, and property taxes.
A110: calc_input_109 | B110: Capital Cost of Conventional Electric Service Reliability Solution | C110: $/kW | D110: The amount of money that would be required to fix a reliability using a conventional solution. This value will be used as a proxy to monetize the reliability benefit provided by the energy storage solution.
A111: calc_input_110 | B111: Annual Fixed Charge Rate for Electric Service Reliability Capital Investment | C111: % | D111: The rate used to convert the capital cost of an installed conventional reliability solution into an annuity equivalent (payment) representing annual carrying charges for capital equipment. It includes consideration of interest and equity return rates, annual interest payments and return of debt principal, dividends and return of equity principal, income taxes, and property taxes.

Sheet Default Inputs (hidden)
A1: Range Name | B1: Default Range Name | C1: Input Name | D1: Units | E1: Source | F1: =input_EcoParam_8 -> 2011 | G1: =F1+1 -> 2012 | H1: =G1+1 -> 2013 | I1: =H1+1 -> 2014 | J1: =I1+1 -> 2015
A2: calc_input_01 | B2: ="default_"&A2 -> default_calc_input_01 | C2: =INDIRECT(A2) -> Total Energy Discharged for Arbitrage | D2: =OFFSET(INDIRECT(A2),0,1) -> MWh | E2: Sandia Report SAND2010-0815, pg 74 | F2: =900*input_Param_1/1000 -> 0.9 | G2: =900*input_Param_1/1000 -> 0.9 | H2: =900*input_Param_1/1000 -> 0.9 | I2: =900*input_Param_1/1000 -> 0.9 | J2: =900*input_Param_1/1000 -> 0.9
A3: calc_input_02 | B3: ="default_"&A3 -> default_calc_input_02 | C3: =INDIRECT(A3) -> Average On-Peak Price of Electricity | D3: =OFFSET(INDIRECT(A3),0,1) -> $/MWh | E3: Sandia Report SAND2010-0815, pg 74 | F3: 100 | G3: 100 | H3: 100 | I3: 100 | J3: 100
A4: calc_input_03 | B4: default_calc_input_03 | C4: Average Off-Peak Price of Electricity | D4: $/MWh | E4: Sandia Report SAND2010-0815, pg 74 | F4: 50 | G4: 50 | H4: 50 | I4: 50 | J4: 50
A5: calc_input_04 | B5: ="default_"&A5 -> default_calc_input_04 | C5: Total Energy Discharged for Energy Time-Shift | D5: MWh | E5: Sandia Report SAND2010-0815, pg 74 | F5: =900*input_Param_1/1000 -> 0.9 | G5: =900*input_Param_1/1000 -> 0.9 | H5: =900*input_Param_1/1000 -> 0.9 | I5: =900*input_Param_1/1000 -> 0.9 | J5: =900*input_Param_1/1000 -> 0.9
A6: calc_input_05 | B6: default_calc_input_05 | C6: Average Variable Peak Generation Costs | D6: $/MWh | E6: EIA AEO 2011, DOE/EIA-0383(2010), Variable O&M for Conventional Combined Cycle Natural Gas Plant | F6: 45.6 | G6: 45.6 | H6: 45.6 | I6: 45.6 | J6: 45.6
A7: calc_input_06 | B7: default_calc_input_06 | C7: Average Variable Off-Peak Generation Costs | D7: $/MWh | E7: EIA AEO 2011, DOE/EIA-0383(2010), Variable O&M for Conventional Coal Plant | F7: 24.3 | G7: 24.3 | H7: 24.3 | I7: 24.3 | J7: 24.3
A8: calc_input_07 | B8: default_calc_input_07 | C8: CO2 Emissions Factor for Generation on the Margin | D8: =OFFSET(INDIRECT(A8),0,1) -> lbs/MWh | E8: eGRID2010 Version 1.1, Marginal generation assumption based on internal expertise and analysis of regional generation mix. | F8: =D116 -> 844.5495 | G8: =F8 -> 844.5495 | H8: 844.5495 | I8: 844.5495 | J8: 844.5495
A9: calc_input_08 | B9: default_calc_input_08 | C9: CO2 Emissions Factor for Base Generation | D9: lbs/MWh | E9: eGRID2010 Version 1.1, Base generation assumption based on regional generation mix. | F9: 0 | G9: 0 | H9: 0 | I9: 0 | J9: 0
A10: calc_input_09 | B10: default_calc_input_09 | C10: SOx Emissions Factor for Generation on the Margin | D10: lbs/MWh | E10: eGRID2010 Version 1.1, Marginal generation assumption based on internal expertise and analysis of regional generation mix. | F10: 0.0747 | G10: 0.0747 | H10: 0.0747 | I10: 0.0747 | J10: 0.0747
A11: calc_input_10 | B11: default_calc_input_10 | C11: SOx Emissions Factor for Base Generation | D11: lbs/MWh | E11: eGRID2010 Version 1.1, Base generation assumption based on regional generation mix. | F11: 0 | G11: 0 | H11: 0 | I11: 0 | J11: 0
A12: calc_input_11 | B12: default_calc_input_11 | C12: NOx Emissions Factor for Generation on the Margin | D12: lbs/MWh | E12: eGRID2010 Version 1.1, Marginal generation assumption based on internal expertise and analysis of regional generation mix. | F12: 0.2525 | G12: 0.2525 | H12: 0.2525 | I12: 0.2525 | J12: 0.2525
A13: calc_input_12 | B13: default_calc_input_12 | C13: NOx Emissions Factor for Base Generation | D13: lbs/MWh | E13: eGRID2010 Version 1.1, Base generation assumption based on regional generation mix. | F13: 0 | G13: 0 | H13: 0 | I13: 0 | J13: 0
A14: calc_input_13 | B14: default_calc_input_13 | C14: PM Emissions Factor for Generation on the Margin | D14: lbs/MWh | E14: http://www.infinitepower.org/calc_pollution.htm, Assuming generation comes from Gas | F14: =0.04 -> 0.04 | G14: 0.04 | H14: 0.04 | I14: 0.04 | J14: 0.04
A15: calc_input_14 | B15: default_calc_input_14 | C15: PM Emissions Factor for Base Generation | D15: lbs/MWh | E15: http://www.infinitepower.org/calc_pollution.htm, Assuming generation comes from Western Coal | F15: =0.2 -> 0.2 | G15: 0.2 | H15: 0.2 | I15: 0.2 | J15: 0.2
A16: calc_input_15 | B16: default_calc_input_15 | C16: Value of CO2 | D16: $/ton | E16: (1) $20/ton http://www.ctv.ca/servlet/ArticleNews/story/CTVNews/20070422/green_qp_070422/20070422?hub=TopStories (2) Calculated: avg YOY/2000 E3_Avoided Costs (Existing Intl Markets, OR Climate Trust, Utility Planning Docs, Models) p.90; 5% growth rt 2024 p.92 (3) The value of CO2 emissions is based on ICF Consulting projections in the “Very High Emissions” scenario and that an unlimited number of offsets are available for $6.50/ton, effectively providing a backstop to the CO2 allowance price. “RPS Sensitivity & Very High Emissions Reference & Package Cases - 10/26/05,” ICF Consulting. Regional Greenhouse Gas Initiative, October 2005. Available at: http://www.rggi.org/docs/rps_hi_emis_10_26_05.ppt | F16: 20 | G16: 20 | H16: 20 | I16: 20 | J16: 20
A17: calc_input_16 | B17: default_calc_input_16 | C17: Value of SOx | D17: $/ton | E17: (1) Evolution Markets - estimated 2010 bid price http://www.evomarkets.com/ (2) E3_Avoided Costs (South Coast Air Quality Management District-SCAQMD, RECLAIM data) p.88, 10% growth rt 2024 p.92 (2) Evolution Markets: the value of NOx emissions is its commodity value in the EPA SIP NOx Trading Program. For November 2005 the average monthly price was about $2,500 per ton. For 2007, 2008, Annual 2009 the average monthly prices were $608.81, $561.43, $5,005 http://www.evomarkets.com/ | F17: 520 | G17: 520 | H17: 520 | I17: 520 | J17: 520
A18: calc_input_17 | B18: default_calc_input_17 | C18: Value of NOx | D18: $/ton | E18: (1) Evolution Markets - estimated 2007-09 bid price http://www.evomarkets.com/ The value of SOx emissions is its commodity value in the cap and trade market for the EPA’s Acid Rain Program. Each allowance permits a unit to emit one ton of SO2 during or after a specified year (2) For November 2005 average monthly price was $1,300/ton, increase w/ inflation http://www.evomarkets.com/ | F18: 3000 | G18: 3000 | H18: 3000 | I18: 3000 | J18: 3000
A19: calc_input_18 | B19: default_calc_input_18 | C19: Value of PM | D19: $/ton | E19: Calculated: avg YOY E3_Avoided Costs (CA Air Resources Board-CARB) p.89; 10% growth rt 2024 p.92 | F19: 36000 | G19: 36000 | H19: 36000 | I19: 36000 | J19: 36000
A20: calc_input_19 | B20: default_calc_input_19 | C20: Total Energy Storage Capacity Sold | D20: MW-h | E20: Sandia Report SAND2010-0815, pg 77 | F20: =2000*input_Param_1/1000 -> 2 | G20: =2000*input_Param_1/1000 -> 2 | H20: =2000*input_Param_1/1000 -> 2 | I20: =2000*input_Param_1/1000 -> 2 | J20: =2000*input_Param_1/1000 -> 2
A21: calc_input_20 | B21: default_calc_input_20 | C21: Average Value of Capacity on the Market | D21: $/MW-h | E21: Updated Capital Cost Estimates for Electricity Generation Plants, EIA, November 2010, Table 1. Updated Estimates of Power Plant Capital and Operating Cost, Conventional NGCC Overnight Capital Cost (2010 $/kW) + Fixed O&M Cost (2010$/kW) assuming 15% fixed charge rate for non-utility and 11% fixed charge rate for utilitites divided by 8760 hours per year. | F21: =(978*default_input_EcoParam_5/100+14)*1000/8760 -> 18.34474886 | G21: =(978*default_input_EcoParam_5/100+14)*1000/8760 -> 18.34474886 | H21: =(978*default_input_EcoParam_5/100+14)*1000/8760 -> 18.34474886 | I21: =(978*default_input_EcoParam_5/100+14)*1000/8760 -> 18.34474886 | J21: =(978*default_input_EcoParam_5/100+14)*1000/8760 -> 18.34474886
A22: calc_input_21 | B22: default_calc_input_21 | C22: Generation Capacity Deferred | D22: MW | E22: Assumes a 40MW Gas fired peaking plant was avoided (e.g. GE Frame 6B (6581B)) | F22: 40
A23: calc_input_22 | B23: default_calc_input_22 | C23: Capital Cost of Deferred Generation Capacity | D23: $/MW | E23: COST ESTIMATES FOR THERMAL PEAKING PLANT, Parsons Brinckerhoff New Zealand Ltd, June 2008, http://large.stanford.edu/publications/coal/references/docs/thermal-eaking.pdf, Assumes a 40MW Gas fired peaking plant was avoided (e.g. GE Frame 6B (6581B)) | F23: =1227*1000 -> 1227000
A24: calc_input_23 | B24: default_calc_input_23 | C24: Yearly O&M Costs of Deferred Generation Capacity | D24: $/MW-year | E24: http://large.stanford.edu/publications/coal/references/docs/thermal-eaking.pdf, Assumes a 40MW Gas fired peaking plant was avoided (e.g. GE Frame 6B (6581B)) | F24: =14*1000 -> 14000
A25: calc_input_24 | B25: default_calc_input_24 | C25: Annual Fixed Charge Rate for Generation Capital Investment | D25: % | E25: Same fixed charge rate used to amortize the cost of the energy storage deployment. | F25: =input_EcoParam_5*100 -> 11
A26: calc_input_25 | B26: default_calc_input_25 | C26: Initial Year of Generation Deferral | D26: year | E26: Same year as initial year of energy storage deployment. | F26: =input_EcoParam_8 -> 2011
A27: calc_input_26 | B27: default_calc_input_26 | C27: Final year of Generation Deferral | D27: year | E27: Assume a 3 year deferral | F27: =F26+2 -> 2013
A28: calc_input_27 | B28: default_calc_input_27 | C28: Total Load Following Services Provided | D28: MW-h | E28: Sandia Report SAND2010-0815, pg 78, assuming 500 hours a year of service and full battery capacity utilization | F28: =500*input_Param_1/1000 -> 0.5 | G28: =500*input_Param_1/1000 -> 0.5 | H28: =500*input_Param_1/1000 -> 0.5 | I28: =500*input_Param_1/1000 -> 0.5 | J28: =500*input_Param_1/1000 -> 0.5
A29: calc_input_28 | B29: default_calc_input_28 | C29: Average Price for Load Following | D29: $/MW-h | E29: Sandia Report SAND2010-0815, pg 78 | F29: 35 | G29: 35 | H29: 35 | I29: 35 | J29: 35
A30: calc_input_29 | B30: default_calc_input_29 | C30: Capital Cost of Conventional Generation Capacity used for Load Following | D30: $/kW | E30: Updated Capital Cost Estimates for Electricity Generation Plants, EIA, November 2010, Table 1. Updated Estimates of Power Plant Capital and Operating Cost, Conventional NGCC Overnight Capital Cost (2010 $/kW) + Fixed O&M Cost (2010$/kW) | F30: =(978+14) -> 992 | G30: =(978+14) -> 992 | H30: =(978+14) -> 992 | I30: =(978+14) -> 992 | J30: =(978+14) -> 992
A31: calc_input_30 | B31: default_calc_input_30 | C31: Total Energy Discharged for Load Following | D31: MWh | E31: Sandia Report SAND2010-0815, pg 78, assuming 500 hours a year of service and full battery capacity utilization | F31: =500*input_Param_1/1000 -> 0.5 | G31: =500*input_Param_1/1000 -> 0.5 | H31: =500*input_Param_1/1000 -> 0.5 | I31: =500*input_Param_1/1000 -> 0.5 | J31: =500*input_Param_1/1000 -> 0.5
A32: calc_input_31 | B32: default_calc_input_31 | C32: Marginal Operating Cost of Load Following Generation | D32: $/MWh | E32: EIA AEO 2011, DOE/EIA-0383(2010), Variable O&M for Conventional Combined Cycle Natural Gas Plant | F32: 45.6 | G32: 45.6 | H32: 45.6 | I32: 45.6 | J32: 45.6
A33: calc_input_32 | B33: default_calc_input_32 | C33: Marginal Operating Cost of Base Load Generation | D33: $/MWh | E33: EIA AEO 2011, DOE/EIA-0383(2010), Variable O&M for Conventional Coal Plant | F33: 24.3 | G33: 24.3 | H33: 24.3 | I33: 24.3 | J33: 24.3
A34: calc_input_33 | B34: default_calc_input_33 | C34: Total Area Regulation Services Provided | D34: MW-h | E34: Sandia Report SAND2010-0815, pg 79, Assume 50% of the year operation and because 1kW of storage can provide 2kW of storage the capacity of the device is multiplied by 2. | F34: =4380*input_Param_1/1000*2 -> 8.76 | G34: =4380*input_Param_1/1000*2 -> 8.76 | H34: =4380*input_Param_1/1000*2 -> 8.76 | I34: =4380*input_Param_1/1000*2 -> 8.76 | J34: =4380*input_Param_1/1000*2 -> 8.76
A35: calc_input_34 | B35: default_calc_input_34 | C35: Average Price for Area Regulation | D35: $/MW-h | E35: Sandia Report SAND2010-0815, pg 79 | F35: 38.55 | G35: 38.55 | H35: 38.55 | I35: 38.55 | J35: 38.55
A36: calc_input_105 | B36: default_calc_input_105 | C36: Energy Storage Capacity for Area Regulation | D36: MW | E36: Sandia Report SAND2010-0815, pg 79, Assumes twice the capacity of the storage device can be used for up and down regulation | F36: =input_Param_1/1000 -> 0.001 | G36: =input_Param_1/1000 -> 0.001 | H36: =input_Param_1/1000 -> 0.001 | I36: =input_Param_1/1000 -> 0.001 | J36: =input_Param_1/1000 -> 0.001
A37: calc_input_35 | B37: default_calc_input_35 | C37: Conventional Capacity Required for Equivalent Level of Area Regulation | D37: MW | E37: Sandia Report SAND2010-0815, pg 79, Assumes energy storage can provide twice the regulation capacity compared to its nameplate rating. | F37: =F36*2 -> 0.002 | G37: =G36*2 -> 0.002 | H37: =H36*2 -> 0.002 | I37: =I36*2 -> 0.002 | J37: =J36*2 -> 0.002
A38: calc_input_36 | B38: default_calc_input_36 | C38: Price of Conventional Capacity | D38: $/MW | E38: Updated Capital Cost Estimates for Electricity Generation Plants, EIA, November 2010, Table 1. Updated Estimates of Power Plant Capital and Operating Cost, Conventional NGCC Overnight Capital Cost (2010 $/kW) + Fixed O&M Cost (2010$/kW) assuming 15% fixed charge rate for non-utility and 11% fixed charge rate for utilitites | F38: =(978*default_input_EcoParam_5/100+14)*1000 -> 160700 | G38: =(978*default_input_EcoParam_5/100+14)*1000 -> 160700 | H38: =(978*default_input_EcoParam_5/100+14)*1000 -> 160700 | I38: =(978*default_input_EcoParam_5/100+14)*1000 -> 160700 | J38: =(978*default_input_EcoParam_5/100+14)*1000 -> 160700
A39: calc_input_37 | B39: default_calc_input_37 | C39: Total Spinning-Reserve Services Provided | D39: MW-h | E39: Estimate based on total number of expected service hours (low end) for this service described in Sandia Report SAND2010-0815, pg 80. the number of expected service hours are multiplied by the capacity of the energy storage device. | F39: =2000*input_Param_1/1000 -> 2 | G39: =2000*input_Param_1/1000 -> 2 | H39: =2000*input_Param_1/1000 -> 2 | I39: =2000*input_Param_1/1000 -> 2 | J39: =2000*input_Param_1/1000 -> 2
A40: calc_input_38 | B40: default_calc_input_38 | C40: Average Price for Spinning Reserve Services | D40: $/MW-h | E40: Sandia Report SAND2010-0815, pg 81, Assume high value | F40: 4.5 | G40: 4.5 | H40: 4.5 | I40: 4.5 | J40: 4.5
A41: calc_input_39 | B41: default_calc_input_39 | C41: Total Non-Spinning-Reserve Services Provided | D41: MW-h | E41: Estimate based on total number of expected service hours (low end) for this service described in Sandia Report SAND2010-0815, pg 80. the number of expected service hours are multiplied by the capacity of the energy storage device. | F41: =500*input_Param_1/1000 -> 0.5 | G41: =500*input_Param_1/1000 -> 0.5 | H41: =500*input_Param_1/1000 -> 0.5 | I41: =500*input_Param_1/1000 -> 0.5 | J41: =500*input_Param_1/1000 -> 0.5
A42: calc_input_40 | B42: default_calc_input_40 | C42: Average Price for Non-Spinning Reserve Services | D42: $/MW-h | E42: Ancillary Services: Technical and Commercial Insights, July 2007, Table E2 | F42: 3 | G42: 3 | H42: 3 | I42: 3 | J42: 3
A43: calc_input_41 | B43: default_calc_input_41 | C43: Total Backup Supply Services Provided | D43: MW-h | E43: Estimate based on total number of expected service hours (low end) for this service described in Sandia Report SAND2010-0815, pg 80. the number of expected service hours are multiplied by the capacity of the energy storage device. | F43: =150*input_Param_1/1000 -> 0.15 | G43: =150*input_Param_1/1000 -> 0.15 | H43: =150*input_Param_1/1000 -> 0.15 | I43: =150*input_Param_1/1000 -> 0.15 | J43: =150*input_Param_1/1000 -> 0.15
A44: calc_input_42 | B44: default_calc_input_42 | C44: Average Price for Backup Supply Services | D44: $/MW-h | E44: Ancillary Services: Technical and Commercial Insights, July 2007 | F44: 0.4 | G44: 0.4 | H44: 0.4 | I44: 0.4 | J44: 0.4
A45: calc_input_43 | B45: default_calc_input_43 | C45: Marginal Operating Costs of Conventional Generation at Partial Load | D45: $/MWh | E45: EIA AEO 2011, DOE/EIA-0383(2010), Variable O&M for Conventional Combined Cycle Natural Gas Plant. Increased this value by 1.0% based on the increased fuel use of a plant providing regulation services as described in Emissions Comparison for a 20 MW Flywheel-based Frequency Regulation Power Plant, KEMA Project: BPCC.0003.001, Final Report with Updated Data, May 2007 | F45: =F46*1.01 -> 46.056 | G45: =G46*1.01 -> 46.056 | H45: =H46*1.01 -> 46.056 | I45: =I46*1.01 -> 46.056 | J45: =J46*1.01 -> 46.056
A46: calc_input_44 | B46: default_calc_input_44 | C46: Marginal Operating Costs of Conventional Generation at Optimal Load | D46: $/MWh | E46: EIA AEO 2011, DOE/EIA-0383(2010), Variable O&M for Conventional Combined Cycle Natural Gas Plant | F46: 45.6 | G46: 45.6 | H46: 45.6 | I46: 45.6 | J46: 45.6
A47: calc_input_45 | B47: default_calc_input_45 | C47: CO2 Emissions Factor of Generation at Partial Load | D47: lbs/MWh | E47: eGRID2010 Version 1.1, Assuming generation efficiency is 5% worse than at optimal loading conditions. | F47: =D122 -> 717.436125 | G47: =F47 -> 717.436125 | H47: 717.436125 | I47: 717.436125 | J47: 717.436125
A48: calc_input_46 | B48: default_calc_input_46 | C48: CO2 Emissions Factor of Generation at Optimal Load | D48: lbs/MWh | E48: eGRID2010 Version 1.1, Emission factor based on regional aggregation of emissions. | F48: 683.2725 | G48: 683.2725 | H48: 683.2725 | I48: 683.2725 | J48: 683.2725
A49: calc_input_47 | B49: default_calc_input_47 | C49: SOx Emissions Factor of Generation at Partial Load | D49: lbs/MWh | E49: eGRID2010 Version 1.1, Assuming generation efficiency is 5% worse than at optimal loading conditions. | F49: 2.51958 | G49: 2.51958 | H49: 2.51958 | I49: 2.51958 | J49: 2.51958
A50: calc_input_48 | B50: default_calc_input_48 | C50: SOx Emissions Factor of Generation at Optimal Load | D50: lbs/MWh | E50: eGRID2010 Version 1.1, Emission factor based on regional aggregation of emissions. | F50: 2.3996 | G50: 2.3996 | H50: 2.3996 | I50: 2.3996 | J50: 2.3996
A51: calc_input_49 | B51: default_calc_input_49 | C51: NOx Emissions Factor of Generation at Partial Load | D51: lbs/MWh | E51: eGRID2010 Version 1.1, Assuming generation efficiency is 5% worse than at optimal loading conditions. | F51: 0.755895 | G51: 0.755895 | H51: 0.755895 | I51: 0.755895 | J51: 0.755895
A52: calc_input_50 | B52: default_calc_input_50 | C52: NOx Emissions Factor of Generation at Optimal Load | D52: lbs/MWh | E52: eGRID2010 Version 1.1, Emission factor based on regional aggregation of emissions. | F52: 0.7199 | G52: 0.7199 | H52: 0.7199 | I52: 0.7199 | J52: 0.7199
A53: calc_input_51 | B53: default_calc_input_51 | C53: PM Emissions Factor of Generation at Partial Load | D53: lbs/MWh | E53: http://www.infinitepower.org/calc_pollution.htm, Assuming generation comes from Gas and is 5% worse than at optimal loading conditions. | F53: =0.04*1.05 -> 0.042 | G53: 0.042 | H53: 0.042 | I53: 0.042 | J53: 0.042
A54: calc_input_52 | B54: default_calc_input_52 | C54: PM Emissions Factor of Generation at Optimal Load | D54: lbs/MWh | E54: http://www.infinitepower.org/calc_pollution.htm, Assuming generation comes from Gas | F54: =0.04 -> 0.04 | G54: 0.04 | H54: 0.04 | I54: 0.04 | J54: 0.04
A55: calc_input_53 | B55: default_calc_input_53 | C55: Annual Reactive Power Capacity Available for Voltage Support | D55: MVAR-yr | E55: Assumes the entire energy storage capacity can be used to provide reactive power. | F55: =input_Param_1/1000 -> 0.001 | G55: =input_Param_1/1000 -> 0.001 | H55: =input_Param_1/1000 -> 0.001 | I55: =input_Param_1/1000 -> 0.001 | J55: =input_Param_1/1000 -> 0.001
A56: calc_input_54 | B56: default_calc_input_54 | C56: Annual Capacity Payment for Voltage Support | D56: $/MVAR-yr | E56: Ancillary Services: Technical and Commercial Insights, July 2007, Table E2 | F56: 2000 | G56: 2000 | H56: 2000 | I56: 2000 | J56: 2000
A57: calc_input_55 | B57: default_calc_input_55 | C57: Average Variable Operating Cost of Non-Congestion Generation | D57: $/MWh | E57: EIA AEO 2011, DOE/EIA-0383(2010), Variable O&M for Conventional Coal Plant | F57: 24.3 | G57: 24.3 | H57: 24.3 | I57: 24.3 | J57: 24.3
A58: calc_input_56 | B58: default_calc_input_56 | C58: Annual Transmission Enhancement Benefit | D58: $/kW-yr | E58: Sandia Report SAND2010-0815, pg 83 | F58: 15.1 | G58: 15.1 | H58: 15.1 | I58: 15.1 | J58: 15.1
A59: calc_input_57 | B59: default_calc_input_57 | C59: Number of Underfrequency Load-Shedding Occurrences | D59: # | E59: Sandia Report SAND2010-0815, pg 83, Assumes approximately 4 occurances every 10 years. | F59: 0 | G59: 1 | H59: 0 | I59: 1 | J59: 0
A60: calc_input_58 | B60: default_calc_input_58 | C60: Value of Avoided Load-Shedding Occurrences | D60: $/# | E60: Sandia Report SAND2010-0815, pg 83, Assumes $12.8/kW per event | F60: =12.8*input_Param_1 -> 12.8 | G60: =12.8*input_Param_1 -> 12.8 | H60: =12.8*input_Param_1 -> 12.8 | I60: =12.8*input_Param_1 -> 12.8 | J60: =12.8*input_Param_1 -> 12.8
A61: calc_input_59 | B61: default_calc_input_59 | C61: Total Hours of Congestion Avoided | D61: hr | E61: Sandia Report SAND2010-0815, pg 84 | F61: =0.1*8760 -> 876 | G61: =0.1*8760 -> 876 | H61: =0.1*8760 -> 876 | I61: =0.1*8760 -> 876 | J61: =0.1*8760 -> 876
A62: calc_input_60 | B62: default_calc_input_60 | C62: Average Congestion Charge | D62: $/MW-h | E62: Sandia Report SAND2010-0815, pg 84 | F62: 10 | G62: 10 | H62: 10 | I62: 10 | J62: 10
A63: calc_input_61 | B63: default_calc_input_61 | C63: Average Wholesale Price of Electricity | D63: $/MWh | E63: http://www.eia.gov/todayinenergy/detail.cfm?id=2510 | F63: 50 | G63: 50 | H63: 50 | I63: 50 | J63: 50
A64: calc_input_62 | B64: default_calc_input_62 | C64: Average Variable Operating Cost of Congestion Generation | D64: $/MWh | E64: EIA AEO 2011, DOE/EIA-0383(2010), Variable O&M for Conventional Combined Cycle Natural Gas Plant | F64: 45.6 | G64: 45.6 | H64: 45.6 | I64: 45.6 | J64: 45.6
A65: calc_input_63 | B65: default_calc_input_63 | C65: Transmission Capacity Deferred | D65: kVA | F65: No Default
A66: calc_input_64 | B66: default_calc_input_64 | C66: Annual Fixed Charge Rate for Transmission Capital Investment | D66: % | E66: Same fixed charge rate used to amortize the cost of the energy storage deployment. | F66: =input_EcoParam_5*100 -> 11
A67: calc_input_65 | B67: ="default_"&A67 -> default_calc_input_65 | C67: =INDIRECT(A67) -> Capital Cost of Deferred Transmission Capacity | D67: =OFFSET(INDIRECT(A67),0,1) -> $/kVA | E67: Sandia Report SAND2010-0815, pg 85 | F67: 420
A68: calc_input_66 | B68: default_calc_input_66 | C68: Yearly O&M Costs of Deferred Transmission Capacity | D68: $/year | F68: No Default
A69: calc_input_67 | B69: default_calc_input_67 | C69: Initial Year of Transmission Deferral | D69: year | E69: Same year as initial year of energy storage deployment. | F69: =input_EcoParam_8 -> 2011
A70: calc_input_68 | B70: default_calc_input_68 | C70: Final year of Transmission Deferral | D70: year | E70: Assume a 3 year deferral | F70: =F69+2 -> 2013
A71: calc_input_69 | B71: default_calc_input_69 | C71: Distribution Capacity Deferred | D71: kVA | F71: No Default
A72: calc_input_70 | B72: default_calc_input_70 | C72: Annual Fixed Charge Rate for Distribution Capital Investment | D72: % | E72: Same fixed charge rate used to amortize the cost of the energy storage deployment. | F72: =input_EcoParam_5*100 -> 11
A73: calc_input_71 | B73: default_calc_input_71 | C73: Capital Cost of Deferred Distribution Capacity | D73: $/kVA | E73: Sandia Report SAND2010-0815, pg 85 | F73: 420
A74: calc_input_72 | B74: default_calc_input_72 | C74: Yearly O&M Costs of Deferred Distribution Capacity | D74: $/year | F74: No Default
A75: calc_input_73 | B75: default_calc_input_73 | C75: Initial Year of Distribution Deferral | D75: year | E75: Same year as initial year of energy storage deployment. | F75: =input_EcoParam_8 -> 2011
A76: calc_input_74 | B76: default_calc_input_74 | C76: Final year of Distribution Deferral | D76: year | E76: Assume a 3 year deferral | F76: =F75+2 -> 2013
A77: calc_input_75 | B77: default_calc_input_75 | C77: Total Energy Discharged for TOU Energy Cost Management | D77: MWh | E77: Sandia Report SAND2010-0815, pg 88 | F77: =720*input_Param_1/1000 -> 0.72 | G77: =720*input_Param_1/1000 -> 0.72 | H77: =720*input_Param_1/1000 -> 0.72 | I77: =720*input_Param_1/1000 -> 0.72 | J77: =720*input_Param_1/1000 -> 0.72
A78: calc_input_76 | B78: default_calc_input_76 | C78: Average On-Peak Retail Price of Electricity | D78: $/MWh | E78: Sandia Report SAND2010-0815, pg 88 | F78: 370 | G78: 370 | H78: 370 | I78: 370 | J78: 370
A79: calc_input_77 | B79: default_calc_input_77 | C79: Average Off-Peak Retail Price of Electricity | D79: $/MWh | E79: Sandia Report SAND2010-0815, pg 88 | F79: 110 | G79: 110 | H79: 110 | I79: 110 | J79: 110
A80: calc_input_78 | B80: default_calc_input_78 | C80: Average Monthly Load Reduction from ES at Peak | D80: MW | E80: Assume the entire capacity of the battery is used to shed peak and that the battery capacity does not exceed the total off-peak load. | F80: =input_Param_1/1000 -> 0.001 | G80: 0.001 | H80: 0.001 | I80: 0.001 | J80: 0.001
A81: calc_input_79 | B81: default_calc_input_79 | C81: Average Monthly Load Reduction from ES at Partial-Peak | D81: MW | E81: Assume the entire capacity of the battery is used to shed peak and that the battery capacity does not exceed the total off-peak load. | F81: 0.001 | G81: 0.001 | H81: 0.001 | I81: 0.001 | J81: 0.001
A82: calc_input_80 | B82: default_calc_input_80 | C82: Average Monthly Load Reduction from ES at Off-Peak | D82: MW | E82: Assume the entire capacity of the battery is used to shed peak and that the battery capacity does not exceed the total off-peak load. | F82: 0.001 | G82: 0.001 | H82: 0.001 | I82: 0.001 | J82: 0.001
A83: calc_input_81 | B83: default_calc_input_81 | C83: Peak Demand Charge | D83: $/MW-month | E83: Sandia Report SAND2010-0815, pg 90 | F83: 11590 | G83: 11590 | H83: 11590 | I83: 11590 | J83: 11590
A84: calc_input_82 | B84: default_calc_input_82 | C84: Partial-Peak Demand Charge | D84: $/MW-month | E84: Sandia Report SAND2010-0815, pg 90 | F84: 2650 | G84: 2650 | H84: 2650 | I84: 2650 | J84: 2650
A85: calc_input_83 | B85: default_calc_input_83 | C85: Off-Peak Demand Charge | D85: $/MW-month | E85: Sandia Report SAND2010-0815, pg 90 | F85: 6890 | G85: 6890 | H85: 6890 | I85: 6890 | J85: 6890
A86: calc_input_84 | B86: default_calc_input_84 | C86: Outage Minutes Avoided by Residential Customers | D86: minutes | E86: Sandia Report SAND2010-0815, pg 91 | F86: =2.5*60 -> 150 | G86: =2.5*60 -> 150 | H86: 150 | I86: 150 | J86: 150
A87: calc_input_85 | B87: default_calc_input_85 | C87: Outage Minutes Avoided by Commercial Customers | D87: minutes | E87: Sandia Report SAND2010-0815, pg 91 | F87: =2.5*60 -> 150 | G87: 150 | H87: 150 | I87: 150 | J87: 150
A88: calc_input_86 | B88: default_calc_input_86 | C88: Outage Minutes Avoided by Industrial Customers | D88: minutes | E88: Sandia Report SAND2010-0815, pg 91 | F88: =2.5*60 -> 150 | G88: 150 | H88: 150 | I88: 150 | J88: 150
A89: calc_input_87 | B89: default_calc_input_87 | C89: Average Hourly Residential Load Not Served During Outage | D89: kW | E89: http://www.eia.gov/electricity/data.cfm#sales, 2011 data on electricity sales and customers from the Energy Information Administration | F89: 1.3 | G89: 1.3 | H89: 1.3 | I89: 1.3 | J89: 1.3
A90: calc_input_88 | B90: default_calc_input_88 | C90: Average Hourly Commercial Load Not Served During Outage | D90: kW | E90: http://www.eia.gov/electricity/data.cfm#sales, 2011 data on electricity sales and customers from the Energy Information Administration | F90: 7.7 | G90: 7.7 | H90: 7.7 | I90: 7.7 | J90: 7.7
A91: calc_input_89 | B91: default_calc_input_89 | C91: Average Hourly Industrial Load Not Served During Outage | D91: kW | E91: http://www.eia.gov/electricity/data.cfm#sales, 2011 data on electricity sales and customers from the Energy Information Administration | F91: 132.1 | G91: 132.1 | H91: 132.1 | I91: 132.1 | J91: 132.1
A92: calc_input_90 | B92: default_calc_input_90 | C92: Residential VOS | D92: $/kWh | E92: Estimating the Benefits of the Energy Storage System Program Final Report Addendum: Benefit Calculation Methodology, DOE OE, July 2009 | F92: 5 | G92: 5 | H92: 5 | I92: 5 | J92: 5
A93: calc_input_91 | B93: default_calc_input_91 | C93: Commercial VOS | D93: $/kWh | E93: Estimating the Benefits of the Energy Storage System Program Final Report Addendum: Benefit Calculation Methodology, DOE OE, July 2009 | F93: 10 | G93: 10 | H93: 10 | I93: 10 | J93: 10
A94: calc_input_92 | B94: default_calc_input_92 | C94: Industrial VOS | D94: $/kWh | E94: Estimating the Benefits of the Energy Storage System Program Final Report Addendum: Benefit Calculation Methodology, DOE OE, July 2009 | F94: 20 | G94: 20 | H94: 20 | I94: 20 | J94: 20
A95: calc_input_93 | B95: default_calc_input_93 | C95: Number of Months that Demand Charges are Avoided | D95: # | E95: Sandia Report SAND2010-0815, pg 90 | F95: 5 | G95: 5 | H95: 5 | I95: 5 | J95: 5
A96: calc_input_94 | B96: default_calc_input_94 | C96: Typical Number of Power Quality Events per Year | D96: # | E96: Sandia Report SAND2010-0815, pg 94 | F96: 10 | G96: 10 | H96: 10 | I96: 10 | J96: 10
A97: calc_input_95 | B97: default_calc_input_95 | C97: Value of Avoided Power Quality Events | D97: $/kw peak load | E97: Sandia Report SAND2010-0815, pg 94 | F97: 5 | G97: 5 | H97: 5 | I97: 5 | J97: 5
A98: calc_input_96 | B98: default_calc_input_96 | C98: Customer Peak Load | D98: kW | E98: Navigant Assumption | F98: 1000 | G98: 1000 | H98: 1000 | I98: 1000 | J98: 1000
A99: calc_input_97 | B99: default_calc_input_97 | C99: Average Variable Renewable Generation Costs | D99: $/MW | E99: Navigant Assumption | F99: 0 | G99: 0 | H99: 0 | I99: 0 | J99: 0
A100: calc_input_98 | B100: default_calc_input_98 | C100: Total Renewable Energy Discharged for Arbitrage | D100: MWh | E100: Sandia Report SAND2010-0815, pg 97 | F100: =782*input_Param_1/1000 -> 0.782 | G100: 0.782 | H100: 0.782 | I100: 0.782 | J100: 0.782
A101: calc_input_99 | B101: default_calc_input_99 | C101: Total Renewable Energy Discharged for Energy Time-Shift | D101: MWh | E101: Sandia Report SAND2010-0815, pg 97 | F101: 0.782 | G101: 0.782 | H101: 0.782 | I101: 0.782 | J101: 0.782
A102: calc_input_100 | B102: default_calc_input_100 | C102: Effective Load Carrying Capacity of Renewable Post-Firming | D102: % | E102: Sandia Report SAND2010-0815, pg 100 | F102: 90 | G102: 90 | H102: 90 | I102: 90 | J102: 90
A103: calc_input_101 | B103: default_calc_input_101 | C103: Effective Load Carrying Capacity of Renewable Pre-Firming | D103: % | E103: Sandia Report SAND2010-0815, pg 100 | F103: 25 | G103: 25 | H103: 25 | I103: 25 | J103: 25
A104: calc_input_102 | B104: default_calc_input_102 | C104: Hours of Renewable Energy Capacity Sold | D104: hr | E104: Assuming a capacity factor of 30%, 2630 hours of capacity can be sold into the market. | F104: 2630 | G104: 2630 | H104: 2630 | I104: 2630 | J104: 2630
A105: calc_input_103 | B105: default_calc_input_103 | C105: Nameplate Capacity of Renewable Resource | D105: MW | F105: No Default
A106: calc_input_104 | B106: default_calc_input_104 | C106: Capacity Factor of Renewable Resource | D106: % | E106: Source: Ventyx Velocity Suite / Energy Information Administration | F106: 30 | G106: 30 | H106: 30 | I106: 30 | J106: 30
A107: calc_input_106 | B107: ="default_"&A107 -> default_calc_input_106 | C107: Capital Cost of Conventional Voltage Support Solution | D107: $/kVAR | E107: Based on an annual payment of $2000/Mvar and a fixed charge rate of 11% the total installed capital cost of a voltage support solution is $18/kVAR | F107: 18 | G107: 18 | H107: 18 | I107: 18 | J107: 18
A108: calc_input_107 | B108: ="default_"&A108 -> default_calc_input_107 | C108: Nameplate Reactive Power Capacity of Energy Storage | D108: kVAR | E108: Assumes the entire energy storage capacity can be used to provide reactive power. | F108: =input_Param_1 -> 1 | G108: =input_Param_1 -> 1 | H108: =input_Param_1 -> 1 | I108: =input_Param_1 -> 1 | J108: =input_Param_1 -> 1
A109: calc_input_108 | B109: ="default_"&A109 -> default_calc_input_108 | C109: Annual Fixed Charge Rate for Voltage Support Capital Investment | D109: % | E109: Same fixed charge rate used to amortize the cost of the energy storage deployment. | F109: =input_EcoParam_5*100 -> 11 | G109: =input_EcoParam_5*100 -> 11 | H109: =input_EcoParam_5*100 -> 11 | I109: =input_EcoParam_5*100 -> 11 | J109: =input_EcoParam_5*100 -> 11
A110: calc_input_109 | B110: ="default_"&A110 -> default_calc_input_109 | C110: Capital Cost of Conventional Electric Service Reliability Solution | D110: $/kW | F110: No Default
A111: calc_input_110 | B111: ="default_"&A111 -> default_calc_input_110 | C111: Annual Fixed Charge Rate for Electric Service Reliability Capital Investment | D111: % | E111: Same fixed charge rate used to amortize the cost of the energy storage deployment. | F111: =input_EcoParam_5*100 -> 11 | G111: =input_EcoParam_5*100 -> 11 | H111: =input_EcoParam_5*100 -> 11 | I111: =input_EcoParam_5*100 -> 11 | J111: =input_EcoParam_5*100 -> 11
A113: DEFAULT EMISSIONS ANALYSIS AND SOURCE DATA
B114: Region: | C114: =input_Param_11 -> NPCC Upstate NY | D114: =MATCH(C114,D130:D158) -> 15
C115: Metric | D115: Value (lb/MWh)
C116: CO2 Emissions Factor for Generation on the Margin | D116: =IFERROR(INDEX($D$130:$P$158,$D$114,MATCH(E116,$D$130:$P$130,0)),0) -> 844.5495 | E116: =INDEX($D$130:$AI$158,$D$114,32)&" CO2" -> Gas CO2
C117: CO2 Emissions Factor for Base Generation | D117: =IFERROR(INDEX($D$130:$P$158,$D$114,MATCH(E117,$D$130:$P$130,0)),0) -> 0 | E117: =INDEX($D$130:$AI$158,$D$114,31)&" CO2" -> Nuclear CO2
C118: SOx Emissions Factor for Generation on the Margin | D118: 0.0747 | E118: =INDEX($D$130:$AI$158,$D$114,32)&" SO2" -> Gas SO2
C119: SOx Emissions Factor for Base Generation | D119: 0 | E119: =INDEX($D$130:$AI$158,$D$114,31)&" SO2" -> Nuclear SO2
C120: NOx Emissions Factor for Generation on the Margin | D120: 0.2525 | E120: =INDEX($D$130:$AI$158,$D$114,32)&" Nox" -> Gas Nox
C121: NOx Emissions Factor for Base Generation | D121: 0 | E121: =INDEX($D$130:$AI$158,$D$114,31)&" Nox" -> Nuclear Nox
C122: CO2 Emissions Factor of Generation at Partial Load | D122: =D123*1.05 -> 717.436125
C123: CO2 Emissions Factor of Generation at Optimal Load | D123: =INDEX($E$130:$G$158,$D$114,3) -> 683.2725
C124: SOx Emissions Factor of Generation at Partial Load | D124: =D125*1.05 -> 2.51958
C125: SOx Emissions Factor of Generation at Optimal Load | D125: =INDEX($E$130:$G$158,$D$114,2) -> 2.3996
C126: NOx Emissions Factor of Generation at Partial Load | D126: =D127*1.05 -> 0.755895
C127: NOx Emissions Factor of Generation at Optimal Load | D127: =INDEX($E$130:$G$158,$D$114,1) -> 0.7199
C129: SOURCE DATA
C130: SOURCE: 'eGRID2010 Version 1.1 Subregion File (Year 2007 Data): 'Year 2010 eGRID State, EGC Location (operator)-based, EGC Owner-based, Parent Company Location (operator)-based, Parent Company Owner-based, PCA, eGRID Subregion, NERC Region, and U.S. Data Files | D130: x | E130: Nox Region | F130: SO2 Region | G130: CO2 Region | H130: Coal Nox | I130: Oil Nox | J130: Gas Nox | K130: Coal SO2 | L130: Oil SO2 | M130: Gas SO2 | N130: Coal CO2 | O130: Oil CO2 | P130: Gas CO2 | Q130: Coal | R130: Oil | S130: Gas | T130: Nuclear | U130: Hydro | V130: Biomass | W130: Wind | X130: Solar | Y130: Geothermal | Z130: Other Fossil | AA130: Unknown
C131: eGRID subregion acronym | D131: eGRID subregion name | E131: eGRID subregion annual NOx total output emission rate (lb/MWh) | F131: eGRID subregion annual SO2 total output emission rate (lb/MWh) | G131: eGRID subregion annual CO2 total output emission rate (lb/MWh) | H131: eGRID subregion annual NOx coal output emission rate (lb/MWh) | I131: eGRID subregion annual NOx oil output emission rate (lb/MWh) | J131: eGRID subregion annual NOx gas output emission rate (lb/MWh) | K131: eGRID subregion annual SO2 coal output emission rate (lb/MWh) | L131: eGRID subregion annual SO2 oil output emission rate (lb/MWh) | M131: eGRID subregion annual SO2 gas output emission rate (lb/MWh) | N131: eGRID subregion annual CO2 coal output emission rate (lb/MWh) | O131: eGRID subregion annual CO2 oil output emission rate (lb/MWh) | P131: eGRID subregion annual CO2 gas output emission rate (lb/MWh) | Q131: eGRID subregion coal generation percent (resource mix) | R131: eGRID subregion oil generation percent (resource mix) | S131: eGRID subregion gas generation percent (resource mix) | T131: eGRID subregion nuclear generation percent (resource mix) | U131: eGRID subregion hydro generation percent (resource mix) | V131: eGRID subregion biomass generation percent (resource mix) | W131: eGRID subregion wind generation percent (resource mix) | X131: eGRID subregion solar generation percent (resource mix) | Y131: eGRID subregion geothermal generation percent (resource mix) | Z131: eGRID subregion other fossil generation percent (resource mix) | AA131: eGRID subregion other unknown/ purchased fuel generation percent (resource mix) | AB131: eGRID subregion total nonrenewables generation percent (resource mix) | AC131: eGRID subregion total renewables generation percent (resource mix) | AD131: eGRID subregion total nonhydro renewables generation percent (resource mix) | AE131: eGRID subregion total combustion generation percent (resource mix) | AF131: eGRID subregion total noncombustion generation percent (resource mix) | AH131: Base Generation | AI131: Marginal Generation
C132: SUBRGN | D132: SRNAME | E132: SRNOXRTA | F132: SRSO2RTA | G132: SRCO2RTA | H132: SRCNOXRT | I132: SRONOXRT | J132: SRGNOXRT | K132: SRCSO2RT | L132: SROSO2RT | M132: SRGSO2RT | N132: SRCCO2RT | O132: SROCO2RT | P132: SRGCO2RT | Q132: SRCLPR | R132: SROLPR | S132: SRGSPR | T132: SRNCPR | U132: SRHYPR | V132: SRBMPR | W132: SRWIPR | X132: SRSOPR | Y132: SRGTPR | Z132: SROFPR | AA132: SROPPR | AB132: SRTNPR | AC132: SRTRPR | AD132: SRTHPR | AE132: SRCYPR | AF132: SRCNPR
C133: AKGD | D133: ASCC Alaska Grid | E133: 2.7929 | F133: 1.3135 | G133: 1284.7206 | H133: 8.1839 | I133: 3.2972 | J133: 2.1101 | K133: 7.3803 | L133: 3.9702 | M133: 0.0364 | N133: 2219.0965 | O133: 1622.5684 | P133: 1218.2171 | Q133: 11.7577 | R133: 10.4402 | S133: 70.0532 | T133: 0 | U133: 7.7484 | V133: 0.0004 | W133: 0 | X133: 0 | Y133: 0 | Z133: 0 | AA133: 0 | AB133: 92.2512 | AC133: 7.7488 | AD133: 0.0004 | AE133: 92.2516 | AF133: 7.7484 | AG133: =MATCH(MAX(Q133:AA133),Q133:AA133,0) -> 3 | AH133: =INDEX($Q$130:$AA$130,1,AG133) -> Gas | AI133: Oil
C134: AKMS | D134: ASCC Miscellaneous | E134: 7.3126 | F134: 0.5989 | G134: 535.7275 | H134: N/A | I134: 20.664 | J134: 2.3462 | K134: N/A | L134: 1.7078 | M134: 0.0311 | N134: N/A | O134: 1434.7878 | P134: 993.8686 | Q134: 0 | R134: 32.2402 | S134: 3.3648 | T134: 0 | U134: 63.5746 | V134: 0.7463 | W134: 0.0741 | X134: 0 | Y134: 0 | Z134: 0 | AA134: 0 | AB134: 35.605 | AC134: 64.395 | AD134: 0.8204 | AE134: 36.3513 | AF134: 63.6487 | AG134: =MATCH(MAX(Q134:AA134),Q134:AA134,0) -> 5 | AH134: Hydro | AI134: Oil
C135: ERCT | D135: ERCOT All | E135: 0.7382 | F135: 2.5557 | G135: 1252.5653 | H135: 1.5581 | I135: 3.7337 | J135: 0.3616 | K135: 7.2362 | L135: 10.4844 | M135: 0.0099 | N135: 2276.4288 | O135: 2507.1235 | P135: 904.9792 | Q135: 34.3868 | R135: 0.3681 | S135: 49.4793 | T135: 11.9835 | U135: 0.2651 | V135: 0.0969 | W135: 2.3692 | X135: 0 | Y135: 0 | Z135: 0.8729 | AA135: 0.1782 | AB135: 97.2688 | AC135: 2.7312 | AD135: 2.4661 | AE135: 85.3821 | AF135: 14.6179 | AG135: 3 | AH135: Gas | AI135: Gas
C136: FRCC | D136: FRCC All | E136: 1.9832 | F136: 3.1828 | G136: 1220.1098 | H136: 4.0592 | I136: 3.0212 | J136: 0.5489 | K136: 5.443 | L136: 8.4698 | M136: 0.6406 | N136: 1893.2162 | O136: 1930.6519 | P136: 856.2267 | Q136: 26.8624 | R136: 9.232 | S136: 47.2864 | T136: 13.4072 | U136: 0.0027 | V136: 1.6964 | W136: 0 | X136: 0 | Y136: 0 | Z136: 0.6187 | AA136: 0.8944 | AB136: 98.3009 | AC136: 1.6991 | AD136: 1.6964 | AE136: 86.5901 | AF136: 13.4099 | AG136: 3 | AH136: Gas | AI136: Oil
C137: HIMS | D137: HICC Miscellaneous | E137: 5.6167 | F137: 2.0639 | G137: 1343.8226 | H137: N/A | I137: 7.1049 | J137: N/A | K137: N/A | L137: 2.2328 | M137: N/A | N137: N/A | O137: 1716.7507 | P137: N/A | Q137: 1.9319 | R137: 76.9411 | S137: 0 | T137: 0 | U137: 2.885 | V137: 3.6187 | W137: 7.4413 | X137: 0 | Y137: 7.1821 | Z137: 0 | AA137: 0 | AB137: 78.873 | AC137: 21.127 | AD137: 18.242 | AE137: 82.4916 | AF137: 17.5084 | AG137: 2 | AH137: Oil | AI137: Oil
C138: HIOA | D138: HICC Oahu | E138: 4.4118 | F138: 10.0956 | G138: 1620.7611 | H138: 9.3361 | I138: 2.9377 | J138: N/A | K138: 31.1125 | L138: 4.2657 | M138: N/A | N138: 1905.6345 | O138: 1536.0201 | P138: N/A | Q138: 18.2069 | R138: 77.425 | S138: 0 | T138: 0 | U138: 0 | V138: 1.9138 | W138: 0 | X138: 0 | Y138: 0 | Z138: 2.4543 | AA138: 0 | AB138: 98.0862 | AC138: 1.9138 | AD138: 1.9138 | AE138: 100 | AF138: 0 | AG138: 2 | AH138: Oil | AI138: Oil
C139: MROE | D139: MRO East | E139: 2.3039 | F139: 6.5654 | G139: 1692.3209 | H139: 3.0649 | I139: 2.9434 | J139: 0.3561 | K139: 8.6935 | L139: 14.6344 | M139: 0.0337 | N139: 2317.6209 | O139: 1543.8459 | P139: 1021.7967 | Q139: 66.576 | R139: 3.1916 | S139: 7.8773 | T139: 15.6352 | U139: 2.9773 | V139: 3.3536 | W139: 0.1466 | X139: 0 | Y139: 0 | Z139: 0.1227 | AA139: 0.1198 | AB139: 93.5226 | AC139: 6.4774 | AD139: 3.5001 | AE139: 81.241 | AF139: 18.759 | AG139: 1 | AH139: Coal | AI139: Gas
C140: MROW | D140: MRO West | E140: 3.0683 | F140: 5.3043 | G140: 1722.6704 | H140: 4.0981 | I140: 7.8325 | J140: 0.5968 | K140: 7.1782 | L140: 5.3772 | M140: 0.0416 | N140: 2309.3155 | O140: 2321.9363 | P140: 1092.2362 | Q140: 70.9913 | R140: 0.5007 | S140: 4.9605 | T140: 15.4227 | U140: 3.4802 | V140: 0.9578 | W140: 3.4345 | X140: 0 | Y140: 0 | Z140: 0.225 | AA140: 0.0274 | AB140: 92.1276 | AC140: 7.8724 | AD140: 4.3922 | AE140: 77.6627 | AF140: 22.3373 | AG140: 1 | AH140: Coal | AI140: Gas
C141: NYLI | D141: NPCC Long Island | E141: 1.9808 | F141: 4.0335 | G141: 1418.7394 | H141: N/A | I141: 1.8222 | J141: 0.8493 | K141: N/A | L141: 3.4163 | M141: 0.7353 | N141: N/A | O141: 1501.1497 | P141: 1223.8081 | Q141: 0 | R141: 31.4136 | S141: 61.305 | T141: 0 | U141: 0 | V141: 3.8826 | W141: 0 | X141: 0 | Y141: 0 | Z141: 3.3988 | AA141: 0 | AB141: 96.1174 | AC141: 3.8826 | AD141: 3.8826 | AE141: 100 | AF141: 0 | AG141: 3 | AH141: Gas | AI141: Oil
C142: NEWE | D142: NPCC New England | E142: 0.8402 | F142: 2.8432 | G142: 827.9524 | H142: 1.3829 | I142: 1.5856 | J142: 0.1624 | K142: 9.408 | L142: 5.6017 | M142: 0.1189 | N142: 2014.2247 | O142: 1805.9154 | P142: 893.3101 | Q142: 15.147 | R142: 4.2301 | S142: 40.8361 | T142: 27.9097 | U142: 4.5055 | V142: 5.8083 | W142: 0.0827 | X142: 0 | Y142: 0 | Z142: 1.4706 | AA142: 0.0101 | AB142: 89.6035 | AC142: 10.3965 | AD142: 5.891 | AE142: 67.5021 | AF142: 32.4979 | AG142: 3 | AH142: Gas | AI142: Oil
C143: NYCW | D143: NPCC NYC/Westchester | E143: 0.4758 | F143: 0.5446 | G143: 704.803 | H143: N/A | I143: 3.8641 | J143: 0.541 | K143: N/A | L143: 0.9618 | M143: 0.2353 | N143: N/A | O143: 829.1929 | P143: 1101.77 | Q143: 0 | R143: 4.9674 | S143: 56.329 | T143: 37.7964 | U143: 0.0031 | V143: 0.4684 | W143: 0 | X143: 0 | Y143: 0 | Z143: 0.4204 | AA143: 0.0153 | AB143: 99.5285 | AC143: 0.4715 | AD143: 0.4684 | AE143: 62.2005 | AF143: 37.7995 | AG143: 3 | AH143: Gas | AI143: Oil
C144: NYUP | D144: NPCC Upstate NY | E144: 0.7199 | F144: 2.3996 | G144: 683.2725 | H144: 2.3497 | I144: 2.0277 | J144: 0.2525 | K144: 8.7621 | L144: 8.1044 | M144: 0.0747 | N144: 2081.3913 | O144: 1491.7655 | P144: 844.5495 | Q144: 23.0943 | R144: 2.1812 | S144: 17.9156 | T144: 27.8494 | U144: 26.408 | V144: 1.2611 | W144: 0.8992 | X144: 0 | Y144: 0 | Z144: 0.3905 | AA144: 0.0006 | AB144: 71.4316 | AC144: 28.5684 | AD144: 2.1604 | AE144: 44.8434 | AF144: 55.1566 | AG144: 4 | AH144: Nuclear | AI144: Gas
C145: RFCE | D145: RFC East | E145: 1.5102 | F145: 7.9245 | G145: 1059.3196 | H145: 2.8835 | I145: 0.1026 | J145: 0.2684 | K145: 16.8039 | L145: 0.1327 | M145: 0.0208 | N145: 2026.6804 | O145: 53.2404 | P145: 959.505 | Q145: 42.1968 | R145: 1.0967 | S145: 13.0776 | T145: 40.2823 | U145: 0.9314 | V145: 1.1599 | W145: 0.1688 | X145: 0 | Y145: 0 | Z145: 1.0865 | AA145: 0 | AB145: 97.7399 | AC145: 2.2601 | AD145: 1.3287 | AE145: 58.6175 | AF145: 41.3825 | AG145: 1 | AH145: Coal | AI145: Gas
C146: RFCM | D146: RFC Michigan | E146: 2.2963 | F146: 7.2401 | G146: 1651.1144 | H146: 2.9717 | I146: 0.1581 | J146: 0.5964 | K146: 9.8952 | L146: 0.8763 | M146: 0.1292 | N146: 2136.4977 | O146: 38.8415 | P146: 982.7573 | Q146: 69.7828 | R146: 0.6794 | S146: 12.2393 | T146: 14.8325 | U146: 0 | V146: 1.8355 | W146: 0.0029 | X146: 0 | Y146: 0 | Z146: 0.6277 | AA146: 0 | AB146: 98.1616 | AC146: 1.8384 | AD146: 1.8384 | AE146: 85.1647 | AF146: 14.8353 | AG146: 1 | AH146: Coal | AI146: Gas
C147: RFCW | D147: RFC West | E147: 2.5006 | F147: 8.5998 | G147: 1551.5166 | H147: 3.3678 | I147: 0.1151 | J147: 0.3569 | K147: 11.6847 | L147: 2.0723 | M147: 0.0087 | N147: 2068.1898 | O147: 103.3016 | P147: 1031.1155 | Q147: 72.874 | R147: 0.283 | S147: 2.9123 | T147: 22.2875 | U147: 0.5564 | V147: 0.3265 | W147: 0.1467 | X147: 0 | Y147: 0 | Z147: 0.556 | AA147: 0.0576 | AB147: 98.9703 | AC147: 1.0297 | AD147: 0.4733 | AE147: 77.0094 | AF147: 22.9906 | AG147: 1 | AH147: Coal | AI147: Gas
C148: SRMW | D148: SERC Midwest | E148: 1.7986 | F148: 5.4302 | G148: 1779.2698 | H148: 2.1858 | I148: 4.0047 | J148: 0.6 | K148: 6.683 | L148: 0.4299 | M148: 0.5934 | N148: 2145.8493 | O148: 429.4954 | P148: 996.732 | Q148: 80.795 | R148: 0.0611 | S148: 4.39 | T148: 13.3677 | U148: 1.2859 | V148: 0.0781 | W148: 0.0055 | X148: 0 | Y148: 0 | Z148: 0.0167 | AA148: 0 | AB148: 98.6305 | AC148: 1.3695 | AD148: 0.0835 | AE148: 85.3409 | AF148: 14.6591 | AG148: 1 | AH148: Coal | AI148: Gas
C149: SRMV | D149: SERC Mississippi Valley | E149: 1.1817 | F149: 1.634 | G149: 1004.0965 | H149: 2.3706 | I149: 11.7089 | J149: 1.1454 | K149: 5.5354 | L149: 134.2139 | M149: 0.1289 | N149: 2107.9681 | O149: 3248.3652 | P149: 1037.3328 | Q149: 22.9883 | R149: 1.6361 | S149: 44.7224 | T149: 25.4669 | U149: 1.3538 | V149: 2.185 | W149: 0 | X149: 0 | Y149: 0 | Z149: 1.2966 | AA149: 0.3508 | AB149: 96.4612 | AC149: 3.5388 | AD149: 2.185 | AE149: 73.1792 | AF149: 26.8208 | AG149: 3 | AH149: Gas | AI149: Gas
C150: SRSO | D150: SERC South | E150: 1.912 | F150: 8.5548 | G150: 1495.4716 | H150: 2.6907 | I150: 4.231 | J150: 0.2613 | K150: 12.4014 | L150: 37.0921 | M150: 0.0213 | N150: 2060.8573 | O150: 1256.9738 | P150: 903.3095 | Q150: 63.5126 | R150: 0.3465 | S150: 15.1219 | T150: 16.6207 | U150: 1.3824 | V150: 2.8948 | W150: 0 | X150: 0 | Y150: 0 | Z150: 0.1211 | AA150: 0 | AB150: 95.7228 | AC150: 4.2772 | AD150: 2.8948 | AE150: 81.9969 | AF150: 18.0031 | AG150: 1 | AH150: Coal | AI150: Gas
C151: SRTV | D151: SERC Tennessee Valley | E151: 2.4561 | F151: 5.3235 | G151: 1540.8489 | H151: 3.5786 | I151: 25.4674 | J151: 0.1749 | K151: 7.8058 | L151: 2.6996 | M151: 0.0059 | N151: 2174.7674 | O151: 1703.1677 | P151: 973.5391 | Q151: 66.1383 | R151: 1.2488 | S151: 7.1996 | T151: 20.8052 | U151: 3.7272 | V151: 0.8518 | W151: 0.0208 | X151: 0 | Y151: 0 | Z151: 0.0084 | AA151: 0 | AB151: 95.4002 | AC151: 4.5998 | AD151: 0.8726 | AE151: 75.4469 | AF151: 24.5531 | AG151: 1 | AH151: Coal | AI151: Gas
C152: SRVC | D152: SERC Virginia/Carolina | E152: 1.2522 | F152: 4.7758 | G152: 1118.4058 | H152: 2.0951 | I152: 7.4781 | J152: 0.4346 | K152: 8.4324 | L152: 12.3537 | M152: 0.2357 | N152: 1920.0636 | O152: 1673.8181 | P152: 1066.5698 | Q152: 51.0771 | R152: 0.8775 | S152: 6.6934 | T152: 38.3574 | U152: 0.7283 | V152: 1.9631 | W152: 0 | X152: 0 | Y152: 0 | Z152: 0.2246 | AA152: 0.0786 | AB152: 97.3086 | AC152: 2.6914 | AD152: 1.9631 | AE152: 60.9143 | AF152: 39.0857 | AG152: 1 | AH152: Coal | AI152: Gas
C153: SPNO | D153: SPP North | E153: 2.9506 | F153: 5.0848 | G153: 1798.706 | H153: 3.7311 | I153: 47.2332 | J153: 1.4111 | K153: 6.6707 | L153: 3.9659 | M153: 0.0122 | N153: 2251.1765 | O153: 3349.7879 | P153: 1150.8085 | Q153: 74.913 | R153: 0.3409 | S153: 8.1093 | T153: 14.8246 | U153: 0.117 | V153: 0.0002 | W153: 1.6478 | X153: 0 | Y153: 0 | Z153: 0.0472 | AA153: 0 | AB153: 98.235 | AC153: 1.765 | AD153: 1.6479 | AE153: 83.4106 | AF153: 16.5894 | AG153: 1 | AH153: Coal | AI153: Gas
C154: SPSO | D154: SPP South | E154: 2.2384 | F154: 3.6288 | G154: 1624.0256 | H154: 2.9898 | I154: 28.5162 | J154: 1.2816 | K154: 5.8743 | L154: 2.4224 | M154: 0.0499 | N154: 2115.0856 | O154: 1907.0605 | P154: 1122.4018 | Q154: 56.35 | R154: 0.1746 | S154: 34.5536 | T154: 0 | U154: 4.3904 | V154: 1.5907 | W154: 2.4301 | X154: 0 | Y154: 0 | Z154: 0.3109 | AA154: 0.1997 | AB154: 91.5889 | AC154: 8.4111 | AD154: 4.0208 | AE154: 93.1796 | AF154: 6.8204 | AG154: 1 | AH154: Coal | AI154: Gas
C155: CAMX | D155: WECC California | E155: 0.6235 | F155: 0.4237 | G155: 681.007 | H155: 4.4151 | I155: 7.5089 | J155: 0.2455 | K155: 1.826 | L155: 19.4502 | M155: 0.0115 | N155: 2100.1912 | O155: 2250.8942 | P155: 905.9957 | Q155: 7.5861 | R155: 1.0392 | S155: 52.4677 | T155: 16.2499 | U155: 12.0626 | V155: 2.4035 | W155: 2.5356 | X155: 0.2529 | Y155: 4.38 | Z155: 0.9253 | AA155: 0.0974 | AB155: 78.3655 | AC155: 21.6345 | AD155: 9.5719 | AE155: 64.5191 | AF155: 35.4809 | AG155: 3 | AH155: Gas | AI155: Hydro
C156: NWPP | D156: WECC Northwest | E156: 1.4508 | F156: 1.2864 | G156: 858.7896 | H156: 4.0961 | I156: 5.7724 | J156: 0.6572 | K156: 3.4466 | L156: 62.7776 | M156: 0.0129 | N156: 2294.4391 | O156: 1724.0925 | P156: 892.972 | Q156: 31.9586 | R156: 0.2232 | S156: 12.7764 | T156: 3.0041 | U156: 48.3655 | V156: 1.1039 | W156: 1.8861 | X156: 0 | Y156: 0.3427 | Z156: 0.2884 | AA156: 0.051 | AB156: 48.3017 | AC156: 51.6983 | AD156: 3.3327 | AE156: 46.4015 | AF156: 53.5985 | AG156: 5 | AH156: Hydro | AI156: Gas
C157: RMPA | D157: WECC Rockies | E157: 2.7033 | F157: 2.5022 | G157: 1906.0635 | H157: 3.5727 | I157: 12.635 | J157: 0.532 | K157: 3.4602 | L157: 3.847 | M157: 0.0097 | N157: 2316.1223 | O157: 3048.0848 | P157: 1023.5257 | Q157: 71.2986 | R157: 0.0608 | S157: 23.6174 | T157: 0 | U157: 2.8805 | V157: 0.0482 | W157: 2.0272 | X157: 0.0034 | Y157: 0 | Z157: 0 | AA157: 0.0638 | AB157: 95.0407 | AC157: 4.9593 | AD157: 2.0788 | AE157: 95.0889 | AF157: 4.9111 | AG157: 1 | AH157: Coal | AI157: Gas
C158: AZNM | D158: WECC Southwest | E158: 1.8703 | F158: 0.964 | G158: 1252.6106 | H158: 4.3226 | I158: 21.6333 | J158: 0.3088 | K158: 2.3377 | L158: 2.4149 | M158: 0.0063 | N158: 2280.9136 | O158: 1811.2667 | P158: 908.1952 | Q158: 40.1813 | R158: 0.0816 | S158: 36.2336 | T158: 14.8237 | U158: 5.9365 | V158: 0.2011 | W158: 0.3883 | X158: 0.0291 | Y158: 2.1225 | Z158: 0.0024 | AA158: 0 | AB158: 91.3225 | AC158: 8.6775 | AD158: 2.741 | AE158: 76.6999 | AF158: 23.3001 | AG158: 1 | AH158: Coal | AI158: Gas

Sheet App-Benefit to Input Map (hidden)
D1: App_1_Ben_14 | E1: App_1_Ben_23 | F1: App_1_Ben_24 | G1: App_1_Ben_25 | H1: App_1_Ben_26 | I1: App_1_Ben_01 | J1: App_2_Ben_28 | K1: App_2_Ben_02 | L1: App_3_Ben_34 | M1: App_3_Ben_28 | N1: App_3_Ben_03 | O1: App_4_Ben_28 | P1: App_4_Ben_03 | Q1: App_5_Ben_34 | R1: App_5_Ben_23 | S1: App_5_Ben_24 | T1: App_5_Ben_25 | U1: App_5_Ben_26 | V1: App_5_Ben_03 | W1: App_5_Ben_10 | X1: App_6_Ben_03 | Y1: App_6_Ben_33 | Z1: App_7_Ben_11 | AA1: App_7_Ben_29 | AB1: App_8_Ben_11 | AC1: App_8_Ben_31 | AD1: App_8_Ben_30 | AE1: App_9_Ben_11 | AF1: App_9_Ben_12 | AG1: App_11_Ben_04 | AH1: App_12_Ben_04 | AI1: App_13_Ben_29 | AJ1: App_13_Ben_32 | AK1: App_14_Ben_33 | AL1: App_15_Ben_14 | AM1: App_15_Ben_23 | AN1: App_15_Ben_24 | AO1: App_15_Ben_25 | AP1: App_15_Ben_26 | AQ1: App_15_Ben_01 | AR1: App_15_Ben_04 | AS1: App_16_Ben_23 | AT1: App_16_Ben_24 | AU1: App_16_Ben_25 | AV1: App_16_Ben_26 | AW1: App_16_Ben_28 | AX1: App_16_Ben_02 | AY1: App_17_Ben_23 | AZ1: App_17_Ben_24 | BA1: App_17_Ben_25 | BB1: App_17_Ben_26 | BC1: App_17_Ben_28 | BD1: App_17_Ben_02 | BE1: App_18_Ben_14 | BF1: App_18_Ben_23 | BG1: App_18_Ben_24 | BH1: App_18_Ben_25 | BI1: App_18_Ben_26 | BJ1: App_18_Ben_01
D2: =INDIRECT(MID(D1,1,5)) -> Electric Energy Time-shift | E2: =INDIRECT(MID(E1,1,5)) -> Electric Energy Time-shift | F2: Electric Energy Time-shift | G2: Electric Energy Time-shift | H2: Electric Energy Time-shift | I2: Electric Energy Time-shift | J2: Electric Supply Capacity | K2: Electric Supply Capacity | L2: Load Following | M2: =INDIRECT(MID(M1,1,5)) -> Load Following | N2: Load Following | O2: Area Regulation | P2: Area Regulation | Q2: Electric Supply Reserve Capacity | R2: Electric Supply Reserve Capacity | S2: Electric Supply Reserve Capacity | T2: Electric Supply Reserve Capacity | U2: Electric Supply Reserve Capacity | V2: Electric Supply Reserve Capacity | W2: Electric Supply Reserve Capacity | X2: Voltage Support | Y2: =INDIRECT(MID(Y1,1,5)) -> Voltage Support | Z2: =INDIRECT(MID(Z1,1,5)) -> Transmission Support | AA2: Transmission Support | AB2: Transmission Congestion Relief | AC2: Transmission Congestion Relief | AD2: Transmission Congestion Relief | AE2: Transmission & Distribution (T&D) Upgrade Deferral | AF2: Transmission & Distribution (T&D) Upgrade Deferral | AG2: =INDIRECT(MID(AG1,1,6)) -> Time-of-use (TOU) Energy Cost Management | AH2: Demand Charge Management | AI2: Electric Service Reliability | AJ2: Electric Service Reliability | AK2: Electric Service Power Quality | AL2: Renewables Energy Time-shift | AM2: Renewables Energy Time-shift | AN2: Renewables Energy Time-shift | AO2: Renewables Energy Time-shift | AP2: Renewables Energy Time-shift | AQ2: Renewables Energy Time-shift | AR2: Renewables Energy Time-shift | AS2: Renewables Capacity Firming | AT2: Renewables Capacity Firming | AU2: Renewables Capacity Firming | AV2: Renewables Capacity Firming | AW2: Renewables Capacity Firming | AX2: =INDIRECT(MID(AX1,1,6)) -> Renewables Capacity Firming | AY2: Wind Generation Grid Integration - Short Duration | AZ2: Wind Generation Grid Integration - Short Duration | BA2: Wind Generation Grid Integration - Short Duration | BB2: Wind Generation Grid Integration - Short Duration | BC2: Wind Generation Grid Integration - Short Duration | BD2: Wind Generation Grid Integration - Short Duration | BE2: Wind Generation Grid Integration - Long Duration | BF2: Wind Generation Grid Integration - Long Duration | BG2: Wind Generation Grid Integration - Long Duration | BH2: Wind Generation Grid Integration - Long Duration | BI2: =INDIRECT(MID(BI1,1,6)) -> Wind Generation Grid Integration - Long Duration | BJ2: =INDIRECT(MID(BJ1,1,6)) -> Wind Generation Grid Integration - Long Duration
